Workbook

Sheet Main
B10: 2021-07-08
B12: Sheet No. | C12: Template Name | D12: Summary
B13: 1 | C13: Future Intra | D13: For Intraday trading in F&O segment
B14: 2 | C14: Cash Intra | D14: For Intraday trading in cash market segment
B15: 3 | C15: Mid-cap Intra | D15: For Intraday trading in Mid-cap stocks
B16: 4 | C16: Bulk Deals | D16: Reveals Bulk Deals carried on NSE & BSE
B17: 5 | C17: Call Tracker
K27: `

Sheet Future Intra
M5: Back to Main Page
A6: FOR INTRA DAY TRADING | L6: =Main!B10 -> 2021-07-08
A9: Sr.no | B9: Sector | C9: Scrip | D9: Expiry Date | E9: CLOSE RATE | F9: Pivot Point | G9: Supports | J9: Resistances
B10: Sector | E10: Point | F10: Point | G10: S1 | H10: S2 | I10: S3 | J10: R1 | K10: R2 | L10: R3 | M10: HIGH | N10: LOW | O10: OI | P10: % Change in OI
A11: 1 | B11: Index | C11: BANKNIFTY | D11: 2021-07-29 | E11: 35865.60 | F11: 35744.90 | G11: 35590.80 | H11: 35316.00 | I11: 35161.90 | J11: 36019.70 | K11: 36173.80 | L11: 36448.60 | M11: 35899 | N11: 35470.1 | O11: 2090900 | P11: -1.57%
A12: 2 | B12: Index | C12: NIFTY | D12: 2021-07-29 | E12: 15886.40 | F12: 15858.60 | G12: 15816.60 | H12: 15746.80 | I12: 15704.80 | J12: 15928.40 | K12: 15970.40 | L12: 16040.20 | M12: 15900.6 | N12: 15788.8 | O12: 10043000 | P12: -0.98%
A13: 3 | B13: Index | C13: FINNIFTY | D13: 2021-07-29 | E13: 16897.60 | F13: 16883.98 | G13: 16833.62 | H13: 16769.63 | I13: 16719.27 | J13: 16947.97 | K13: 16998.33 | L13: 17062.32 | M13: 16934.35 | N13: 16820 | O13: 13280 | P13: -3.49%
A14: 4 | B14: Chemical | C14: AARTIIND | D14: 2021-07-29 | E14: 866.60 | F14: 861.10 | G14: 852.70 | H14: 838.80 | I14: 830.40 | J14: 875.00 | K14: 883.40 | L14: 897.30 | M14: 869.5 | N14: 847.2 | O14: 3720450 | P14: 13.75%
A15: 5 | B15: Textile | C15: ABFRL | D15: 2021-07-29 | E15: 214.50 | F15: 214.92 | G15: 213.13 | H15: 211.77 | I15: 209.98 | J15: 216.28 | K15: 218.07 | L15: 219.43 | M15: 216.7 | N15: 213.55 | O15: 5421000 | P15: 3.73%
A16: 6 | B16: Cement | C16: ACC | D16: 2021-07-29 | E16: 2047.40 | F16: 2040.28 | G16: 2028.72 | H16: 2010.03 | I16: 1998.47 | J16: 2058.97 | K16: 2070.53 | L16: 2089.22 | M16: 2051.85 | N16: 2021.6 | O16: 2919000 | P16: 1.35%
A17: 7 | B17: Others | C17: ADANIENT | D17: 2021-07-29 | E17: 1432.85 | F17: 1422.08 | G17: 1400.17 | H17: 1367.48 | I17: 1345.57 | J17: 1454.77 | K17: 1476.68 | L17: 1509.37 | M17: 1444 | N17: 1389.4 | O17: 16529000 | P17: -2.28%
A18: 8 | B18: Others | C18: ADANIPORTS | D18: 2021-07-29 | E18: 724.45 | F18: 719.75 | G18: 712.25 | H18: 700.05 | I18: 692.55 | J18: 731.95 | K18: 739.45 | L18: 751.65 | M18: 727.25 | N18: 707.55 | O18: 83528750 | P18: 0.58%
A19: 9 | B19: Pharma | C19: ALKEM | D19: 2021-07-29 | E19: 3318.55 | F19: 3311.65 | G19: 3287.30 | H19: 3256.05 | I19: 3231.70 | J19: 3342.90 | K19: 3367.25 | L19: 3398.50 | M19: 3336 | N19: 3280.4 | O19: 538400 | P19: -3.44%
A20: 10 | B20: Automobile | C20: AMARAJABAT | D20: 2021-07-29 | E20: 736.30 | F20: 729.28 | G20: 717.57 | H20: 698.83 | I20: 687.12 | J20: 748.02 | K20: 759.73 | L20: 778.47 | M20: 741 | N20: 710.55 | O20: 10615000 | P20: 3.11%
A21: 11 | B21: Cement | C21: AMBUJACEM | D21: 2021-07-29 | E21: 358.20 | F21: 356.40 | G21: 353.80 | H21: 349.40 | I21: 346.80 | J21: 360.80 | K21: 363.40 | L21: 367.80 | M21: 359 | N21: 352 | O21: 18420000 | P21: -2.32%
A22: 12 | B22: Pharma | C22: APLLTD | D22: 2021-07-29 | E22: 976.80 | F22: 974.05 | G22: 968.10 | H22: 959.40 | I22: 953.45 | J22: 982.75 | K22: 988.70 | L22: 997.40 | M22: 980 | N22: 965.35 | O22: 1246300 | P22: 0.58%
A23: 13 | B23: Others | C23: APOLLOHOSP | D23: 2021-07-29 | E23: 3735.35 | F23: 3735.07 | G23: 3710.33 | H23: 3685.32 | I23: 3660.58 | J23: 3760.08 | K23: 3784.82 | L23: 3809.83 | M23: 3759.8 | N23: 3710.05 | O23: 2051250 | P23: 0.49%
A24: 14 | B24: Automobile | C24: APOLLOTYRE | D24: 2021-07-29 | E24: 228.75 | F24: 227.60 | G24: 226.05 | H24: 223.35 | I24: 221.80 | J24: 230.30 | K24: 231.85 | L24: 234.55 | M24: 229.15 | N24: 224.9 | O24: 16482500 | P24: -0.60%
A25: 15 | B25: Automobile | C25: ASHOKLEY | D25: 2021-07-29 | E25: 124.05 | F25: 123.60 | G25: 122.85 | H25: 121.65 | I25: 120.90 | J25: 124.80 | K25: 125.55 | L25: 126.75 | M25: 124.35 | N25: 122.4 | O25: 42228000 | P25: -2.95%
A26: 16 | B26: FMCG | C26: ASIANPAINT | D26: 2021-07-29 | E26: 3052.00 | F26: 3047.65 | G26: 3027.90 | H26: 3003.80 | I26: 2984.05 | J26: 3071.75 | K26: 3091.50 | L26: 3115.60 | M26: 3067.4 | N26: 3023.55 | O26: 3988500 | P26: -1.12%
A27: 17 | B27: Banking | C27: AUBANK | D27: 2021-07-29 | E27: 1127.00 | F27: 1118.82 | G27: 1106.28 | H27: 1085.57 | I27: 1073.03 | J27: 1139.53 | K27: 1152.07 | L27: 1172.78 | M27: 1131.35 | N27: 1098.1 | O27: 3154500 | P27: -1.73%
A28: 18 | B28: Pharma | C28: AUROPHARMA | D28: 2021-07-29 | E28: 970.25 | F28: 973.92 | G28: 962.43 | H28: 954.62 | I28: 943.13 | J28: 981.73 | K28: 993.22 | L28: 1001.03 | M28: 985.4 | N28: 966.1 | O28: 10582650 | P28: 3.03%
A29: 19 | B29: Banking | C29: AXISBANK | D29: 2021-07-29 | E29: 764.95 | F29: 762.22 | G29: 758.23 | H29: 751.52 | I29: 747.53 | J29: 768.93 | K29: 772.92 | L29: 779.63 | M29: 766.2 | N29: 755.5 | O29: 32859600 | P29: 0.45%
A30: 20 | B30: Automobile | C30: BAJAJ-AUTO | D30: 2021-07-29 | E30: 4069.85 | F30: 4072.38 | G30: 4044.97 | H30: 4020.08 | I30: 3992.67 | J30: 4097.27 | K30: 4124.68 | L30: 4149.57 | M30: 4099.8 | N30: 4047.5 | O30: 1787750 | P30: 3.73%
A31: 21 | B31: Finance | C31: BAJAJFINSV | D31: 2021-07-29 | E31: 12410.75 | F31: 12305.02 | G31: 12162.13 | H31: 11913.52 | I31: 11770.63 | J31: 12553.63 | K31: 12696.52 | L31: 12945.13 | M31: 12447.9 | N31: 12056.4 | O31: 705375 | P31: 4.86%
A32: 22 | B32: Finance | C32: BAJFINANCE | D32: 2021-07-29 | E32: 6222.90 | F32: 6238.83 | G32: 6169.82 | H32: 6116.73 | I32: 6047.72 | J32: 6291.92 | K32: 6360.93 | L32: 6414.02 | M32: 6307.85 | N32: 6185.75 | O32: 4132250 | P32: 3.52%
A33: 23 | B33: Automobile | C33: BALKRISIND | D33: 2021-07-29 | E33: 2303.25 | F33: 2307.55 | G33: 2293.50 | H33: 2283.75 | I33: 2269.70 | J33: 2317.30 | K33: 2331.35 | L33: 2341.10 | M33: 2321.6 | N33: 2297.8 | O33: 1014800 | P33: -0.59%
A34: 24 | B34: Banking | C34: BANDHANBNK | D34: 2021-07-29 | E34: 320.95 | F34: 320.73 | G34: 318.27 | H34: 315.58 | I34: 313.12 | J34: 323.42 | K34: 325.88 | L34: 328.57 | M34: 323.2 | N34: 318.05 | O34: 16423200 | P34: 2.63%
A35: 25 | B35: Banking | C35: BANKBARODA | D35: 2021-07-29 | E35: 86.40 | F35: 85.93 | G35: 85.27 | H35: 84.13 | I35: 83.47 | J35: 87.07 | K35: 87.73 | L35: 88.87 | M35: 86.6 | N35: 84.8 | O35: 170550900 | P35: -0.54%
A36: 26 | B36: FMCG | C36: BATAINDIA | D36: 2021-07-29 | E36: 1584.80 | F36: 1588.73 | G36: 1573.92 | H36: 1563.03 | I36: 1548.22 | J36: 1599.62 | K36: 1614.43 | L36: 1625.32 | M36: 1603.55 | N36: 1577.85 | O36: 1549350 | P36: 3.22%
A37: 27 | B37: Capital_Goods | C37: BEL | D37: 2021-07-29 | E37: 183.00 | F37: 181.82 | G37: 180.28 | H37: 177.57 | I37: 176.03 | J37: 184.53 | K37: 186.07 | L37: 188.78 | M37: 183.35 | N37: 179.1 | O37: 25973000 | P37: -0.83%
A38: 28 | B38: FMCG | C38: BERGEPAINT | D38: 2021-07-29 | E38: 848.65 | F38: 839.38 | G38: 827.27 | H38: 805.88 | I38: 793.77 | J38: 860.77 | K38: 872.88 | L38: 894.27 | M38: 851.5 | N38: 818 | O38: 3300000 | P38: 17.83%
A39: 29 | B39: Automobile | C39: BHARATFORG | D39: 2021-07-29 | E39: 805.85 | F39: 793.83 | G39: 778.67 | H39: 751.48 | I39: 736.32 | J39: 821.02 | K39: 836.18 | L39: 863.37 | M39: 809 | N39: 766.65 | O39: 6030000 | P39: 11.57%
A40: 30 | B40: Telecom | C40: BHARTIARTL | D40: 2021-07-29 | E40: 530.70 | F40: 529.82 | G40: 527.78 | H40: 524.87 | I40: 522.83 | J40: 532.73 | K40: 534.77 | L40: 537.68 | M40: 531.85 | N40: 526.9 | O40: 109257126 | P40: -2.47%
A41: 31 | B41: Capital_Goods | C41: BHEL | D41: 2021-07-29 | E41: 68.15 | F41: 66.92 | G41: 65.28 | H41: 62.42 | I41: 60.78 | J41: 69.78 | K41: 71.42 | L41: 74.28 | M41: 68.55 | N41: 64.05 | O41: 113158500 | P41: 13.44%
A42: 32 | B42: Pharma | C42: BIOCON | D42: 2021-07-29 | E42: 392.90 | F42: 391.23 | G42: 387.87 | H42: 382.83 | I42: 379.47 | J42: 396.27 | K42: 399.63 | L42: 404.67 | M42: 394.6 | N42: 386.2 | O42: 16369100 | P42: -2.89%
A43: 33 | B43: Automobile | C43: BOSCHLTD | D43: 2021-07-29 | E43: 15467.30 | F43: 15422.50 | G43: 15325.00 | H43: 15182.70 | I43: 15085.20 | J43: 15564.80 | K43: 15662.30 | L43: 15804.60 | M43: 15520 | N43: 15280.2 | O43: 140350 | P43: -3.31%
A44: 34 | B44: Oil_Gas | C44: BPCL | D44: 2021-07-29 | E44: 461.90 | F44: 459.72 | G44: 456.98 | H44: 452.07 | I44: 449.33 | J44: 464.63 | K44: 467.37 | L44: 472.28 | M44: 462.45 | N44: 454.8 | O44: 34651800 | P44: 0.17%
A45: 35 | B45: FMCG | C45: BRITANNIA | D45: 2021-07-29 | E45: 3547.15 | F45: 3540.73 | G45: 3522.47 | H45: 3497.78 | I45: 3479.52 | J45: 3565.42 | K45: 3583.68 | L45: 3608.37 | M45: 3559 | N45: 3516.05 | O45: 2359600 | P45: -1.35%
A46: 36 | B46: Pharma | C46: CADILAHC | D46: 2021-07-29 | E46: 637.70 | F46: 635.47 | G46: 631.63 | H46: 625.57 | I46: 621.73 | J46: 641.53 | K46: 645.37 | L46: 651.43 | M46: 639.3 | N46: 629.4 | O46: 25665200 | P46: 1.20%
A47: 37 | B47: Banking | C47: CANBK | D47: 2021-07-29 | E47: 155.40 | F47: 154.67 | G47: 153.48 | H47: 151.57 | I47: 150.38 | J47: 156.58 | K47: 157.77 | L47: 159.68 | M47: 155.85 | N47: 152.75 | O47: 58093200 | P47: -0.51%
A48: 38 | B48: Finance | C48: CHOLAFIN | D48: 2021-07-29 | E48: 519.90 | F48: 522.28 | G48: 513.37 | H48: 506.83 | I48: 497.92 | J48: 528.82 | K48: 537.73 | L48: 544.27 | M48: 531.2 | N48: 515.75 | O48: 9241250 | P48: -3.18%
A49: 39 | B49: Pharma | C49: CIPLA | D49: 2021-07-29 | E49: 969.40 | F49: 969.40 | G49: 965.50 | H49: 961.60 | I49: 957.70 | J49: 973.30 | K49: 977.20 | L49: 981.10 | M49: 973.3 | N49: 965.5 | O49: 9711000 | P49: 2.57%
A50: 40 | B50: Others | C50: COALINDIA | D50: 2021-07-29 | E50: 148.05 | F50: 147.77 | G50: 147.13 | H50: 146.22 | I50: 145.58 | J50: 148.68 | K50: 149.32 | L50: 150.23 | M50: 148.4 | N50: 146.85 | O50: 59917200 | P50: 0.26%
A51: 41 | B51: Technology | C51: COFORGE | D51: 2021-07-29 | E51: 4214.30 | F51: 4180.30 | G51: 4140.00 | H51: 4065.70 | I51: 4025.40 | J51: 4254.60 | K51: 4294.90 | L51: 4369.20 | M51: 4220.6 | N51: 4106 | O51: 502800 | P51: 1.78%
A52: 42 | B52: FMCG | C52: COLPAL | D52: 2021-07-29 | E52: 1729.95 | F52: 1716.62 | G52: 1698.98 | H52: 1668.02 | I52: 1650.38 | J52: 1747.58 | K52: 1765.22 | L52: 1796.18 | M52: 1734.25 | N52: 1685.65 | O52: 2371250 | P52: -1.55%
A53: 43 | B53: Others | C53: CONCOR | D53: 2021-07-29 | E53: 695.30 | F53: 696.95 | G53: 687.40 | H53: 679.50 | I53: 669.95 | J53: 704.85 | K53: 714.40 | L53: 722.30 | M53: 706.5 | N53: 689.05 | O53: 6586482 | P53: -0.50%
A54: 44 | B54: Others | C54: COROMANDEL | D54: 2021-07-29 | E54: 897.90 | F54: 901.08 | G54: 891.82 | H54: 885.73 | I54: 876.47 | J54: 907.17 | K54: 916.43 | L54: 922.52 | M54: 910.35 | N54: 895 | O54: 653750 | P54: 10.92%
A55: 45 | B55: Banking | C55: CUB | D55: 2021-07-29 | E55: 165.85 | F55: 166.05 | G55: 164.80 | H55: 163.75 | I55: 162.50 | J55: 167.10 | K55: 168.35 | L55: 169.40 | M55: 167.3 | N55: 165 | O55: 11563000 | P55: 3.50%
A56: 46 | B56: Capital_Goods | C56: CUMMINSIND | D56: 2021-07-29 | E56: 872.40 | F56: 875.13 | G56: 862.77 | H56: 853.13 | I56: 840.77 | J56: 884.77 | K56: 897.13 | L56: 906.77 | M56: 887.5 | N56: 865.5 | O56: 3055200 | P56: -0.08%
A57: 47 | B57: FMCG | C57: DABUR | D57: 2021-07-29 | E57: 596.70 | F57: 595.57 | G57: 592.68 | H57: 588.67 | I57: 585.78 | J57: 599.58 | K57: 602.47 | L57: 606.48 | M57: 598.45 | N57: 591.55 | O57: 7941250 | P57: 0.05%
A58: 48 | B58: Chemical | C58: DEEPAKNTR | D58: 2021-07-29 | E58: 1949.20 | F58: 1934.72 | G58: 1914.43 | H58: 1879.67 | I58: 1859.38 | J58: 1969.48 | K58: 1989.77 | L58: 2024.53 | M58: 1955 | N58: 1899.95 | O58: 3229500 | P58: 3.43%
A59: 49 | B59: Pharma | C59: DIVISLAB | D59: 2021-07-29 | E59: 4574.95 | F59: 4553.62 | G59: 4522.38 | H59: 4469.82 | I59: 4438.58 | J59: 4606.18 | K59: 4637.42 | L59: 4689.98 | M59: 4584.85 | N59: 4501.05 | O59: 2327800 | P59: 0.21%
A60: 50 | B60: Realty | C60: DLF | D60: 2021-07-29 | E60: 296.35 | F60: 295.33 | G60: 291.27 | H60: 286.18 | I60: 282.12 | J60: 300.42 | K60: 304.48 | L60: 309.57 | M60: 299.4 | N60: 290.25 | O60: 36230700 | P60: 2.18%
A61: 51 | B61: Pharma | C61: DRREDDY | D61: 2021-07-29 | E61: 5549.45 | F61: 5554.05 | G61: 5510.40 | H61: 5471.35 | I61: 5427.70 | J61: 5593.10 | K61: 5636.75 | L61: 5675.80 | M61: 5597.7 | N61: 5515 | O61: 2313500 | P61: -2.51%
A62: 52 | B62: Automobile | C62: EICHERMOT | D62: 2021-07-29 | E62: 2704.15 | F62: 2706.58 | G62: 2686.82 | H62: 2669.48 | I62: 2649.72 | J62: 2723.92 | K62: 2743.68 | L62: 2761.02 | M62: 2726.35 | N62: 2689.25 | O62: 2033150 | P62: 0.48%
A63: 53 | B63: Automobile | C63: ESCORTS | D63: 2021-07-29 | E63: 1201.50 | F63: 1195.63 | G63: 1186.47 | H63: 1171.43 | I63: 1162.27 | J63: 1210.67 | K63: 1219.83 | L63: 1234.87 | M63: 1204.8 | N63: 1180.6 | O63: 5009400 | P63: -5.39%
A64: 54 | B64: Automobile | C64: EXIDEIND | D64: 2021-07-29 | E64: 183.90 | F64: 183.17 | G64: 182.28 | H64: 180.67 | I64: 179.78 | J64: 184.78 | K64: 185.67 | L64: 187.28 | M64: 184.05 | N64: 181.55 | O64: 15044400 | P64: 0.10%
A65: 55 | B65: Banking | C65: FEDERALBNK | D65: 2021-07-29 | E65: 86.65 | F65: 86.48 | G65: 85.77 | H65: 84.88 | I65: 84.17 | J65: 87.37 | K65: 88.08 | L65: 88.97 | M65: 87.2 | N65: 85.6 | O65: 80250000 | P65: 1.30%
A66: 56 | B66: Oil_Gas | C66: GAIL | D66: 2021-07-29 | E66: 150.80 | F66: 150.83 | G66: 149.27 | H66: 147.73 | I66: 146.17 | J66: 152.37 | K66: 153.93 | L66: 155.47 | M66: 152.4 | N66: 149.3 | O66: 30457300 | P66: 4.98%
A67: 57 | B67: Pharma | C67: GLENMARK | D67: 2021-07-29 | E67: 663.95 | F67: 660.05 | G67: 652.10 | H67: 640.25 | I67: 632.30 | J67: 671.90 | K67: 679.85 | L67: 691.70 | M67: 668 | N67: 648.2 | O67: 7095500 | P67: -3.00%
A68: 58 | B68: Infrastructure | C68: GMRINFRA | D68: 2021-07-29 | E68: 31.90 | F68: 31.82 | G68: 31.58 | H68: 31.27 | I68: 31.03 | J68: 32.13 | K68: 32.37 | L68: 32.68 | M68: 32.05 | N68: 31.5 | O68: 119070000 | P68: -1.69%
A69: 59 | B69: FMCG | C69: GODREJCP | D69: 2021-07-29 | E69: 965.35 | F69: 968.15 | G69: 954.50 | H69: 943.65 | I69: 930.00 | J69: 979.00 | K69: 992.65 | L69: 1003.50 | M69: 981.8 | N69: 957.3 | O69: 4247000 | P69: -5.77%
A70: 60 | B70: Realty | C70: GODREJPROP | D70: 2021-07-29 | E70: 1490.00 | F70: 1473.77 | G70: 1444.53 | H70: 1399.07 | I70: 1369.83 | J70: 1519.23 | K70: 1548.47 | L70: 1593.93 | M70: 1503 | N70: 1428.3 | O70: 2195700 | P70: 4.58%
A71: 61 | B71: Pharma | C71: GRANULES | D71: 2021-07-29 | E71: 344.15 | F71: 341.00 | G71: 337.00 | H71: 329.85 | I71: 325.85 | J71: 348.15 | K71: 352.15 | L71: 359.30 | M71: 345 | N71: 333.85 | O71: 13619850 | P71: 2.60%
A72: 62 | B72: Cement | C72: GRASIM | D72: 2021-07-29 | E72: 1500.50 | F72: 1495.75 | G72: 1485.50 | H72: 1470.50 | I72: 1460.25 | J72: 1510.75 | K72: 1521.00 | L72: 1536.00 | M72: 1506 | N72: 1480.75 | O72: 11505450 | P72: 1.73%
A73: 63 | B73: Oil_Gas | C73: GUJGASLTD | D73: 2021-07-29 | E73: 674.90 | F73: 673.50 | G73: 669.05 | H73: 663.20 | I73: 658.75 | J73: 679.35 | K73: 683.80 | L73: 689.65 | M73: 677.95 | N73: 667.65 | O73: 2203750 | P73: -3.45%
A74: 64 | B74: Capital_Goods | C74: HAVELLS | D74: 2021-07-29 | E74: 1026.85 | F74: 1024.20 | G74: 1017.40 | H74: 1007.95 | I74: 1001.15 | J74: 1033.65 | K74: 1040.45 | L74: 1049.90 | M74: 1031 | N74: 1014.75 | O74: 5616000 | P74: 1.14%
A75: 65 | B75: Technology | C75: HCLTECH | D75: 2021-07-29 | E75: 971.45 | F75: 967.03 | G75: 961.27 | H75: 951.08 | I75: 945.32 | J75: 977.22 | K75: 982.98 | L75: 993.17 | M75: 972.8 | N75: 956.85 | O75: 18473000 | P75: 0.51%
A76: 66 | B76: Finance | C76: HDFC | D76: 2021-07-29 | E76: 2534.25 | F76: 2528.97 | G76: 2508.93 | H76: 2483.62 | I76: 2463.58 | J76: 2554.28 | K76: 2574.32 | L76: 2599.63 | M76: 2549 | N76: 2503.65 | O76: 16058100 | P76: -2.52%
A77: 67 | B77: Finance | C77: HDFCAMC | D77: 2021-07-29 | E77: 2914.55 | F77: 2914.72 | G77: 2901.93 | H77: 2889.32 | I77: 2876.53 | J77: 2927.33 | K77: 2940.12 | L77: 2952.73 | M77: 2927.5 | N77: 2902.1 | O77: 689000 | P77: 0.23%
A78: 68 | B78: Banking | C78: HDFCBANK | D78: 2021-07-29 | E78: 1542.00 | F78: 1541.47 | G78: 1533.73 | H78: 1525.47 | I78: 1517.73 | J78: 1549.73 | K78: 1557.47 | L78: 1565.73 | M78: 1549.2 | N78: 1533.2 | O78: 25531550 | P78: -2.64%
A79: 69 | B79: Finance | C79: HDFCLIFE | D79: 2021-07-29 | E79: 688.20 | F79: 686.12 | G79: 683.28 | H79: 678.37 | I79: 675.53 | J79: 691.03 | K79: 693.87 | L79: 698.78 | M79: 688.95 | N79: 681.2 | O79: 22140800 | P79: -1.92%
A80: 70 | B80: Automobile | C80: HEROMOTOCO | D80: 2021-07-29 | E80: 2892.55 | F80: 2887.20 | G80: 2877.35 | H80: 2862.15 | I80: 2852.30 | J80: 2902.40 | K80: 2912.25 | L80: 2927.45 | M80: 2897.05 | N80: 2872 | O80: 4522200 | P80: 1.58%
A81: 71 | B81: Metals | C81: HINDALCO | D81: 2021-07-29 | E81: 394.65 | F81: 391.08 | G81: 385.27 | H81: 375.88 | I81: 370.07 | J81: 400.47 | K81: 406.28 | L81: 415.67 | M81: 396.9 | N81: 381.7 | O81: 30461200 | P81: 4.65%
A82: 72 | B82: Oil_Gas | C82: HINDPETRO | D82: 2021-07-29 | E82: 307.75 | F82: 305.37 | G82: 302.08 | H82: 296.42 | I82: 293.13 | J82: 311.03 | K82: 314.32 | L82: 319.98 | M82: 308.65 | N82: 299.7 | O82: 19699200 | P82: 6.34%
A83: 73 | B83: FMCG | C83: HINDUNILVR | D83: 2021-07-29 | E83: 2485.90 | F83: 2478.88 | G83: 2462.07 | H83: 2438.23 | I83: 2421.42 | J83: 2502.72 | K83: 2519.53 | L83: 2543.37 | M83: 2495.7 | N83: 2455.05 | O83: 6303900 | P83: 0.90%
A84: 74 | B84: Finance | C84: IBULHSGFIN | D84: 2021-07-29 | E84: 264.60 | F84: 263.33 | G84: 260.52 | H84: 256.43 | I84: 253.62 | J84: 267.42 | K84: 270.23 | L84: 274.32 | M84: 266.15 | N84: 259.25 | O84: 31393700 | P84: -3.77%
A85: 75 | B85: Banking | C85: ICICIBANK | D85: 2021-07-29 | E85: 653.95 | F85: 651.65 | G85: 648.70 | H85: 643.45 | I85: 640.50 | J85: 656.90 | K85: 659.85 | L85: 665.10 | M85: 654.6 | N85: 646.4 | O85: 68953500 | P85: 0.19%
A86: 76 | B86: Finance | C86: ICICIGI | D86: 2021-07-29 | E86: 1589.15 | F86: 1579.95 | G86: 1564.90 | H86: 1540.65 | I86: 1525.60 | J86: 1604.20 | K86: 1619.25 | L86: 1643.50 | M86: 1595 | N86: 1555.7 | O86: 955825 | P86: -4.26%
A87: 77 | B87: Finance | C87: ICICIPRULI | D87: 2021-07-29 | E87: 627.85 | F87: 629.03 | G87: 622.52 | H87: 617.18 | I87: 610.67 | J87: 634.37 | K87: 640.88 | L87: 646.22 | M87: 635.55 | N87: 623.7 | O87: 6139500 | P87: -0.10%
A88: 78 | B88: Telecom | C88: IDEA | D88: 2021-07-29 | E88: 8.95 | F88: 8.92 | G88: 8.83 | H88: 8.72 | I88: 8.63 | J88: 9.03 | K88: 9.12 | L88: 9.23 | M88: 9 | N88: 8.8 | O88: 742980000 | P88: 0.06%
A89: 79 | B89: Banking | C89: IDFCFIRSTB | D89: 2021-07-29 | E89: 54.25 | F89: 53.95 | G89: 53.55 | H89: 52.85 | I89: 52.45 | J89: 54.65 | K89: 55.05 | L89: 55.75 | M89: 54.35 | N89: 53.25 | O89: 182856000 | P89: 1.24%
A90: 80 | B90: Oil_Gas | C90: IGL | D90: 2021-07-29 | E90: 564.20 | F90: 564.02 | G90: 558.48 | H90: 552.77 | I90: 547.23 | J90: 569.73 | K90: 575.27 | L90: 580.98 | M90: 569.55 | N90: 558.3 | O90: 10297375 | P90: 0.09%
A91: 81 | B91: Infrastructure | C91: INDHOTEL | D91: 2021-07-29 | E91: 153.20 | F91: 152.43 | G91: 146.97 | H91: 140.73 | I91: 135.27 | J91: 158.67 | K91: 164.13 | L91: 170.37 | M91: 157.9 | N91: 146.2 | O91: 7421700 | P91: 61.68%
A92: 82 | B92: Others | C92: INDIGO | D92: 2021-07-29 | E92: 1814.75 | F92: 1802.60 | G92: 1787.20 | H92: 1759.65 | I92: 1744.25 | J92: 1830.15 | K92: 1845.55 | L92: 1873.10 | M92: 1818 | N92: 1775.05 | O92: 2571000 | P92: 1.60%
A93: 83 | B93: Banking | C93: INDUSINDBK | D93: 2021-07-29 | E93: 1047.40 | F93: 1037.88 | G93: 1025.87 | H93: 1004.33 | I93: 992.32 | J93: 1059.42 | K93: 1071.43 | L93: 1092.97 | M93: 1049.9 | N93: 1016.35 | O93: 16787700 | P93: 0.91%
A94: 84 | B94: Telecom | C94: INDUSTOWER | D94: 2021-07-29 | E94: 235.55 | F94: 234.53 | G94: 232.12 | H94: 228.68 | I94: 226.27 | J94: 237.97 | K94: 240.38 | L94: 243.82 | M94: 236.95 | N94: 231.1 | O94: 15453200 | P94: 0.11%
A95: 85 | B95: Technology | C95: INFY | D95: 2021-07-29 | E95: 1567.10 | F95: 1562.68 | G95: 1551.42 | H95: 1535.73 | I95: 1524.47 | J95: 1578.37 | K95: 1589.63 | L95: 1605.32 | M95: 1573.95 | N95: 1547 | O95: 30534000 | P95: -2.19%
A96: 86 | B96: Oil_Gas | C96: IOC | D96: 2021-07-29 | E96: 108.50 | F96: 108.22 | G96: 107.68 | H96: 106.87 | I96: 106.33 | J96: 109.03 | K96: 109.57 | L96: 110.38 | M96: 108.75 | N96: 107.4 | O96: 52507000 | P96: 0.26%
A97: 87 | B97: Others | C97: IRCTC | D97: 2021-07-29 | E97: 2195.20 | F97: 2187.95 | G97: 2171.90 | H97: 2148.60 | I97: 2132.55 | J97: 2211.25 | K97: 2227.30 | L97: 2250.60 | M97: 2204 | N97: 2164.65 | O97: 2211625 | P97: -6.54%
A98: 88 | B98: FMCG | C98: ITC | D98: 2021-07-29 | E98: 204.85 | F98: 204.58 | G98: 203.07 | H98: 201.28 | I98: 199.77 | J98: 206.37 | K98: 207.88 | L98: 209.67 | M98: 206.1 | N98: 202.8 | O98: 175798400 | P98: -0.13%
A99: 89 | B99: Metals | C99: JINDALSTEL | D99: 2021-07-29 | E99: 402.35 | F99: 397.63 | G99: 390.37 | H99: 378.38 | I99: 371.12 | J99: 409.62 | K99: 416.88 | L99: 428.87 | M99: 404.9 | N99: 385.65 | O99: 34705000 | P99: 4.16%
A100: 90 | B100: Metals | C100: JSWSTEEL | D100: 2021-07-29 | E100: 693.85 | F100: 687.80 | G100: 677.90 | H100: 661.95 | I100: 652.05 | J100: 703.75 | K100: 713.65 | L100: 729.60 | M100: 697.7 | N100: 671.85 | O100: 43344450 | P100: 1.84%
A101: 91 | B101: Others | C101: JUBLFOOD | D101: 2021-07-29 | E101: 3165.10 | F101: 3157.82 | G101: 3145.78 | H101: 3126.47 | I101: 3114.43 | J101: 3177.13 | K101: 3189.17 | L101: 3208.48 | M101: 3169.85 | N101: 3138.5 | O101: 1403500 | P101: -0.60%
A102: 92 | B102: Banking | C102: KOTAKBANK | D102: 2021-07-29 | E102: 1765.10 | F102: 1761.22 | G102: 1751.03 | H102: 1736.97 | I102: 1726.78 | J102: 1775.28 | K102: 1785.47 | L102: 1799.53 | M102: 1771.4 | N102: 1747.15 | O102: 19826000 | P102: -2.22%
A103: 93 | B103: Finance | C103: L&TFH | D103: 2021-07-29 | E103: 93.75 | F103: 93.47 | G103: 92.93 | H103: 92.12 | I103: 91.58 | J103: 94.28 | K103: 94.82 | L103: 95.63 | M103: 94 | N103: 92.65 | O103: 66001904 | P103: -1.06%
A104: 94 | B104: Others | C104: LALPATHLAB | D104: 2021-07-29 | E104: 3445.30 | F104: 3436.15 | G104: 3409.30 | H104: 3373.30 | I104: 3346.45 | J104: 3472.15 | K104: 3499.00 | L104: 3535.00 | M104: 3463 | N104: 3400.15 | O104: 539250 | P104: 0.51%
A105: 95 | B105: Finance | C105: LICHSGFIN | D105: 2021-07-29 | E105: 466.85 | F105: 466.88 | G105: 463.72 | H105: 460.58 | I105: 457.42 | J105: 470.02 | K105: 473.18 | L105: 476.32 | M105: 470.05 | N105: 463.75 | O105: 14234000 | P105: 1.38%
A106: 96 | B106: Capital_Goods | C106: LT | D106: 2021-07-29 | E106: 1502.40 | F106: 1496.35 | G106: 1487.95 | H106: 1473.50 | I106: 1465.10 | J106: 1510.80 | K106: 1519.20 | L106: 1533.65 | M106: 1504.75 | N106: 1481.9 | O106: 14975300 | P106: -2.66%
A107: 97 | B107: Technology | C107: LTI | D107: 2021-07-29 | E107: 4040.90 | F107: 4033.17 | G107: 3993.33 | H107: 3945.77 | I107: 3905.93 | J107: 4080.73 | K107: 4120.57 | L107: 4168.13 | M107: 4073 | N107: 3985.6 | O107: 673200 | P107: -0.29%
A108: 98 | B108: Technology | C108: LTTS | D108: 2021-07-29 | E108: 2913.25 | F108: 2893.38 | G108: 2863.77 | H108: 2814.28 | I108: 2784.67 | J108: 2942.87 | K108: 2972.48 | L108: 3021.97 | M108: 2923 | N108: 2843.9 | O108: 487200 | P108: 0.08%
A109: 99 | B109: Pharma | C109: LUPIN | D109: 2021-07-29 | E109: 1149.45 | F109: 1146.03 | G109: 1139.92 | H109: 1130.38 | I109: 1124.27 | J109: 1155.57 | K109: 1161.68 | L109: 1171.22 | M109: 1152.15 | N109: 1136.5 | O109: 7719700 | P109: 1.62%
A110: 100 | B110: Automobile | C110: M&M | D110: 2021-07-29 | E110: 772.55 | F110: 770.03 | G110: 765.67 | H110: 758.78 | I110: 754.42 | J110: 776.92 | K110: 781.28 | L110: 788.17 | M110: 774.4 | N110: 763.15 | O110: 11617200 | P110: 3.52%
A111: 101 | B111: Finance | C111: M&MFIN | D111: 2021-07-29 | E111: 160.95 | F111: 160.95 | G111: 159.90 | H111: 158.85 | I111: 157.80 | J111: 162.00 | K111: 163.05 | L111: 164.10 | M111: 162 | N111: 159.9 | O111: 42692000 | P111: -1.44%
A112: 102 | B112: Finance | C112: MANAPPURAM | D112: 2021-07-29 | E112: 178.30 | F112: 178.28 | G112: 176.57 | H112: 174.83 | I112: 173.12 | J112: 180.02 | K112: 181.73 | L112: 183.47 | M112: 180 | N112: 176.55 | O112: 25818000 | P112: 2.65%
A113: 103 | B113: FMCG | C113: MARICO | D113: 2021-07-29 | E113: 534.90 | F113: 532.43 | G113: 529.07 | H113: 523.23 | I113: 519.87 | J113: 538.27 | K113: 541.63 | L113: 547.47 | M113: 535.8 | N113: 526.6 | O113: 6684000 | P113: 2.14%
A114: 104 | B114: Automobile | C114: MARUTI | D114: 2021-07-29 | E114: 7488.45 | F114: 7518.62 | G114: 7440.08 | H114: 7391.72 | I114: 7313.18 | J114: 7566.98 | K114: 7645.52 | L114: 7693.88 | M114: 7597.15 | N114: 7470.25 | O114: 1940200 | P114: 3.05%
A115: 105 | B115: FMCG | C115: MCDOWELL-N | D115: 2021-07-29 | E115: 667.20 | F115: 663.92 | G115: 659.33 | H115: 651.47 | I115: 646.88 | J115: 671.78 | K115: 676.37 | L115: 684.23 | M115: 668.5 | N115: 656.05 | O115: 11525000 | P115: 0.71%
A116: 106 | B116: Pharma | C116: METROPOLIS | D116: 2021-07-29 | E116: 2976.35 | F116: 2975.20 | G116: 2945.40 | H116: 2914.45 | I116: 2884.65 | J116: 3006.15 | K116: 3035.95 | L116: 3066.90 | M116: 3005 | N116: 2944.25 | O116: 252000 | P116: -3.08%
A117: 107 | B117: Finance | C117: MFSL | D117: 2021-07-29 | E117: 1053.55 | F117: 1054.27 | G117: 1039.58 | H117: 1025.62 | I117: 1010.93 | J117: 1068.23 | K117: 1082.92 | L117: 1096.88 | M117: 1068.95 | N117: 1040.3 | O117: 3062800 | P117: -1.26%
A118: 108 | B118: Oil_Gas | C118: MGL | D118: 2021-07-29 | E118: 1168.65 | F118: 1164.38 | G118: 1157.22 | H118: 1145.78 | I118: 1138.62 | J118: 1175.82 | K118: 1182.98 | L118: 1194.42 | M118: 1171.55 | N118: 1152.95 | O118: 2221200 | P118: -2.96%
A119: 109 | B119: Technology | C119: MINDTREE | D119: 2021-07-29 | E119: 2555.45 | F119: 2541.45 | G119: 2518.90 | H119: 2482.35 | I119: 2459.80 | J119: 2578.00 | K119: 2600.55 | L119: 2637.10 | M119: 2564 | N119: 2504.9 | O119: 1807600 | P119: -2.40%
A120: 110 | B120: Automobile | C120: MOTHERSUMI | D120: 2021-07-29 | E120: 236.70 | F120: 235.28 | G120: 232.07 | H120: 227.43 | I120: 224.22 | J120: 239.92 | K120: 243.13 | L120: 247.77 | M120: 238.5 | N120: 230.65 | O120: 32256000 | P120: 3.23%
A121: 111 | B121: Technology | C121: MPHASIS | D121: 2021-07-29 | E121: 2166.05 | F121: 2142.70 | G121: 2113.40 | H121: 2060.75 | I121: 2031.45 | J121: 2195.35 | K121: 2224.65 | L121: 2277.30 | M121: 2172 | N121: 2090.05 | O121: 510900 | P121: -4.90%
A122: 112 | B122: Automobile | C122: MRF | D122: 2021-07-29 | E122: 81218.55 | F122: 81151.12 | G122: 80672.23 | H122: 80125.92 | I122: 79647.03 | J122: 81697.43 | K122: 82176.32 | L122: 82722.63 | M122: 81630 | N122: 80604.8 | O122: 43880 | P122: -1.35%
A123: 113 | B123: Finance | C123: MUTHOOTFIN | D123: 2021-07-29 | E123: 1570.45 | F123: 1557.65 | G123: 1540.30 | H123: 1510.15 | I123: 1492.80 | J123: 1587.80 | K123: 1605.15 | L123: 1635.30 | M123: 1575 | N123: 1527.5 | O123: 3474750 | P123: 5.01%
A124: 114 | B124: Others | C124: NAM-INDIA | D124: 2021-07-29 | E124: 377.25 | F124: 375.13 | G124: 372.32 | H124: 367.38 | I124: 364.57 | J124: 380.07 | K124: 382.88 | L124: 387.82 | M124: 377.95 | N124: 370.2 | O124: 2161600 | P124: 0.37%
A125: 115 | B125: Metals | C125: NATIONALUM | D125: 2021-07-29 | E125: 85.05 | F125: 84.23 | G125: 81.47 | H125: 77.88 | I125: 75.12 | J125: 87.82 | K125: 90.58 | L125: 94.17 | M125: 87 | N125: 80.65 | O125: 75548000 | P125: -6.44%
A126: 116 | B126: Others | C126: NAUKRI | D126: 2021-07-29 | E126: 5361.70 | F126: 5381.33 | G126: 5305.67 | H126: 5249.63 | I126: 5173.97 | J126: 5437.37 | K126: 5513.03 | L126: 5569.07 | M126: 5457 | N126: 5325.3 | O126: 1147625 | P126: 1.99%
A127: 117 | B127: Chemical | C127: NAVINFLUOR | D127: 2021-07-29 | E127: 3865.40 | F127: 3859.47 | G127: 3803.93 | H127: 3742.47 | I127: 3686.93 | J127: 3920.93 | K127: 3976.47 | L127: 4037.93 | M127: 3915 | N127: 3798 | O127: 411525 | P127: -2.76%
A128: 118 | B128: FMCG | C128: NESTLEIND | D128: 2021-07-29 | E128: 17758.20 | F128: 17667.67 | G128: 17535.33 | H128: 17312.47 | I128: 17180.13 | J128: 17890.53 | K128: 18022.87 | L128: 18245.73 | M128: 17800 | N128: 17444.8 | O128: 226700 | P128: -2.45%
A129: 119 | B129: Metals | C129: NMDC | D129: 2021-07-29 | E129: 170.60 | F129: 169.70 | G129: 168.45 | H129: 166.30 | I129: 165.05 | J129: 171.85 | K129: 173.10 | L129: 175.25 | M129: 170.95 | N129: 167.55 | O129: 98563700 | P129: -8.07%
A130: 120 | B130: Power | C130: NTPC | D130: 2021-07-29 | E130: 117.55 | F130: 117.43 | G130: 116.87 | H130: 116.18 | I130: 115.62 | J130: 118.12 | K130: 118.68 | L130: 119.37 | M130: 118 | N130: 116.75 | O130: 45810900 | P130: -0.99%
A131: 121 | B131: Oil_Gas | C131: ONGC | D131: 2021-07-29 | E131: 120.10 | F131: 119.58 | G131: 118.37 | H131: 116.63 | I131: 115.42 | J131: 121.32 | K131: 122.53 | L131: 124.27 | M131: 120.8 | N131: 117.85 | O131: 64456700 | P131: -6.81%
A132: 122 | B132: Textile | C132: PAGEIND | D132: 2021-07-29 | E132: 30955.50 | F132: 30652.62 | G132: 30282.88 | H132: 29610.27 | I132: 29240.53 | J132: 31325.23 | K132: 31694.97 | L132: 32367.58 | M132: 31022.35 | N132: 29980 | O132: 61800 | P132: -1.86%
A133: 123 | B133: Pharma | C133: PEL | D133: 2021-07-29 | E133: 2346.40 | F133: 2349.47 | G133: 2324.98 | H133: 2303.57 | I133: 2279.08 | J133: 2370.88 | K133: 2395.37 | L133: 2416.78 | M133: 2373.95 | N133: 2328.05 | O133: 3223275 | P133: 0.95%
A134: 124 | B134: Oil_Gas | C134: PETRONET | D134: 2021-07-29 | E134: 225.35 | F134: 225.25 | G134: 224.40 | H134: 223.45 | I134: 222.60 | J134: 226.20 | K134: 227.05 | L134: 228.00 | M134: 226.1 | N134: 224.3 | O134: 24204000 | P134: -1.03%
A135: 125 | B135: Finance | C135: PFC | D135: 2021-07-29 | E135: 122.25 | F135: 121.83 | G135: 121.27 | H135: 120.28 | I135: 119.72 | J135: 122.82 | K135: 123.38 | L135: 124.37 | M135: 122.4 | N135: 120.85 | O135: 45632000 | P135: 2.38%
A136: 126 | B136: Pharma | C136: PFIZER | D136: 2021-07-29 | E136: 5725.75 | F136: 5749.52 | G136: 5682.13 | H136: 5638.52 | I136: 5571.13 | J136: 5793.13 | K136: 5860.52 | L136: 5904.13 | M136: 5816.9 | N136: 5705.9 | O136: 366125 | P136: -0.20%
A137: 127 | B137: FMCG | C137: PIDILITIND | D137: 2021-07-29 | E137: 2272.30 | F137: 2263.03 | G137: 2236.17 | H137: 2200.03 | I137: 2173.17 | J137: 2299.17 | K137: 2326.03 | L137: 2362.17 | M137: 2289.9 | N137: 2226.9 | O137: 2080000 | P137: -1.07%
A138: 128 | B138: Chemical | C138: PIIND | D138: 2021-07-29 | E138: 3015.45 | F138: 3005.60 | G138: 2987.20 | H138: 2958.95 | I138: 2940.55 | J138: 3033.85 | K138: 3052.25 | L138: 3080.50 | M138: 3024 | N138: 2977.35 | O138: 761500 | P138: 0.07%
A139: 129 | B139: Banking | C139: PNB | D139: 2021-07-29 | E139: 41.85 | F139: 41.88 | G139: 41.62 | H139: 41.38 | I139: 41.12 | J139: 42.12 | K139: 42.38 | L139: 42.62 | M139: 42.15 | N139: 41.65 | O139: 340496000 | P139: -2.03%
A140: 130 | B140: Power | C140: POWERGRID | D140: 2021-07-29 | E140: 231.40 | F140: 230.87 | G140: 230.03 | H140: 228.67 | I140: 227.83 | J140: 232.23 | K140: 233.07 | L140: 234.43 | M140: 231.7 | N140: 229.5 | O140: 22156000 | P140: -0.82%
A141: 131 | B141: Media | C141: PVR | D141: 2021-07-29 | E141: 1401.95 | F141: 1407.63 | G141: 1389.27 | H141: 1376.58 | I141: 1358.22 | J141: 1420.32 | K141: 1438.68 | L141: 1451.37 | M141: 1426 | N141: 1394.95 | O141: 1478224 | P141: -1.65%
A142: 132 | B142: Cement | C142: RAMCOCEM | D142: 2021-07-29 | E142: 1083.90 | F142: 1082.77 | G142: 1071.58 | H142: 1059.27 | I142: 1048.08 | J142: 1095.08 | K142: 1106.27 | L142: 1118.58 | M142: 1093.95 | N142: 1070.45 | O142: 1773950 | P142: -1.14%
A143: 133 | B143: Banking | C143: RBLBANK | D143: 2021-07-29 | E143: 224.55 | F143: 220.70 | G143: 215.90 | H143: 207.25 | I143: 202.45 | J143: 229.35 | K143: 234.15 | L143: 242.80 | M143: 225.5 | N143: 212.05 | O143: 25427200 | P143: 8.72%
A144: 134 | B144: Power | C144: RECLTD | D144: 2021-07-29 | E144: 144.55 | F144: 144.45 | G144: 143.35 | H144: 142.15 | I144: 141.05 | J144: 145.65 | K144: 146.75 | L144: 147.95 | M144: 145.55 | N144: 143.25 | O144: 23436000 | P144: -1.49%
A145: 135 | B145: Oil_Gas | C145: RELIANCE | D145: 2021-07-29 | E145: 2115.85 | F145: 2117.48 | G145: 2102.52 | H145: 2089.18 | I145: 2074.22 | J145: 2130.82 | K145: 2145.78 | L145: 2159.12 | M145: 2132.45 | N145: 2104.15 | O145: 43045750 | P145: 1.87%
A146: 136 | B146: Metals | C146: SAIL | D146: 2021-07-29 | E146: 128.80 | F146: 126.98 | G146: 123.72 | H146: 118.63 | I146: 115.37 | J146: 132.07 | K146: 135.33 | L146: 140.42 | M146: 130.25 | N146: 121.9 | O146: 187292500 | P146: 1.91%
A147: 137 | B147: Finance | C147: SBILIFE | D147: 2021-07-29 | E147: 1019.35 | F147: 1022.42 | G147: 1013.73 | H147: 1008.12 | I147: 999.43 | J147: 1028.03 | K147: 1036.72 | L147: 1042.33 | M147: 1031.1 | N147: 1016.8 | O147: 5505000 | P147: -0.96%
A148: 138 | B148: Banking | C148: SBIN | D148: 2021-07-29 | E148: 434.90 | F148: 433.12 | G148: 430.53 | H148: 426.17 | I148: 423.58 | J148: 437.48 | K148: 440.07 | L148: 444.43 | M148: 435.7 | N148: 428.75 | O148: 85084500 | P148: -0.17%
A149: 139 | B149: Cement | C149: SHREECEM | D149: 2021-07-29 | E149: 27676.95 | F149: 27728.55 | G149: 27258.10 | H149: 26839.25 | I149: 26368.80 | J149: 28147.40 | K149: 28617.85 | L149: 29036.70 | M149: 28199 | N149: 27309.7 | O149: 156975 | P149: 4.23%
A150: 140 | B150: Capital_Goods | C150: SIEMENS | D150: 2021-07-29 | E150: 2022.00 | F150: 2026.25 | G150: 2008.30 | H150: 1994.60 | I150: 1976.65 | J150: 2039.95 | K150: 2057.90 | L150: 2071.60 | M150: 2044.2 | N150: 2012.55 | O150: 1274625 | P150: 4.39%
A151: 141 | B151: Textile | C151: SRF | D151: 2021-07-29 | E151: 7615.60 | F151: 7597.42 | G151: 7565.33 | H151: 7515.07 | I151: 7482.98 | J151: 7647.68 | K151: 7679.77 | L151: 7730.03 | M151: 7629.5 | N151: 7547.15 | O151: 367125 | P151: 0.75%
A152: 142 | B152: Finance | C152: SRTRANSFIN | D152: 2021-07-29 | E152: 1448.35 | F152: 1438.85 | G152: 1425.10 | H152: 1401.85 | I152: 1388.10 | J152: 1462.10 | K152: 1475.85 | L152: 1499.10 | M152: 1452.6 | N152: 1415.6 | O152: 4148800 | P152: -4.83%
A153: 143 | B153: Pharma | C153: SUNPHARMA | D153: 2021-07-29 | E153: 682.85 | F153: 682.62 | G153: 671.73 | H153: 660.62 | I153: 649.73 | J153: 693.73 | K153: 704.62 | L153: 715.73 | M153: 693.5 | N153: 671.5 | O153: 37289000 | P153: 0.45%
A154: 144 | B154: Media | C154: SUNTV | D154: 2021-07-29 | E154: 525.75 | F154: 528.13 | G154: 521.82 | H154: 517.88 | I154: 511.57 | J154: 532.07 | K154: 538.38 | L154: 542.32 | M154: 534.45 | N154: 524.2 | O154: 13341000 | P154: 1.47%
A155: 145 | B155: Chemical | C155: TATACHEM | D155: 2021-07-29 | E155: 774.40 | F155: 769.70 | G155: 763.50 | H155: 752.60 | I155: 746.40 | J155: 780.60 | K155: 786.80 | L155: 797.70 | M155: 775.9 | N155: 758.8 | O155: 8521000 | P155: -0.18%
A156: 146 | B156: FMCG | C156: TATACONSUM | D156: 2021-07-29 | E156: 765.35 | F156: 762.68 | G156: 757.72 | H156: 750.08 | I156: 745.12 | J156: 770.32 | K156: 775.28 | L156: 782.92 | M156: 767.65 | N156: 755.05 | O156: 6593400 | P156: 0.66%
A157: 147 | B157: Automobile | C157: TATAMOTORS | D157: 2021-07-29 | E157: 316.60 | F157: 314.13 | G157: 309.12 | H157: 301.63 | I157: 296.62 | J157: 321.62 | K157: 326.63 | L157: 334.12 | M157: 319.15 | N157: 306.65 | O157: 118625550 | P157: 12.60%
A158: 148 | B158: Power | C158: TATAPOWER | D158: 2021-07-29 | E158: 124.35 | F158: 123.95 | G158: 122.90 | H158: 121.45 | I158: 120.40 | J158: 125.40 | K158: 126.45 | L158: 127.90 | M158: 125 | N158: 122.5 | O158: 134797500 | P158: 1.30%
A159: 149 | B159: Metals | C159: TATASTEEL | D159: 2021-07-29 | E159: 1225.30 | F159: 1206.48 | G159: 1181.57 | H159: 1137.83 | I159: 1112.92 | J159: 1250.22 | K159: 1275.13 | L159: 1318.87 | M159: 1231.4 | N159: 1162.75 | O159: 48160150 | P159: 5.97%
A160: 150 | B160: Technology | C160: TCS | D160: 2021-07-29 | E160: 3274.05 | F160: 3266.98 | G160: 3248.12 | H160: 3222.18 | I160: 3203.32 | J160: 3292.92 | K160: 3311.78 | L160: 3337.72 | M160: 3285.85 | N160: 3241.05 | O160: 8899500 | P160: 0.27%
A161: 151 | B161: Technology | C161: TECHM | D161: 2021-07-29 | E161: 1021.20 | F161: 1019.58 | G161: 1004.22 | H161: 987.23 | I161: 971.87 | J161: 1036.57 | K161: 1051.93 | L161: 1068.92 | M161: 1034.95 | N161: 1002.6 | O161: 16266600 | P161: 1.05%
A162: 152 | B162: FMCG | C162: TITAN | D162: 2021-07-29 | E162: 1730.15 | F162: 1742.42 | G162: 1702.83 | H162: 1675.52 | I162: 1635.93 | J162: 1769.73 | K162: 1809.32 | L162: 1836.63 | M162: 1782 | N162: 1715.1 | O162: 5089500 | P162: 8.58%
A163: 153 | B163: Pharma | C163: TORNTPHARM | D163: 2021-07-29 | E163: 2962.75 | F163: 2953.32 | G163: 2940.43 | H163: 2918.12 | I163: 2905.23 | J163: 2975.63 | K163: 2988.52 | L163: 3010.83 | M163: 2966.2 | N163: 2931 | O163: 775500 | P163: -0.19%
A164: 154 | B164: Power | C164: TORNTPOWER | D164: 2021-07-29 | E164: 472.75 | F164: 469.85 | G164: 465.90 | H164: 459.05 | I164: 455.10 | J164: 476.70 | K164: 480.65 | L164: 487.50 | M164: 473.8 | N164: 463 | O164: 3052500 | P164: -1.50%
A165: 155 | B165: Others | C165: TRENT | D165: 2021-07-29 | E165: 913.10 | F165: 908.37 | G165: 901.73 | H165: 890.37 | I165: 883.73 | J165: 919.73 | K165: 926.37 | L165: 937.73 | M165: 915 | N165: 897 | O165: 863475 | P165: -3.25%
A166: 156 | B166: Automobile | C166: TVSMOTOR | D166: 2021-07-29 | E166: 607.35 | F166: 608.62 | G166: 603.83 | H166: 600.32 | I166: 595.53 | J166: 612.13 | K166: 616.92 | L166: 620.43 | M166: 613.4 | N166: 605.1 | O166: 6542200 | P166: 6.04%
A167: 157 | B167: FMCG | C167: UBL | D167: 2021-07-29 | E167: 1438.90 | F167: 1434.20 | G167: 1425.00 | H167: 1411.10 | I167: 1401.90 | J167: 1448.10 | K167: 1457.30 | L167: 1471.20 | M167: 1443.4 | N167: 1420.3 | O167: 1608600 | P167: -3.00%
A168: 158 | B168: Cement | C168: ULTRACEMCO | D168: 2021-07-29 | E168: 6932.20 | F168: 6878.62 | G168: 6814.68 | H168: 6697.17 | I168: 6633.23 | J168: 6996.13 | K168: 7060.07 | L168: 7177.58 | M168: 6942.55 | N168: 6761.1 | O168: 2107200 | P168: 0.34%
A169: 159 | B169: Chemical | C169: UPL | D169: 2021-07-29 | E169: 809.30 | F169: 806.32 | G169: 798.93 | H169: 788.57 | I169: 781.18 | J169: 816.68 | K169: 824.07 | L169: 834.43 | M169: 813.7 | N169: 795.95 | O169: 22549800 | P169: -0.53%
A170: 160 | B170: Metals | C170: VEDL | D170: 2021-07-29 | E170: 273.75 | F170: 271.92 | G170: 267.93 | H170: 262.12 | I170: 258.13 | J170: 277.73 | K170: 281.72 | L170: 287.53 | M170: 275.9 | N170: 266.1 | O170: 121070500 | P170: 1.21%
A171: 161 | B171: Capital_Goods | C171: VOLTAS | D171: 2021-07-29 | E171: 1011.00 | F171: 1013.33 | G171: 1005.87 | H171: 1000.73 | I171: 993.27 | J171: 1018.47 | K171: 1025.93 | L171: 1031.07 | M171: 1020.8 | N171: 1008.2 | O171: 3353000 | P171: 6.17%
A172: 162 | B172: Technology | C172: WIPRO | D172: 2021-07-29 | E172: 534.20 | F172: 532.45 | G172: 527.25 | H172: 520.30 | I172: 515.10 | J172: 539.40 | K172: 544.60 | L172: 551.55 | M172: 537.65 | N172: 525.5 | O172: 31633600 | P172: 0.89%
A173: 163 | B173: Media | C173: ZEEL | D173: 2021-07-29 | E173: 219.75 | F173: 219.18 | G173: 217.92 | H173: 216.08 | I173: 214.82 | J173: 221.02 | K173: 222.28 | L173: 224.12 | M173: 220.45 | N173: 217.35 | O173: 62448000 | P173: -1.41%
A184: Pivot Point: This is trigger point for intra day buy/sell based on the price range of the previous day
A185: As per the tool,the trader should take BUY position just above Pivot and keep the stop loss of pivot point and the first target would be Resistance 1(R1)
A186: If R1 is crossed then R2 becomes the next target with stop loss of at R1
A187: Similarly if price goes below pivot point then the trader should sell and keep a stop loss of pivot point and the first target would be S1
A188: If S1 is crossed then S2 becomes the next target with stop loss of at S1
A190: Disclaimer:
A191: This document has been prepared by the Retail Research Desk of Asit C Mehta
A192: Investment Intermediates Ltd. and is meant for use of the recipient only
A193: and is not for circulation. This document is not to be reported or
A194: copied or made available to others. It should not be considered to be
A195: taken as an offer to sell or a solicitation to buy any security. The
A196: information contained herein is from sources believed reliable. We do
A197: not represent that it is accurate or complete and it should not be
A198: relied upon as such. We may from time to time have positions in and buy
A199: and sell securities referred to herein

Sheet Cash Intra
M5: Back to Main Page
A6: FOR INTRA DAY TRADING | K6: =Main!B10 -> 2021-07-08
A8: Sr.no | C8: CLOSE RATE | D8: Pivot Point | E8: Supports | H8: Resistances
C9: Point | E9: S1 | F9: S2 | G9: S3 | H9: R1 | I9: R2 | J9: R3 | K9: HIGH | L9: LOW | M9: Total Trade Quanity in Lakhs
A10: 1 | B10: Nifty 50 | C10: 15879.65 | D10: 15850.97 | E10: 15808.38 | F10: 15737.12 | G10: 15694.53 | H10: 15922.23 | I10: 15964.82 | J10: 16036.08 | K10: 15893.55 | L10: 15779.7
A11: 2 | B11: Nifty Bank | C11: 35771.3 | D11: 35664.90 | E11: 35534.05 | F11: 35296.80 | G11: 35165.95 | H11: 35902.15 | I11: 36033.00 | J11: 36270.25 | K11: 35795.75 | L11: 35427.65
A12: 3 | B12: Nifty CPSE | C12: 2060.35 | D12: 2055.38 | E12: 2047.82 | F12: 2035.28 | G12: 2027.72 | H12: 2067.92 | I12: 2075.48 | J12: 2088.02 | K12: 2062.95 | L12: 2042.85
A13: 4 | B13: Nifty Infra | C13: 4377.15 | D13: 4371.23 | E13: 4361.22 | F13: 4345.28 | G13: 4335.27 | H13: 4387.17 | I13: 4397.18 | J13: 4413.12 | K13: 4381.25 | L13: 4355.3
A14: 5 | B14: Nifty IT | C14: 28734.65 | D14: 28635.42 | E14: 28480.53 | F14: 28226.42 | G14: 28071.53 | H14: 28889.53 | I14: 29044.42 | J14: 29298.53 | K14: 28790.3 | L14: 28381.3
A15: 6 | B15: Nifty PSE | C15: 3622.55 | D15: 3612.13 | E15: 3597.22 | F15: 3571.88 | G15: 3556.97 | H15: 3637.47 | I15: 3652.38 | J15: 3677.72 | K15: 3627.05 | L15: 3586.8
A16: 7 | B16: Nifty Midcap 50 | C16: 7578.65 | D16: 7554.93 | E16: 7517.47 | F16: 7456.28 | G16: 7418.82 | H16: 7616.12 | I16: 7653.58 | J16: 7714.77 | K16: 7592.4 | L16: 7493.75
A17: 8 | B17: ACC | C17: 2036.55 | D17: 2031.30 | E17: 2018.15 | F17: 1999.75 | G17: 1986.60 | H17: 2049.70 | I17: 2062.85 | J17: 2081.25 | K17: 2044.45 | L17: 2012.9 | M17: 3.39727
A18: 9 | B18: AUBANK | C18: 1125 | D18: 1116.33 | E18: 1099.67 | F18: 1074.33 | G18: 1057.67 | H18: 1141.67 | I18: 1158.33 | J18: 1183.67 | K18: 1133 | L18: 1091 | M18: 15.42754
A19: 10 | B19: AARTIIND | C19: 863.2 | D19: 857.88 | E19: 850.67 | F19: 838.13 | G19: 830.92 | H19: 870.42 | I19: 877.63 | J19: 890.17 | K19: 865.1 | L19: 845.35 | M19: 16.4686
A20: 11 | B20: ABBOTINDIA | C20: 17260.6 | D20: 17224.43 | E20: 17093.87 | F20: 16927.13 | G20: 16796.57 | H20: 17391.17 | I20: 17521.73 | J20: 17688.47 | K20: 17355 | L20: 17057.7 | M20: 0.11796
A21: 12 | B21: ADANIENT | C21: 1425.65 | D21: 1415.92 | E21: 1394.73 | F21: 1363.82 | G21: 1342.63 | H21: 1446.83 | I21: 1468.02 | J21: 1498.93 | K21: 1437.1 | L21: 1385 | M21: 55.49751
A22: 13 | B22: ADANIGREEN | C22: 1017.05 | D22: 1004.73 | E22: 974.47 | F22: 931.88 | G22: 901.62 | H22: 1047.32 | I22: 1077.58 | J22: 1120.17 | K22: 1035 | L22: 962.15 | M22: 2.47291
A23: 14 | B23: ADANIPORTS | C23: 720.1 | D23: 716.37 | E23: 709.73 | F23: 699.37 | G23: 692.73 | H23: 726.73 | I23: 733.37 | J23: 743.73 | K23: 723 | L23: 706 | M23: 87.19991
A24: 15 | B24: ATGL | C24: 900.8 | D24: 894.37 | E24: 878.73 | F24: 856.67 | G24: 841.03 | H24: 916.43 | I24: 932.07 | J24: 954.13 | K24: 910 | L24: 872.3 | M24: 10.74532
A25: 16 | B25: ADANITRANS | C25: 939.7 | D25: 934.28 | E25: 911.57 | F25: 883.43 | G25: 860.72 | H25: 962.42 | I25: 985.13 | J25: 1013.27 | K25: 957 | L25: 906.15 | M25: 3.93384
A26: 17 | B26: ABCAPITAL | C26: 114.4 | D26: 114.90 | E26: 113.20 | F26: 112.00 | G26: 110.30 | H26: 116.10 | I26: 117.80 | J26: 119.00 | K26: 116.6 | L26: 113.7 | M26: 21.52007
A27: 18 | B27: ABFRL | C27: 213.5 | D27: 214.05 | E27: 211.90 | F27: 210.30 | G27: 208.15 | H27: 215.65 | I27: 217.80 | J27: 219.40 | K27: 216.2 | L27: 212.45 | M27: 11.35288
A28: 19 | B28: AJANTPHARM | C28: 2169.05 | D28: 2167.32 | E28: 2136.73 | F28: 2104.42 | G28: 2073.83 | H28: 2199.63 | I28: 2230.22 | J28: 2262.53 | K28: 2197.9 | L28: 2135 | M28: 0.72476
A29: 20 | B29: APLLTD | C29: 986.2 | D29: 985.32 | E29: 978.33 | F29: 970.47 | G29: 963.48 | H29: 993.18 | I29: 1000.17 | J29: 1008.03 | K29: 992.3 | L29: 977.45 | M29: 1.23487
A30: 21 | B30: ALKEM | C30: 3313 | D30: 3305.92 | E30: 3282.13 | F30: 3251.27 | G30: 3227.48 | H30: 3336.78 | I30: 3360.57 | J30: 3391.43 | K30: 3329.7 | L30: 3275.05 | M30: 1.15939
A31: 22 | B31: AMARAJABAT | C31: 738.35 | D31: 739.28 | E31: 734.07 | F31: 729.78 | G31: 724.57 | H31: 743.57 | I31: 748.78 | J31: 753.07 | K31: 744.5 | L31: 735 | M31: 12.19238
A32: 23 | B32: AMBUJACEM | C32: 357.45 | D32: 355.55 | E32: 352.55 | F32: 347.65 | G32: 344.65 | H32: 360.45 | I32: 363.45 | J32: 368.35 | K32: 358.55 | L32: 350.65 | M32: 43.34221
A33: 24 | B33: APOLLOHOSP | C33: 3715.6 | D33: 3723.67 | E33: 3689.53 | F33: 3663.47 | G33: 3629.33 | H33: 3749.73 | I33: 3783.87 | J33: 3809.93 | K33: 3757.8 | L33: 3697.6 | M33: 4.66002
A34: 25 | B34: APOLLOTYRE | C34: 231.1 | D34: 230.03 | E34: 228.57 | F34: 226.03 | G34: 224.57 | H34: 232.57 | I34: 234.03 | J34: 236.57 | K34: 231.5 | L34: 227.5 | M34: 24.80384
A35: 26 | B35: ASHOKLEY | C35: 123.55 | D35: 123.17 | E35: 122.38 | F35: 121.22 | G35: 120.43 | H35: 124.33 | I35: 125.12 | J35: 126.28 | K35: 123.95 | L35: 122 | M35: 71.60796
A36: 27 | B36: ASIANPAINT | C36: 3040.1 | D36: 3040.12 | E36: 3011.23 | F36: 2982.37 | G36: 2953.48 | H36: 3068.98 | I36: 3097.87 | J36: 3126.73 | K36: 3069 | L36: 3011.25 | M36: 12.34865
A37: 28 | B37: AUROPHARMA | C37: 965.2 | D37: 969.53 | E37: 957.67 | F37: 950.13 | G37: 938.27 | H37: 977.07 | I37: 988.93 | J37: 996.47 | K37: 981.4 | L37: 962 | M37: 16.20439
A38: 29 | B38: DMART | C38: 3396.4 | D38: 3374.80 | E38: 3347.60 | F38: 3298.80 | G38: 3271.60 | H38: 3423.60 | I38: 3450.80 | J38: 3499.60 | K38: 3402 | L38: 3326 | M38: 2.76021
A39: 30 | B39: AXISBANK | C39: 762.9 | D39: 759.72 | E39: 755.43 | F39: 747.97 | G39: 743.68 | H39: 767.18 | I39: 771.47 | J39: 778.93 | K39: 764 | L39: 752.25 | M39: 35.73368
A40: 31 | B40: BAJAJ-AUTO | C40: 4188.25 | D40: 4194.08 | E40: 4164.17 | F40: 4140.08 | G40: 4110.17 | H40: 4218.17 | I40: 4248.08 | J40: 4272.17 | K40: 4224 | L40: 4170 | M40: 3.92794
A41: 32 | B41: BAJFINANCE | C41: 6198.6 | D41: 6215.00 | E41: 6144.00 | F41: 6089.40 | G41: 6018.40 | H41: 6269.60 | I41: 6340.60 | J41: 6395.20 | K41: 6286 | L41: 6160.4 | M41: 19.47925
A42: 33 | B42: BAJAJFINSV | C42: 12374.15 | D42: 12257.72 | E42: 12116.43 | F42: 11858.72 | G42: 11717.43 | H42: 12515.43 | I42: 12656.72 | J42: 12914.43 | K42: 12399 | L42: 12000 | M42: 4.048
A43: 34 | B43: BAJAJHLDNG | C43: 3785.6 | D43: 3796.22 | E43: 3744.48 | F43: 3703.37 | G43: 3651.63 | H43: 3837.33 | I43: 3889.07 | J43: 3930.18 | K43: 3847.95 | L43: 3755.1 | M43: 0.26557
A44: 35 | B44: BALKRISIND | C44: 2291.3 | D44: 2298.73 | E44: 2280.57 | F44: 2269.83 | G44: 2251.67 | H44: 2309.47 | I44: 2327.63 | J44: 2338.37 | K44: 2316.9 | L44: 2288 | M44: 2.75607
A45: 36 | B45: BANDHANBNK | C45: 320.55 | D45: 320.42 | E45: 318.13 | F45: 315.72 | G45: 313.43 | H45: 322.83 | I45: 325.12 | J45: 327.53 | K45: 322.7 | L45: 318 | M45: 41.22637
A46: 37 | B46: BANKBARODA | C46: 86.05 | D46: 85.67 | E46: 85.03 | F46: 84.02 | G46: 83.38 | H46: 86.68 | I46: 87.32 | J46: 88.33 | K46: 86.3 | L46: 84.65 | M46: 233.04711
A47: 38 | B47: BANKINDIA | C47: 76.15 | D47: 76.32 | E47: 75.68 | F47: 75.22 | G47: 74.58 | H47: 76.78 | I47: 77.42 | J47: 77.88 | K47: 76.95 | L47: 75.85 | M47: 19.96736
A48: 39 | B48: BATAINDIA | C48: 1577 | D48: 1581.27 | E48: 1564.73 | F48: 1552.47 | G48: 1535.93 | H48: 1593.53 | I48: 1610.07 | J48: 1622.33 | K48: 1597.8 | L48: 1569 | M48: 2.55961
A49: 40 | B49: BERGEPAINT | C49: 846.15 | D49: 836.75 | E49: 823.50 | F49: 800.85 | G49: 787.60 | H49: 859.40 | I49: 872.65 | J49: 895.30 | K49: 850 | L49: 814.1 | M49: 28.80935
A50: 41 | B50: BEL | C50: 182.9 | D50: 181.73 | E50: 180.07 | F50: 177.23 | G50: 175.57 | H50: 184.57 | I50: 186.23 | J50: 189.07 | K50: 183.4 | L50: 178.9 | M50: 59.4498
A51: 42 | B51: BHARATFORG | C51: 806.3 | D51: 794.65 | E51: 779.65 | F51: 753.00 | G51: 738.00 | H51: 821.30 | I51: 836.30 | J51: 862.95 | K51: 809.65 | L51: 768 | M51: 76.74233
A52: 43 | B52: BHEL | C52: 67.8 | D52: 66.63 | E52: 65.07 | F52: 62.33 | G52: 60.77 | H52: 69.37 | I52: 70.93 | J52: 73.67 | K52: 68.2 | L52: 63.9 | M52: 1076.10245
A53: 44 | B53: BPCL | C53: 460.5 | D53: 458.12 | E53: 454.83 | F53: 449.17 | G53: 445.88 | H53: 463.78 | I53: 467.07 | J53: 472.73 | K53: 461.4 | L53: 452.45 | M53: 30.0029
A54: 45 | B54: BHARTIARTL | C54: 529.6 | D54: 527.80 | E54: 525.00 | F54: 520.40 | G54: 517.60 | H54: 532.40 | I54: 535.20 | J54: 539.80 | K54: 530.6 | L54: 523.2 | M54: 65.46286
A55: 46 | B55: BIOCON | C55: 392.1 | D55: 390.40 | E55: 386.70 | F55: 381.30 | G55: 377.60 | H55: 395.80 | I55: 399.50 | J55: 404.90 | K55: 394.1 | L55: 385 | M55: 26.86889
A56: 47 | B56: BBTC | C56: 1306.25 | D56: 1308.72 | E56: 1300.53 | F56: 1294.82 | G56: 1286.63 | H56: 1314.43 | I56: 1322.62 | J56: 1328.33 | K56: 1316.9 | L56: 1303 | M56: 0.37186
A57: 48 | B57: BOSCHLTD | C57: 15498.35 | D57: 15496.08 | E57: 15382.27 | F57: 15266.18 | G57: 15152.37 | H57: 15612.17 | I57: 15725.98 | J57: 15842.07 | K57: 15609.9 | L57: 15380 | M57: 0.55609
A58: 49 | B58: BRITANNIA | C58: 3521.35 | D58: 3523.12 | E58: 3504.23 | F58: 3487.12 | G58: 3468.23 | H58: 3540.23 | I58: 3559.12 | J58: 3576.23 | K58: 3542 | L58: 3506 | M58: 5.24482
A59: 50 | B59: CESC | C59: 753 | D59: 754.55 | E59: 749.45 | F59: 745.90 | G59: 740.80 | H59: 758.10 | I59: 763.20 | J59: 766.75 | K59: 759.65 | L59: 751 | M59: 1.74024
A60: 51 | B60: CADILAHC | C60: 638.1 | D60: 636.07 | E60: 632.58 | F60: 627.07 | G60: 623.58 | H60: 641.58 | I60: 645.07 | J60: 650.58 | K60: 639.55 | L60: 630.55 | M60: 19.43209
A61: 52 | B61: CANBK | C61: 154.55 | D61: 154.05 | E61: 152.95 | F61: 151.35 | G61: 150.25 | H61: 155.65 | I61: 156.75 | J61: 158.35 | K61: 155.15 | L61: 152.45 | M61: 56.19787
A62: 53 | B62: CASTROLIND | C62: 146.55 | D62: 146.83 | E62: 145.42 | F62: 144.28 | G62: 142.87 | H62: 147.97 | I62: 149.38 | J62: 150.52 | K62: 148.25 | L62: 145.7 | M62: 8.28778
A63: 54 | B63: CHOLAFIN | C63: 518.95 | D63: 521.58 | E63: 512.67 | F63: 506.38 | G63: 497.47 | H63: 527.87 | I63: 536.78 | J63: 543.07 | K63: 530.5 | L63: 515.3 | M63: 26.53267
A64: 55 | B64: CIPLA | C64: 965.2 | D64: 965.05 | E64: 961.15 | F64: 957.10 | G64: 953.20 | H64: 969.10 | I64: 973.00 | J64: 977.05 | K64: 968.95 | L64: 961 | M64: 17.40439
A65: 56 | B65: CUB | C65: 164.95 | D65: 165.37 | E65: 163.98 | F65: 163.02 | G65: 161.63 | H65: 166.33 | I65: 167.72 | J65: 168.68 | K65: 166.75 | L65: 164.4 | M65: 14.74851
A66: 57 | B66: COALINDIA | C66: 147.55 | D66: 147.62 | E66: 146.48 | F66: 145.42 | G66: 144.28 | H66: 148.68 | I66: 149.82 | J66: 150.88 | K66: 148.75 | L66: 146.55 | M66: 60.67804
A67: 58 | B67: COFORGE | C67: 4245.05 | D67: 4208.03 | E67: 4157.07 | F67: 4069.08 | G67: 4018.12 | H67: 4296.02 | I67: 4346.98 | J67: 4434.97 | K67: 4259 | L67: 4120.05 | M67: 3.64907
A68: 59 | B68: COLPAL | C68: 1725.2 | D68: 1713.63 | E68: 1697.27 | F68: 1669.33 | G68: 1652.97 | H68: 1741.57 | I68: 1757.93 | J68: 1785.87 | K68: 1730 | L68: 1685.7 | M68: 6.62369
A69: 60 | B69: CONCOR | C69: 692.6 | D69: 694.48 | E69: 684.42 | F69: 676.23 | G69: 666.17 | H69: 702.67 | I69: 712.73 | J69: 720.92 | K69: 704.55 | L69: 686.3 | M69: 21.19973
A70: 61 | B70: COROMANDEL | C70: 898.95 | D70: 902.53 | E70: 892.57 | F70: 886.18 | G70: 876.22 | H70: 908.92 | I70: 918.88 | J70: 925.27 | K70: 912.5 | L70: 896.15 | M70: 1.70946
A71: 62 | B71: CROMPTON | C71: 449.95 | D71: 445.25 | E71: 433.70 | F71: 417.45 | G71: 405.90 | H71: 461.50 | I71: 473.05 | J71: 489.30 | K71: 456.8 | L71: 429 | M71: 29.63853
A72: 63 | B72: CUMMINSIND | C72: 866.95 | D72: 871.17 | E72: 856.53 | F72: 846.12 | G72: 831.48 | H72: 881.58 | I72: 896.22 | J72: 906.63 | K72: 885.8 | L72: 860.75 | M72: 10.87702
A73: 64 | B73: DLF | C73: 294.9 | D73: 294.40 | E73: 290.30 | F73: 285.70 | G73: 281.60 | H73: 299.00 | I73: 303.10 | J73: 307.70 | K73: 298.5 | L73: 289.8 | M73: 77.95807
A74: 65 | B74: DABUR | C74: 594.4 | D74: 592.83 | E74: 589.67 | F74: 584.93 | G74: 581.77 | H74: 597.57 | I74: 600.73 | J74: 605.47 | K74: 596 | L74: 588.1 | M74: 12.55033
A75: 66 | B75: DALBHARAT | C75: 2044.85 | D75: 2037.27 | E75: 2009.63 | F75: 1974.42 | G75: 1946.78 | H75: 2072.48 | I75: 2100.12 | J75: 2135.33 | K75: 2064.9 | L75: 2002.05 | M75: 2.51076
A76: 67 | B76: DEEPAKNTR | C76: 1942.35 | D76: 1926.40 | E76: 1902.80 | F76: 1863.25 | G76: 1839.65 | H76: 1965.95 | I76: 1989.55 | J76: 2029.10 | K76: 1950 | L76: 1886.85 | M76: 19.65632
A77: 68 | B77: DHANI | C77: 182.85 | D77: 181.23 | E77: 179.62 | F77: 176.38 | G77: 174.77 | H77: 184.47 | I77: 186.08 | J77: 189.32 | K77: 182.85 | L77: 178 | M77: 85.292
A78: 69 | B78: DIVISLAB | C78: 4552.55 | D78: 4534.53 | E78: 4503.02 | F78: 4453.48 | G78: 4421.97 | H78: 4584.07 | I78: 4615.58 | J78: 4665.12 | K78: 4566.05 | L78: 4485 | M78: 3.37061
A79: 70 | B79: DIXON | C79: 4524.45 | D79: 4538.55 | E79: 4463.60 | F79: 4402.75 | G79: 4327.80 | H79: 4599.40 | I79: 4674.35 | J79: 4735.20 | K79: 4613.5 | L79: 4477.7 | M79: 2.91088
A80: 71 | B80: LALPATHLAB | C80: 3456.05 | D80: 3454.08 | E80: 3418.17 | F80: 3380.28 | G80: 3344.37 | H80: 3491.97 | I80: 3527.88 | J80: 3565.77 | K80: 3490 | L80: 3416.2 | M80: 2.2847
A81: 72 | B81: DRREDDY | C81: 5562.1 | D81: 5563.92 | E81: 5513.23 | F81: 5464.37 | G81: 5413.68 | H81: 5612.78 | I81: 5663.47 | J81: 5712.33 | K81: 5614.6 | L81: 5515.05 | M81: 5.38508
A82: 73 | B82: EICHERMOT | C82: 2710.85 | D82: 2715.52 | E82: 2692.13 | F82: 2673.42 | G82: 2650.03 | H82: 2734.23 | I82: 2757.62 | J82: 2776.33 | K82: 2738.9 | L82: 2696.8 | M82: 5.17132
A83: 74 | B83: EMAMILTD | C83: 552.35 | D83: 554.82 | E83: 544.63 | F83: 536.92 | G83: 526.73 | H83: 562.53 | I83: 572.72 | J83: 580.43 | K83: 565 | L83: 547.1 | M83: 11.61052
A84: 75 | B84: ENDURANCE | C84: 1637.05 | D84: 1641.63 | E84: 1625.37 | F84: 1613.68 | G84: 1597.42 | H84: 1653.32 | I84: 1669.58 | J84: 1681.27 | K84: 1657.9 | L84: 1629.95 | M84: 0.50617
A85: 76 | B85: ESCORTS | C85: 1203.95 | D85: 1200.47 | E85: 1193.93 | F85: 1183.92 | G85: 1177.38 | H85: 1210.48 | I85: 1217.02 | J85: 1227.03 | K85: 1207 | L85: 1190.45 | M85: 5.4722
A86: 77 | B86: EXIDEIND | C86: 183.05 | D86: 182.48 | E86: 181.72 | F86: 180.38 | G86: 179.62 | H86: 183.82 | I86: 184.58 | J86: 185.92 | K86: 183.25 | L86: 181.15 | M86: 13.65158
A87: 78 | B87: FEDERALBNK | C87: 86.3 | D87: 86.18 | E87: 85.47 | F87: 84.63 | G87: 83.92 | H87: 87.02 | I87: 87.73 | J87: 88.57 | K87: 86.9 | L87: 85.35 | M87: 124.72836
A88: 79 | B88: FORTIS | C88: 243 | D88: 244.05 | E88: 240.60 | F88: 238.20 | G88: 234.75 | H88: 246.45 | I88: 249.90 | J88: 252.30 | K88: 247.5 | L88: 241.65 | M88: 12.79504
A89: 80 | B89: GAIL | C89: 149.95 | D89: 150.20 | E89: 148.30 | F89: 146.65 | G89: 144.75 | H89: 151.85 | I89: 153.75 | J89: 155.40 | K89: 152.1 | L89: 148.55 | M89: 82.1202
A90: 81 | B90: GMRINFRA | C90: 31.8 | D90: 31.72 | E90: 31.48 | F90: 31.17 | G90: 30.93 | H90: 32.03 | I90: 32.27 | J90: 32.58 | K90: 31.95 | L90: 31.4 | M90: 101.66106
A91: 82 | B91: GLAND | C91: 3500.2 | D91: 3490.88 | E91: 3421.77 | F91: 3343.33 | G91: 3274.22 | H91: 3569.32 | I91: 3638.43 | J91: 3716.87 | K91: 3560 | L91: 3412.45 | M91: 2.57534
A92: 83 | B92: GLENMARK | C92: 662.5 | D92: 658.82 | E92: 650.78 | F92: 639.07 | G92: 631.03 | H92: 670.53 | I92: 678.57 | J92: 690.28 | K92: 666.85 | L92: 647.1 | M92: 18.41193
A93: 84 | B93: GODREJAGRO | C93: 660.35 | D93: 658.42 | E93: 650.88 | F93: 641.42 | G93: 633.88 | H93: 667.88 | I93: 675.42 | J93: 684.88 | K93: 665.95 | L93: 648.95 | M93: 2.72677
A94: 85 | B94: GODREJCP | C94: 962.9 | D94: 966.53 | E94: 952.37 | F94: 941.83 | G94: 927.67 | H94: 977.07 | I94: 991.23 | J94: 1001.77 | K94: 980.7 | L94: 956 | M94: 31.06332
A95: 86 | B95: GODREJIND | C95: 554.8 | D95: 558.83 | E95: 549.72 | F95: 544.63 | G95: 535.52 | H95: 563.92 | I95: 573.03 | J95: 578.12 | K95: 567.95 | L95: 553.75 | M95: 3.10446
A96: 87 | B96: GODREJPROP | C96: 1482.1 | D96: 1467.52 | E96: 1438.03 | F96: 1393.97 | G96: 1364.48 | H96: 1511.58 | I96: 1541.07 | J96: 1585.13 | K96: 1497 | L96: 1423.45 | M96: 20.99024
A97: 88 | B97: GRASIM | C97: 1493.85 | D97: 1489.95 | E97: 1479.90 | F97: 1465.95 | G97: 1455.90 | H97: 1503.90 | I97: 1513.95 | J97: 1527.90 | K97: 1500 | L97: 1476 | M97: 11.19109
A98: 89 | B98: GUJGASLTD | C98: 672.1 | D98: 671.48 | E98: 666.72 | F98: 661.33 | G98: 656.57 | H98: 676.87 | I98: 681.63 | J98: 687.02 | K98: 676.25 | L98: 666.1 | M98: 7.71926
A99: 90 | B99: GSPL | C99: 313.55 | D99: 315.75 | E99: 308.10 | F99: 302.65 | G99: 295.00 | H99: 321.20 | I99: 328.85 | J99: 334.30 | K99: 323.4 | L99: 310.3 | M99: 12.88877
A100: 91 | B100: HCLTECH | C100: 975.35 | D100: 971.08 | E100: 964.57 | F100: 953.78 | G100: 947.27 | H100: 981.87 | I100: 988.38 | J100: 999.17 | K100: 977.6 | L100: 960.3 | M100: 30.14899
A101: 92 | B101: HDFCAMC | C101: 2898.65 | D101: 2901.08 | E101: 2887.57 | F101: 2876.48 | G101: 2862.97 | H101: 2912.17 | I101: 2925.68 | J101: 2936.77 | K101: 2914.6 | L101: 2890 | M101: 1.02033
A102: 93 | B102: HDFCBANK | C102: 1539.5 | D102: 1537.52 | E102: 1529.68 | F102: 1519.87 | G102: 1512.03 | H102: 1547.33 | I102: 1555.17 | J102: 1564.98 | K102: 1545.35 | L102: 1527.7 | M102: 48.14595
A103: 94 | B103: HDFCLIFE | C103: 685.2 | D103: 683.00 | E103: 680.20 | F103: 675.20 | G103: 672.40 | H103: 688.00 | I103: 690.80 | J103: 695.80 | K103: 685.8 | L103: 678 | M103: 30.25732
A104: 95 | B104: HAVELLS | C104: 1021.4 | D104: 1019.30 | E104: 1012.60 | F104: 1003.80 | G104: 997.10 | H104: 1028.10 | I104: 1034.80 | J104: 1043.60 | K104: 1026 | L104: 1010.5 | M104: 8.95906
A105: 96 | B105: HEROMOTOCO | C105: 2913.35 | D105: 2908.85 | E105: 2895.70 | F105: 2878.05 | G105: 2864.90 | H105: 2926.50 | I105: 2939.65 | J105: 2957.30 | K105: 2922 | L105: 2891.2 | M105: 6.68763
A106: 97 | B106: HINDALCO | C106: 393.65 | D106: 389.62 | E106: 384.23 | F106: 374.82 | G106: 369.43 | H106: 399.03 | I106: 404.42 | J106: 413.83 | K106: 395 | L106: 380.2 | M106: 105.77866
A107: 98 | B107: HAL | C107: 1099.55 | D107: 1105.85 | E107: 1083.70 | F107: 1067.85 | G107: 1045.70 | H107: 1121.70 | I107: 1143.85 | J107: 1159.70 | K107: 1128 | L107: 1090 | M107: 9.83859
A108: 99 | B108: HINDPETRO | C108: 306.35 | D108: 304.32 | E108: 301.53 | F108: 296.72 | G108: 293.93 | H108: 309.13 | I108: 311.92 | J108: 316.73 | K108: 307.1 | L108: 299.5 | M108: 65.52189
A109: 100 | B109: HINDUNILVR | C109: 2481.65 | D109: 2472.77 | E109: 2454.73 | F109: 2427.82 | G109: 2409.78 | H109: 2499.68 | I109: 2517.72 | J109: 2544.63 | K109: 2490.8 | L109: 2445.85 | M109: 6.23145
A110: 101 | B110: HINDZINC | C110: 333.55 | D110: 333.90 | E110: 330.80 | F110: 328.05 | G110: 324.95 | H110: 336.65 | I110: 339.75 | J110: 342.50 | K110: 337 | L110: 331.15 | M110: 7.5923
A111: 102 | B111: HDFC | C111: 2529.2 | D111: 2523.40 | E111: 2501.00 | F111: 2472.80 | G111: 2450.40 | H111: 2551.60 | I111: 2574.00 | J111: 2602.20 | K111: 2545.8 | L111: 2495.2 | M111: 25.42003
A112: 103 | B112: ICICIBANK | C112: 654 | D112: 651.55 | E112: 648.35 | F112: 642.70 | G112: 639.50 | H112: 657.20 | I112: 660.40 | J112: 666.05 | K112: 654.75 | L112: 645.9 | M112: 77.41559
A113: 104 | B113: ICICIGI | C113: 1589.1 | D113: 1580.00 | E113: 1564.65 | F113: 1540.20 | G113: 1524.85 | H113: 1604.45 | I113: 1619.80 | J113: 1644.25 | K113: 1595.35 | L113: 1555.55 | M113: 3.7559
A114: 105 | B114: ICICIPRULI | C114: 628.05 | D114: 627.82 | E114: 620.23 | F114: 612.42 | G114: 604.83 | H114: 635.63 | I114: 643.22 | J114: 651.03 | K114: 635.4 | L114: 620 | M114: 10.25597
A115: 106 | B115: ISEC | C115: 717.2 | D115: 723.55 | E115: 705.25 | F115: 693.30 | G115: 675.00 | H115: 735.50 | I115: 753.80 | J115: 765.75 | K115: 741.85 | L115: 711.6 | M115: 13.70237
A116: 107 | B116: IDFCFIRSTB | C116: 53.95 | D116: 53.75 | E116: 53.35 | F116: 52.75 | G116: 52.35 | H116: 54.35 | I116: 54.75 | J116: 55.35 | K116: 54.15 | L116: 53.15 | M116: 254.31944
A117: 108 | B117: ITC | C117: 203.75 | D117: 203.75 | E117: 202.30 | F117: 200.85 | G117: 199.40 | H117: 205.20 | I117: 206.65 | J117: 208.10 | K117: 205.2 | L117: 202.3 | M117: 178.79443
A118: 109 | B118: IBULHSGFIN | C118: 262.95 | D118: 262.35 | E118: 259.05 | F118: 255.15 | G118: 251.85 | H118: 266.25 | I118: 269.55 | J118: 273.45 | K118: 265.65 | L118: 258.45 | M118: 84.36396
A119: 110 | B119: INDIAMART | C119: 7250.75 | D119: 7271.68 | E119: 7194.37 | F119: 7137.98 | G119: 7060.67 | H119: 7328.07 | I119: 7405.38 | J119: 7461.77 | K119: 7349 | L119: 7215.3 | M119: 0.40629
A120: 111 | B120: INDHOTEL | C120: 152.35 | D120: 151.80 | E120: 146.30 | F120: 140.25 | G120: 134.75 | H120: 157.85 | I120: 163.35 | J120: 169.40 | K120: 157.3 | L120: 145.75 | M120: 176.04371
A121: 112 | B121: IOC | C121: 107.95 | D121: 107.83 | E121: 107.27 | F121: 106.58 | G121: 106.02 | H121: 108.52 | I121: 109.08 | J121: 109.77 | K121: 108.4 | L121: 107.15 | M121: 74.51336
A122: 113 | B122: IRCTC | C122: 2188.45 | D122: 2182.60 | E122: 2166.20 | F122: 2143.95 | G122: 2127.55 | H122: 2204.85 | I122: 2221.25 | J122: 2243.50 | K122: 2199 | L122: 2160.35 | M122: 10.05371
A123: 114 | B123: IGL | C123: 561.15 | D123: 561.82 | E123: 556.63 | F123: 552.12 | G123: 546.93 | H123: 566.33 | I123: 571.52 | J123: 576.03 | K123: 567 | L123: 557.3 | M123: 12.42875
A124: 115 | B124: INDUSTOWER | C124: 235.1 | D124: 234.18 | E124: 232.12 | F124: 229.13 | G124: 227.07 | H124: 237.17 | I124: 239.23 | J124: 242.22 | K124: 236.25 | L124: 231.2 | M124: 11.67154
A125: 116 | B125: INDUSINDBK | C125: 1044.9 | D125: 1034.97 | E125: 1022.93 | F125: 1000.97 | G125: 988.93 | H125: 1056.93 | I125: 1068.97 | J125: 1090.93 | K125: 1047 | L125: 1013 | M125: 37.81022
A126: 117 | B126: NAUKRI | C126: 5332.55 | D126: 5358.48 | E126: 5275.07 | F126: 5217.58 | G126: 5134.17 | H126: 5415.97 | I126: 5499.38 | J126: 5556.87 | K126: 5441.9 | L126: 5301 | M126: 4.19271
A127: 118 | B127: INFY | C127: 1564.6 | D127: 1559.93 | E127: 1549.32 | F127: 1534.03 | G127: 1523.42 | H127: 1575.22 | I127: 1585.83 | J127: 1601.12 | K127: 1570.55 | L127: 1544.65 | M127: 47.9712
A128: 119 | B128: INDIGO | C128: 1809.5 | D128: 1797.38 | E128: 1781.12 | F128: 1752.73 | G128: 1736.47 | H128: 1825.77 | I128: 1842.03 | J128: 1870.42 | K128: 1813.65 | L128: 1769 | M128: 6.95752
A129: 120 | B129: IPCALAB | C129: 2124.5 | D129: 2111.63 | E129: 2094.32 | F129: 2064.13 | G129: 2046.82 | H129: 2141.82 | I129: 2159.13 | J129: 2189.32 | K129: 2128.95 | L129: 2081.45 | M129: 2.05419
A130: 121 | B130: JSWENERGY | C130: 167.1 | D130: 166.20 | E130: 163.90 | F130: 160.70 | G130: 158.40 | H130: 169.40 | I130: 171.70 | J130: 174.90 | K130: 168.5 | L130: 163 | M130: 25.1644
A131: 122 | B131: JSWSTEEL | C131: 690.4 | D131: 684.47 | E131: 674.93 | F131: 659.47 | G131: 649.93 | H131: 699.93 | I131: 709.47 | J131: 724.93 | K131: 694 | L131: 669 | M131: 85.3636
A132: 123 | B132: JINDALSTEL | C132: 400.2 | D132: 395.62 | E132: 388.63 | F132: 377.07 | G132: 370.08 | H132: 407.18 | I132: 414.17 | J132: 425.73 | K132: 402.6 | L132: 384.05 | M132: 114.91655
A133: 124 | B133: JUBLFOOD | C133: 3151.35 | D133: 3143.90 | E133: 3130.25 | F133: 3109.15 | G133: 3095.50 | H133: 3165.00 | I133: 3178.65 | J133: 3199.75 | K133: 3157.55 | L133: 3122.8 | M133: 1.56564
A134: 125 | B134: KOTAKBANK | C134: 1761.8 | D134: 1757.82 | E134: 1747.13 | F134: 1732.47 | G134: 1721.78 | H134: 1772.48 | I134: 1783.17 | J134: 1797.83 | K134: 1768.5 | L134: 1743.15 | M134: 27.26182
A135: 126 | B135: L&TFH | C135: 93.3 | D135: 93.03 | E135: 92.57 | F135: 91.83 | G135: 91.37 | H135: 93.77 | I135: 94.23 | J135: 94.97 | K135: 93.5 | L135: 92.3 | M135: 43.85625
A136: 127 | B136: LTTS | C136: 2921.75 | D136: 2902.33 | E136: 2869.42 | F136: 2817.08 | G136: 2784.17 | H136: 2954.67 | I136: 2987.58 | J136: 3039.92 | K136: 2935.25 | L136: 2850 | M136: 1.5951
A137: 128 | B137: LICHSGFIN | C137: 464.65 | D137: 464.92 | E137: 461.73 | F137: 458.82 | G137: 455.63 | H137: 467.83 | I137: 471.02 | J137: 473.93 | K137: 468.1 | L137: 462 | M137: 12.27335
A138: 129 | B138: LTI | C138: 4034.8 | D138: 4032.98 | E138: 3992.27 | F138: 3949.73 | G138: 3909.02 | H138: 4075.52 | I138: 4116.23 | J138: 4158.77 | K138: 4073.7 | L138: 3990.45 | M138: 1.25022
A139: 130 | B139: LT | C139: 1516.45 | D139: 1510.38 | E139: 1501.07 | F139: 1485.68 | G139: 1476.37 | H139: 1525.77 | I139: 1535.08 | J139: 1550.47 | K139: 1519.7 | L139: 1495 | M139: 10.96808
A140: 131 | B140: LAURUSLABS | C140: 683.4 | D140: 680.03 | E140: 674.57 | F140: 665.73 | G140: 660.27 | H140: 688.87 | I140: 694.33 | J140: 703.17 | K140: 685.5 | L140: 671.2 | M140: 23.59287
A141: 132 | B141: LUPIN | C141: 1148 | D141: 1144.98 | E141: 1136.02 | F141: 1124.03 | G141: 1115.07 | H141: 1156.97 | I141: 1165.93 | J141: 1177.92 | K141: 1153.95 | L141: 1133 | M141: 10.93022
A142: 133 | B142: MRF | C142: 80768.9 | D142: 80806.32 | E142: 80262.78 | F142: 79756.67 | G142: 79213.13 | H142: 81312.43 | I142: 81855.97 | J142: 82362.08 | K142: 81349.85 | L142: 80300.2 | M142: 0.10475
A143: 134 | B143: MGL | C143: 1165.25 | D143: 1161.58 | E143: 1154.17 | F143: 1143.08 | G143: 1135.67 | H143: 1172.67 | I143: 1180.08 | J143: 1191.17 | K143: 1169 | L143: 1150.5 | M143: 5.91766
A144: 135 | B144: M&MFIN | C144: 161.45 | D144: 161.25 | E144: 160.20 | F144: 158.95 | G144: 157.90 | H144: 162.50 | I144: 163.55 | J144: 164.80 | K144: 162.3 | L144: 160 | M144: 42.22452
A145: 136 | B145: M&M | C145: 778.9 | D145: 776.45 | E145: 771.00 | F145: 763.10 | G145: 757.65 | H145: 784.35 | I145: 789.80 | J145: 797.70 | K145: 781.9 | L145: 768.55 | M145: 30.04815
A146: 137 | B146: MANAPPURAM | C146: 177.3 | D146: 177.23 | E146: 175.07 | F146: 172.83 | G146: 170.67 | H146: 179.47 | I146: 181.63 | J146: 183.87 | K146: 179.4 | L146: 175 | M146: 69.80086
A147: 138 | B147: MARICO | C147: 532.45 | D147: 530.15 | E147: 526.30 | F147: 520.15 | G147: 516.30 | H147: 536.30 | I147: 540.15 | J147: 546.30 | K147: 534 | L147: 524 | M147: 18.93166
A148: 139 | B148: MARUTI | C148: 7449.4 | D148: 7488.02 | E148: 7395.03 | F148: 7340.67 | G148: 7247.68 | H148: 7542.38 | I148: 7635.37 | J148: 7689.73 | K148: 7581 | L148: 7433.65 | M148: 3.95336
A149: 140 | B149: MFSL | C149: 1051.45 | D149: 1049.42 | E149: 1039.03 | F149: 1026.62 | G149: 1016.23 | H149: 1061.83 | I149: 1072.22 | J149: 1084.63 | K149: 1059.8 | L149: 1037 | M149: 6.0653
A150: 141 | B150: MINDTREE | C150: 2549.6 | D150: 2537.83 | E150: 2513.97 | F150: 2478.33 | G150: 2454.47 | H150: 2573.47 | I150: 2597.33 | J150: 2632.97 | K150: 2561.7 | L150: 2502.2 | M150: 4.36797
A151: 142 | B151: MPHASIS | C151: 2173.7 | D151: 2154.72 | E151: 2124.03 | F151: 2074.37 | G151: 2043.68 | H151: 2204.38 | I151: 2235.07 | J151: 2284.73 | K151: 2185.4 | L151: 2105.05 | M151: 4.77903
A152: 143 | B152: MUTHOOTFIN | C152: 1561.95 | D152: 1550.65 | E152: 1534.30 | F152: 1506.65 | G152: 1490.30 | H152: 1578.30 | I152: 1594.65 | J152: 1622.30 | K152: 1567 | L152: 1523 | M152: 10.2639
A153: 144 | B153: NATCOPHARM | C153: 1087.15 | D153: 1112.72 | E153: 1044.43 | F153: 1001.72 | G153: 933.43 | H153: 1155.43 | I153: 1223.72 | J153: 1266.43 | K153: 1181 | L153: 1070 | M153: 14.61944
A154: 145 | B154: NMDC | C154: 168.25 | D154: 167.62 | E154: 166.63 | F154: 165.02 | G154: 164.03 | H154: 169.23 | I154: 170.22 | J154: 171.83 | K154: 168.6 | L154: 166 | M154: 547.16097
A155: 146 | B155: NTPC | C155: 117.45 | D155: 117.50 | E155: 116.80 | F155: 116.15 | G155: 115.45 | H155: 118.15 | I155: 118.85 | J155: 119.50 | K155: 118.2 | L155: 116.85 | M155: 145.45289
A156: 147 | B156: NAVINFLUOR | C156: 3853.1 | D156: 3850.93 | E156: 3797.17 | F156: 3741.23 | G156: 3687.47 | H156: 3906.87 | I156: 3960.63 | J156: 4016.57 | K156: 3904.7 | L156: 3795 | M156: 3.94121
A157: 148 | B157: NESTLEIND | C157: 17716.95 | D157: 17625.73 | E157: 17451.47 | F157: 17185.98 | G157: 17011.72 | H157: 17891.22 | I157: 18065.48 | J157: 18330.97 | K157: 17800 | L157: 17360.25 | M157: 0.54519
A158: 149 | B158: NAM-INDIA | C158: 375.65 | D158: 373.55 | E158: 370.10 | F158: 364.55 | G158: 361.10 | H158: 379.10 | I158: 382.55 | J158: 388.10 | K158: 377 | L158: 368 | M158: 7.56658
A159: 150 | B159: OBEROIRLTY | C159: 654.2 | D159: 654.28 | E159: 636.07 | F159: 617.93 | G159: 599.72 | H159: 672.42 | I159: 690.63 | J159: 708.77 | K159: 672.5 | L159: 636.15 | M159: 7.10149
A160: 151 | B160: ONGC | C160: 119.9 | D160: 119.37 | E160: 118.33 | F160: 116.77 | G160: 115.73 | H160: 120.93 | I160: 121.97 | J160: 123.53 | K160: 120.4 | L160: 117.8 | M160: 184.79814
A161: 152 | B161: OIL | C161: 172.85 | D161: 172.78 | E161: 171.57 | F161: 170.28 | G161: 169.07 | H161: 174.07 | I161: 175.28 | J161: 176.57 | K161: 174 | L161: 171.5 | M161: 7.26285
A162: 153 | B162: PIIND | C162: 3000.1 | D162: 2993.27 | E162: 2972.63 | F162: 2945.17 | G162: 2924.53 | H162: 3020.73 | I162: 3041.37 | J162: 3068.83 | K162: 3013.9 | L162: 2965.8 | M162: 1.38062
A163: 154 | B163: PAGEIND | C163: 30898.8 | D163: 30585.60 | E163: 30221.20 | F163: 29543.60 | G163: 29179.20 | H163: 31263.20 | I163: 31627.60 | J163: 32305.20 | K163: 30950 | L163: 29908 | M163: 0.28635
A164: 155 | B164: PETRONET | C164: 224.9 | D164: 224.87 | E164: 224.03 | F164: 223.17 | G164: 222.33 | H164: 225.73 | I164: 226.57 | J164: 227.43 | K164: 225.7 | L164: 224 | M164: 19.09698
A165: 156 | B165: PFIZER | C165: 5702.15 | D165: 5726.38 | E165: 5657.77 | F165: 5613.38 | G165: 5544.77 | H165: 5770.77 | I165: 5839.38 | J165: 5883.77 | K165: 5795 | L165: 5682 | M165: 0.82181
A166: 157 | B166: PIDILITIND | C166: 2276.5 | D166: 2265.63 | E166: 2237.37 | F166: 2198.23 | G166: 2169.97 | H166: 2304.77 | I166: 2333.03 | J166: 2372.17 | K166: 2293.9 | L166: 2226.5 | M166: 5.51296
A167: 158 | B167: PEL | C167: 2331.9 | D167: 2338.13 | E167: 2310.27 | F167: 2288.63 | G167: 2260.77 | H167: 2359.77 | I167: 2387.63 | J167: 2409.27 | K167: 2366 | L167: 2316.5 | M167: 4.60806
A168: 159 | B168: POLYCAB | C168: 1954.4 | D168: 1968.02 | E168: 1935.08 | F168: 1915.77 | G168: 1882.83 | H168: 1987.33 | I168: 2020.27 | J168: 2039.58 | K168: 2000.95 | L168: 1948.7 | M168: 1.66752
A169: 160 | B169: PFC | C169: 121.75 | D169: 121.53 | E169: 120.82 | F169: 119.88 | G169: 119.17 | H169: 122.47 | I169: 123.18 | J169: 124.12 | K169: 122.25 | L169: 120.6 | M169: 24.18174
A170: 161 | B170: POWERGRID | C170: 230.95 | D170: 230.40 | E170: 229.35 | F170: 227.75 | G170: 226.70 | H170: 232.00 | I170: 233.05 | J170: 234.65 | K170: 231.45 | L170: 228.8 | M170: 40.66256
A171: 162 | B171: PRESTIGE | C171: 287.5 | D171: 289.78 | E171: 283.72 | F171: 279.93 | G171: 273.87 | H171: 293.57 | I171: 299.63 | J171: 303.42 | K171: 295.85 | L171: 286 | M171: 10.48545
A172: 163 | B172: PGHH | C172: 13351.8 | D172: 13403.23 | E172: 13225.57 | F172: 13099.33 | G172: 12921.67 | H172: 13529.47 | I172: 13707.13 | J172: 13833.37 | K172: 13580.9 | L172: 13277 | M172: 0.02563
A173: 164 | B173: PNB | C173: 41.7 | D173: 41.77 | E173: 41.48 | F173: 41.27 | G173: 40.98 | H173: 41.98 | I173: 42.27 | J173: 42.48 | K173: 42.05 | L173: 41.55 | M173: 417.10161
A174: 165 | B174: RBLBANK | C174: 223.4 | D174: 219.90 | E174: 215.15 | F174: 206.90 | G174: 202.15 | H174: 228.15 | I174: 232.90 | J174: 241.15 | K174: 224.65 | L174: 211.65 | M174: 290.91948
A175: 166 | B175: RECLTD | C175: 144 | D175: 143.92 | E175: 142.83 | F175: 141.67 | G175: 140.58 | H175: 145.08 | I175: 146.17 | J175: 147.33 | K175: 145 | L175: 142.75 | M175: 25.97884
A176: 167 | B176: RELIANCE | C176: 2110.05 | D176: 2111.93 | E176: 2096.12 | F176: 2082.18 | G176: 2066.37 | H176: 2125.87 | I176: 2141.68 | J176: 2155.62 | K176: 2127.75 | L176: 2098 | M176: 48.24931
A177: 168 | B177: SBICARD | C177: 987.15 | D177: 988.22 | E177: 981.43 | F177: 975.72 | G177: 968.93 | H177: 993.93 | I177: 1000.72 | J177: 1006.43 | K177: 995 | L177: 982.5 | M177: 13.64283
A178: 169 | B178: SBILIFE | C178: 1014.4 | D178: 1017.98 | E178: 1008.97 | F178: 1003.53 | G178: 994.52 | H178: 1023.42 | I178: 1032.43 | J178: 1037.87 | K178: 1027 | L178: 1012.55 | M178: 8.882
A179: 170 | B179: SRF | C179: 7577.5 | D179: 7564.58 | E179: 7519.17 | F179: 7460.83 | G179: 7415.42 | H179: 7622.92 | I179: 7668.33 | J179: 7726.67 | K179: 7610 | L179: 7506.25 | M179: 0.79372
A180: 171 | B180: SANOFI | C180: 7728.5 | D180: 7721.83 | E180: 7686.67 | F180: 7644.83 | G180: 7609.67 | H180: 7763.67 | I180: 7798.83 | J180: 7840.67 | K180: 7757 | L180: 7680 | M180: 0.17282
A181: 172 | B181: SHREECEM | C181: 27547 | D181: 27610.18 | E181: 27106.27 | F181: 26665.53 | G181: 26161.62 | H181: 28050.92 | I181: 28554.83 | J181: 28995.57 | K181: 28114.1 | L181: 27169.45 | M181: 0.78838
A182: 173 | B182: SRTRANSFIN | C182: 1444.35 | D182: 1435.53 | E182: 1421.07 | F182: 1397.78 | G182: 1383.32 | H182: 1458.82 | I182: 1473.28 | J182: 1496.57 | K182: 1450 | L182: 1412.25 | M182: 15.82191
A183: 174 | B183: SIEMENS | C183: 2011.7 | D183: 2016.58 | E183: 1999.22 | F183: 1986.73 | G183: 1969.37 | H183: 2029.07 | I183: 2046.43 | J183: 2058.92 | K183: 2033.95 | L183: 2004.1 | M183: 1.97424
A184: 175 | B184: SBIN | C184: 432.85 | D184: 431.47 | E184: 428.93 | F184: 425.02 | G184: 422.48 | H184: 435.38 | I184: 437.92 | J184: 441.83 | K184: 434 | L184: 427.55 | M184: 144.73774
A185: 176 | B185: SAIL | C185: 128.1 | D185: 126.52 | E185: 123.33 | F185: 118.57 | G185: 115.38 | H185: 131.28 | I185: 134.47 | J185: 139.23 | K185: 129.7 | L185: 121.75 | M185: 702.66324
A186: 177 | B186: SUNPHARMA | C186: 680.1 | D186: 676.07 | E186: 670.13 | F186: 660.17 | G186: 654.23 | H186: 686.03 | I186: 691.97 | J186: 701.93 | K186: 682 | L186: 666.1 | M186: 25.76763
A187: 178 | B187: SUNTV | C187: 523.45 | D187: 526.05 | E187: 519.50 | F187: 515.55 | G187: 509.00 | H187: 530.00 | I187: 536.55 | J187: 540.50 | K187: 532.6 | L187: 522.1 | M187: 10.98217
A188: 179 | B188: SYNGENE | C188: 582.95 | D188: 583.17 | E188: 578.28 | F188: 573.62 | G188: 568.73 | H188: 587.83 | I188: 592.72 | J188: 597.38 | K188: 588.05 | L188: 578.5 | M188: 1.90814
A189: 180 | B189: TVSMOTOR | C189: 604.35 | D189: 606.00 | E189: 600.00 | F189: 595.65 | G189: 589.65 | H189: 610.35 | I189: 616.35 | J189: 620.70 | K189: 612 | L189: 601.65 | M189: 12.09816
A190: 181 | B190: TATACHEM | C190: 770 | D190: 766.00 | E190: 760.05 | F190: 750.10 | G190: 744.15 | H190: 775.95 | I190: 781.90 | J190: 791.85 | K190: 771.95 | L190: 756.05 | M190: 17.97718
A191: 182 | B191: TCS | C191: 3274.95 | D191: 3266.42 | E191: 3250.13 | F191: 3225.32 | G191: 3209.03 | H191: 3291.23 | I191: 3307.52 | J191: 3332.33 | K191: 3282.7 | L191: 3241.6 | M191: 26.4071
A192: 183 | B192: TATACONSUM | C192: 763.05 | D192: 760.12 | E192: 754.18 | F192: 745.32 | G192: 739.38 | H192: 768.98 | I192: 774.92 | J192: 783.78 | K192: 766.05 | L192: 751.25 | M192: 21.04914
A193: 184 | B193: TATAELXSI | C193: 4246.6 | D193: 4268.38 | E193: 4200.47 | F193: 4154.33 | G193: 4086.42 | H193: 4314.52 | I193: 4382.43 | J193: 4428.57 | K193: 4336.3 | L193: 4222.25 | M193: 1.69673
A194: 185 | B194: TATAMOTORS | C194: 317.1 | D194: 314.15 | E194: 309.20 | F194: 301.30 | G194: 296.35 | H194: 322.05 | I194: 327.00 | J194: 334.90 | K194: 319.1 | L194: 306.25 | M194: 1121.83313
A195: 186 | B195: TATAPOWER | C195: 123.85 | D195: 123.50 | E195: 122.50 | F195: 121.15 | G195: 120.15 | H195: 124.85 | I195: 125.85 | J195: 127.20 | K195: 124.5 | L195: 122.15 | M195: 197.73453
A196: 187 | B196: TATASTEEL | C196: 1218.65 | D196: 1200.72 | E196: 1176.43 | F196: 1134.22 | G196: 1109.93 | H196: 1242.93 | I196: 1267.22 | J196: 1309.43 | K196: 1225 | L196: 1158.5 | M196: 167.45626
A197: 188 | B197: TECHM | C197: 1045.9 | D197: 1045.17 | E197: 1030.83 | F197: 1015.77 | G197: 1001.43 | H197: 1060.23 | I197: 1074.57 | J197: 1089.63 | K197: 1059.5 | L197: 1030.1 | M197: 37.13891
A198: 189 | B198: RAMCOCEM | C198: 1080.65 | D198: 1079.78 | E198: 1066.72 | F198: 1052.78 | G198: 1039.72 | H198: 1093.72 | I198: 1106.78 | J198: 1120.72 | K198: 1092.85 | L198: 1065.85 | M198: 11.72898
A199: 190 | B199: TITAN | C199: 1727.25 | D199: 1742.88 | E199: 1702.37 | F199: 1677.48 | G199: 1636.97 | H199: 1767.77 | I199: 1808.28 | J199: 1833.17 | K199: 1783.4 | L199: 1718 | M199: 21.88364
A200: 191 | B200: TORNTPHARM | C200: 2949.55 | D200: 2940.75 | E200: 2925.60 | F200: 2901.65 | G200: 2886.50 | H200: 2964.70 | I200: 2979.85 | J200: 3003.80 | K200: 2955.9 | L200: 2916.8 | M200: 1.12436
A201: 192 | B201: TORNTPOWER | C201: 470.45 | D201: 467.82 | E201: 463.83 | F201: 457.22 | G201: 453.23 | H201: 474.43 | I201: 478.42 | J201: 485.03 | K201: 471.8 | L201: 461.2 | M201: 4.45467
A202: 193 | B202: TRENT | C202: 908.9 | D202: 904.82 | E202: 897.43 | F202: 885.97 | G202: 878.58 | H202: 916.28 | I202: 923.67 | J202: 935.13 | K202: 912.2 | L202: 893.35 | M202: 2.83658
A203: 194 | B203: UPL | C203: 816.9 | D203: 813.47 | E203: 805.43 | F203: 793.97 | G203: 785.93 | H203: 824.93 | I203: 832.97 | J203: 844.43 | K203: 821.5 | L203: 802 | M203: 46.41521
A204: 195 | B204: ULTRACEMCO | C204: 6925.1 | D204: 6899.38 | E204: 6836.77 | F204: 6748.43 | G204: 6685.82 | H204: 6987.72 | I204: 7050.33 | J204: 7138.67 | K204: 6962 | L204: 6811.05 | M204: 3.82398
A205: 196 | B205: UNIONBANK | C205: 37.95 | D205: 37.87 | E205: 37.58 | F205: 37.22 | G205: 36.93 | H205: 38.23 | I205: 38.52 | J205: 38.88 | K205: 38.15 | L205: 37.5 | M205: 116.28898
... 29 more rows

Sheet MidCap Intra
L5: Back To Main Page
A6: FOR INTRA DAY TRADING | K6: =Main!B10 -> 2021-07-08
A9: Sr.no | B9: Scrip | C9: CLOSE RATE | D9: Pivot Point | E9: Supports | H9: Resistances
C10: Point | E10: S1 | F10: S2 | G10: S3 | H10: R1 | I10: R2 | J10: R3 | K10: HIGH | L10: LOW | M10: Total Trade Quanity in Lakhs
A11: 1 | B11: 3MINDIA | C11: 24327.25 | D11: 24491.75 | E11: 24085.50 | F11: 23843.75 | G11: 23437.50 | H11: 24733.50 | I11: 25139.75 | J11: 25381.50 | K11: 24898 | L11: 24250 | M11: 0.04452
A12: 2 | B12: ABB | C12: 1742.1 | D12: 1743.33 | E12: 1728.97 | F12: 1715.83 | G12: 1701.47 | H12: 1756.47 | I12: 1770.83 | J12: 1783.97 | K12: 1757.7 | L12: 1730.2 | M12: 0.69427
A13: 3 | B13: POWERINDIA | C13: 1892.4 | D13: 1895.75 | E13: 1871.65 | F13: 1850.90 | G13: 1826.80 | H13: 1916.50 | I13: 1940.60 | J13: 1961.35 | K13: 1919.85 | L13: 1875 | M13: 0.27225
A14: 4 | B14: ACC | C14: 2036.55 | D14: 2031.30 | E14: 2018.15 | F14: 1999.75 | G14: 1986.60 | H14: 2049.70 | I14: 2062.85 | J14: 2081.25 | K14: 2044.45 | L14: 2012.9 | M14: 3.39727
A15: 5 | B15: AIAENG | C15: 2169.9 | D15: 2177.28 | E15: 2132.57 | F15: 2095.23 | G15: 2050.52 | H15: 2214.62 | I15: 2259.33 | J15: 2296.67 | K15: 2222 | L15: 2139.95 | M15: 1.35057
A16: 6 | B16: APLAPOLLO | C16: 1600.65 | D16: 1604.03 | E16: 1588.67 | F16: 1576.68 | G16: 1561.32 | H16: 1616.02 | I16: 1631.38 | J16: 1643.37 | K16: 1619.4 | L16: 1592.05 | M16: 1.11898
A17: 7 | B17: AUBANK | C17: 1125 | D17: 1116.33 | E17: 1099.67 | F17: 1074.33 | G17: 1057.67 | H17: 1141.67 | I17: 1158.33 | J17: 1183.67 | K17: 1133 | L17: 1091 | M17: 15.42754
A18: 8 | B18: AARTIDRUGS | C18: 732.75 | D18: 732.70 | E18: 723.40 | F18: 714.05 | G18: 704.75 | H18: 742.05 | I18: 751.35 | J18: 760.70 | K18: 742 | L18: 723.35 | M18: 2.53013
A19: 9 | B19: AARTIIND | C19: 863.2 | D19: 857.88 | E19: 850.67 | F19: 838.13 | G19: 830.92 | H19: 870.42 | I19: 877.63 | J19: 890.17 | K19: 865.1 | L19: 845.35 | M19: 16.4686
A20: 10 | B20: AAVAS | C20: 2974.05 | D20: 2944.68 | E20: 2889.37 | F20: 2804.68 | G20: 2749.37 | H20: 3029.37 | I20: 3084.68 | J20: 3169.37 | K20: 3000 | L20: 2860 | M20: 3.59477
A21: 11 | B21: ABBOTINDIA | C21: 17260.6 | D21: 17224.43 | E21: 17093.87 | F21: 16927.13 | G21: 16796.57 | H21: 17391.17 | I21: 17521.73 | J21: 17688.47 | K21: 17355 | L21: 17057.7 | M21: 0.11796
A22: 12 | B22: ADANIENT | C22: 1425.65 | D22: 1415.92 | E22: 1394.73 | F22: 1363.82 | G22: 1342.63 | H22: 1446.83 | I22: 1468.02 | J22: 1498.93 | K22: 1437.1 | L22: 1385 | M22: 55.49751
A23: 13 | B23: ADANIGREEN | C23: 1017.05 | D23: 1004.73 | E23: 974.47 | F23: 931.88 | G23: 901.62 | H23: 1047.32 | I23: 1077.58 | J23: 1120.17 | K23: 1035 | L23: 962.15 | M23: 2.47291
A24: 14 | B24: ADANIPORTS | C24: 720.1 | D24: 716.37 | E24: 709.73 | F24: 699.37 | G24: 692.73 | H24: 726.73 | I24: 733.37 | J24: 743.73 | K24: 723 | L24: 706 | M24: 87.19991
A25: 15 | B25: ATGL | C25: 900.8 | D25: 894.37 | E25: 878.73 | F25: 856.67 | G25: 841.03 | H25: 916.43 | I25: 932.07 | J25: 954.13 | K25: 910 | L25: 872.3 | M25: 10.74532
A26: 16 | B26: ADANITRANS | C26: 939.7 | D26: 934.28 | E26: 911.57 | F26: 883.43 | G26: 860.72 | H26: 962.42 | I26: 985.13 | J26: 1013.27 | K26: 957 | L26: 906.15 | M26: 3.93384
A27: 17 | B27: ABCAPITAL | C27: 114.4 | D27: 114.90 | E27: 113.20 | F27: 112.00 | G27: 110.30 | H27: 116.10 | I27: 117.80 | J27: 119.00 | K27: 116.6 | L27: 113.7 | M27: 21.52007
A28: 18 | B28: ABFRL | C28: 213.5 | D28: 214.05 | E28: 211.90 | F28: 210.30 | G28: 208.15 | H28: 215.65 | I28: 217.80 | J28: 219.40 | K28: 216.2 | L28: 212.45 | M28: 11.35288
A29: 19 | B29: ADVENZYMES | C29: 401.9 | D29: 404.23 | E29: 396.42 | F29: 390.93 | G29: 383.12 | H29: 409.72 | I29: 417.53 | J29: 423.02 | K29: 412.05 | L29: 398.75 | M29: 2.78898
A30: 20 | B30: AEGISCHEM | C30: 351.35 | D30: 348.70 | E30: 344.90 | F30: 338.45 | G30: 334.65 | H30: 355.15 | I30: 358.95 | J30: 365.40 | K30: 352.5 | L30: 342.25 | M30: 2.84434
A31: 21 | B31: AFFLE | C31: 4490.9 | D31: 4483.63 | E31: 4447.27 | F31: 4403.63 | G31: 4367.27 | H31: 4527.27 | I31: 4563.63 | J31: 4607.27 | K31: 4520 | L31: 4440 | M31: 0.24399
A32: 22 | B32: AJANTPHARM | C32: 2169.05 | D32: 2167.32 | E32: 2136.73 | F32: 2104.42 | G32: 2073.83 | H32: 2199.63 | I32: 2230.22 | J32: 2262.53 | K32: 2197.9 | L32: 2135 | M32: 0.72476
A33: 23 | B33: AKZOINDIA | C33: 2330.65 | D33: 2329.88 | E33: 2313.87 | F33: 2297.08 | G33: 2281.07 | H33: 2346.67 | I33: 2362.68 | J33: 2379.47 | K33: 2345.9 | L33: 2313.1 | M33: 0.04803
A34: 24 | B34: ALEMBICLTD | C34: 129.8 | D34: 130.42 | E34: 128.13 | F34: 126.47 | G34: 124.18 | H34: 132.08 | I34: 134.37 | J34: 136.03 | K34: 132.7 | L34: 128.75 | M34: 8.31309
A35: 25 | B35: APLLTD | C35: 986.2 | D35: 985.32 | E35: 978.33 | F35: 970.47 | G35: 963.48 | H35: 993.18 | I35: 1000.17 | J35: 1008.03 | K35: 992.3 | L35: 977.45 | M35: 1.23487
A36: 26 | B36: ALKEM | C36: 3313 | D36: 3305.92 | E36: 3282.13 | F36: 3251.27 | G36: 3227.48 | H36: 3336.78 | I36: 3360.57 | J36: 3391.43 | K36: 3329.7 | L36: 3275.05 | M36: 1.15939
A37: 27 | B37: ALKYLAMINE | C37: 3653.2 | D37: 3674.67 | E37: 3619.53 | F37: 3585.87 | G37: 3530.73 | H37: 3708.33 | I37: 3763.47 | J37: 3797.13 | K37: 3729.8 | L37: 3641 | M37: 0.56359
A38: 28 | B38: ALOKINDS | C38: 26.65 | D38: 26.77 | E38: 26.43 | F38: 26.22 | G38: 25.88 | H38: 26.98 | I38: 27.32 | J38: 27.53 | K38: 27.1 | L38: 26.55 | M38: 47.2557
A39: 29 | B39: AMARAJABAT | C39: 738.35 | D39: 739.28 | E39: 734.07 | F39: 729.78 | G39: 724.57 | H39: 743.57 | I39: 748.78 | J39: 753.07 | K39: 744.5 | L39: 735 | M39: 12.19238
A40: 30 | B40: AMBER | C40: 3006.65 | D40: 3007.25 | E40: 2979.40 | F40: 2952.15 | G40: 2924.30 | H40: 3034.50 | I40: 3062.35 | J40: 3089.60 | K40: 3035.1 | L40: 2980 | M40: 0.67434
A41: 31 | B41: AMBUJACEM | C41: 357.45 | D41: 355.55 | E41: 352.55 | F41: 347.65 | G41: 344.65 | H41: 360.45 | I41: 363.45 | J41: 368.35 | K41: 358.55 | L41: 350.65 | M41: 43.34221
A42: 32 | B42: ANGELBRKG | C42: 935.45 | D42: 935.82 | E42: 887.63 | F42: 839.82 | G42: 791.63 | H42: 983.63 | I42: 1031.82 | J42: 1079.63 | K42: 984 | L42: 888 | M42: 26.10455
A43: 33 | B43: APOLLOHOSP | C43: 3715.6 | D43: 3723.67 | E43: 3689.53 | F43: 3663.47 | G43: 3629.33 | H43: 3749.73 | I43: 3783.87 | J43: 3809.93 | K43: 3757.8 | L43: 3697.6 | M43: 4.66002
A44: 34 | B44: APOLLOTYRE | C44: 231.1 | D44: 230.03 | E44: 228.57 | F44: 226.03 | G44: 224.57 | H44: 232.57 | I44: 234.03 | J44: 236.57 | K44: 231.5 | L44: 227.5 | M44: 24.80384
A45: 35 | B45: ASAHIINDIA | C45: 360.75 | D45: 361.32 | E45: 354.63 | F45: 348.52 | G45: 341.83 | H45: 367.43 | I45: 374.12 | J45: 380.23 | K45: 368 | L45: 355.2 | M45: 1.29299
A46: 36 | B46: ASHOKLEY | C46: 123.55 | D46: 123.17 | E46: 122.38 | F46: 121.22 | G46: 120.43 | H46: 124.33 | I46: 125.12 | J46: 126.28 | K46: 123.95 | L46: 122 | M46: 71.60796
A47: 37 | B47: ASHOKA | C47: 110.05 | D47: 110.22 | E47: 108.93 | F47: 107.82 | G47: 106.53 | H47: 111.33 | I47: 112.62 | J47: 113.73 | K47: 111.5 | L47: 109.1 | M47: 13.91136
A48: 38 | B48: ASIANPAINT | C48: 3040.1 | D48: 3040.12 | E48: 3011.23 | F48: 2982.37 | G48: 2953.48 | H48: 3068.98 | I48: 3097.87 | J48: 3126.73 | K48: 3069 | L48: 3011.25 | M48: 12.34865
A49: 39 | B49: ASTERDM | C49: 151.5 | D49: 152.50 | E49: 149.95 | F49: 148.40 | G49: 145.85 | H49: 154.05 | I49: 156.60 | J49: 158.15 | K49: 155.05 | L49: 150.95 | M49: 4.27286
A50: 40 | B50: ASTRAZEN | C50: 3611.65 | D50: 3616.22 | E50: 3598.08 | F50: 3584.52 | G50: 3566.38 | H50: 3629.78 | I50: 3647.92 | J50: 3661.48 | K50: 3634.35 | L50: 3602.65 | M50: 0.07925
A51: 41 | B51: ASTRAL | C51: 2031 | D51: 2044.37 | E51: 2003.53 | F51: 1976.07 | G51: 1935.23 | H51: 2071.83 | I51: 2112.67 | J51: 2140.13 | K51: 2085.2 | L51: 2016.9 | M51: 1.81204
A52: 42 | B52: ATUL | C52: 9293.25 | D52: 9307.68 | E52: 9235.62 | F52: 9177.98 | G52: 9105.92 | H52: 9365.32 | I52: 9437.38 | J52: 9495.02 | K52: 9379.75 | L52: 9250.05 | M52: 0.16725
A53: 43 | B53: AUROPHARMA | C53: 965.2 | D53: 969.53 | E53: 957.67 | F53: 950.13 | G53: 938.27 | H53: 977.07 | I53: 988.93 | J53: 996.47 | K53: 981.4 | L53: 962 | M53: 16.20439
A54: 44 | B54: AVANTIFEED | C54: 624.8 | D54: 629.32 | E54: 604.53 | F54: 584.27 | G54: 559.48 | H54: 649.58 | I54: 674.37 | J54: 694.63 | K54: 654.1 | L54: 609.05 | M54: 21.78649
A55: 45 | B55: DMART | C55: 3396.4 | D55: 3374.80 | E55: 3347.60 | F55: 3298.80 | G55: 3271.60 | H55: 3423.60 | I55: 3450.80 | J55: 3499.60 | K55: 3402 | L55: 3326 | M55: 2.76021
A56: 46 | B56: AXISBANK | C56: 762.9 | D56: 759.72 | E56: 755.43 | F56: 747.97 | G56: 743.68 | H56: 767.18 | I56: 771.47 | J56: 778.93 | K56: 764 | L56: 752.25 | M56: 35.73368
A57: 47 | B57: BASF | C57: 2632.35 | D57: 2631.62 | E57: 2581.23 | F57: 2530.12 | G57: 2479.73 | H57: 2682.73 | I57: 2733.12 | J57: 2784.23 | K57: 2682 | L57: 2580.5 | M57: 0.5395
A58: 48 | B58: BEML | C58: 1323.5 | D58: 1330.70 | E58: 1299.30 | F58: 1275.10 | G58: 1243.70 | H58: 1354.90 | I58: 1386.30 | J58: 1410.50 | K58: 1362.1 | L58: 1306.5 | M58: 10.10018
A59: 49 | B59: BSE | C59: 958.55 | D59: 959.00 | E59: 949.65 | F59: 940.75 | G59: 931.40 | H59: 967.90 | I59: 977.25 | J59: 986.15 | K59: 968.35 | L59: 950.1 | M59: 5.0744
A60: 50 | B60: BAJAJ-AUTO | C60: 4188.25 | D60: 4194.08 | E60: 4164.17 | F60: 4140.08 | G60: 4110.17 | H60: 4218.17 | I60: 4248.08 | J60: 4272.17 | K60: 4224 | L60: 4170 | M60: 3.92794
A61: 51 | B61: BAJAJCON | C61: 296.75 | D61: 297.12 | E61: 289.78 | F61: 282.82 | G61: 275.48 | H61: 304.08 | I61: 311.42 | J61: 318.38 | K61: 304.45 | L61: 290.15 | M61: 19.5884
A62: 52 | B62: BAJAJELEC | C62: 1052.05 | D62: 1062.52 | E62: 1031.03 | F62: 1010.02 | G62: 978.53 | H62: 1083.53 | I62: 1115.02 | J62: 1136.03 | K62: 1094 | L62: 1041.5 | M62: 4.01568
A63: 53 | B63: BAJFINANCE | C63: 6198.6 | D63: 6215.00 | E63: 6144.00 | F63: 6089.40 | G63: 6018.40 | H63: 6269.60 | I63: 6340.60 | J63: 6395.20 | K63: 6286 | L63: 6160.4 | M63: 19.47925
A64: 54 | B64: BAJAJFINSV | C64: 12374.15 | D64: 12257.72 | E64: 12116.43 | F64: 11858.72 | G64: 11717.43 | H64: 12515.43 | I64: 12656.72 | J64: 12914.43 | K64: 12399 | L64: 12000 | M64: 4.048
A65: 55 | B65: BAJAJHLDNG | C65: 3785.6 | D65: 3796.22 | E65: 3744.48 | F65: 3703.37 | G65: 3651.63 | H65: 3837.33 | I65: 3889.07 | J65: 3930.18 | K65: 3847.95 | L65: 3755.1 | M65: 0.26557
A66: 56 | B66: BALAMINES | C66: 2759.3 | D66: 2766.78 | E66: 2738.57 | F66: 2717.83 | G66: 2689.62 | H66: 2787.52 | I66: 2815.73 | J66: 2836.47 | K66: 2795 | L66: 2746.05 | M66: 0.31435
A67: 57 | B67: BALKRISIND | C67: 2291.3 | D67: 2298.73 | E67: 2280.57 | F67: 2269.83 | G67: 2251.67 | H67: 2309.47 | I67: 2327.63 | J67: 2338.37 | K67: 2316.9 | L67: 2288 | M67: 2.75607
A68: 58 | B68: BALMLAWRIE | C68: 139.55 | D68: 139.92 | E68: 138.13 | F68: 136.72 | G68: 134.93 | H68: 141.33 | I68: 143.12 | J68: 144.53 | K68: 141.7 | L68: 138.5 | M68: 3.51318
A69: 59 | B69: BALRAMCHIN | C69: 344.25 | D69: 341.70 | E69: 336.45 | F69: 328.65 | G69: 323.40 | H69: 349.50 | I69: 354.75 | J69: 362.55 | K69: 346.95 | L69: 333.9 | M69: 8.22186
A70: 60 | B70: BANDHANBNK | C70: 320.55 | D70: 320.42 | E70: 318.13 | F70: 315.72 | G70: 313.43 | H70: 322.83 | I70: 325.12 | J70: 327.53 | K70: 322.7 | L70: 318 | M70: 41.22637
A71: 61 | B71: BANKBARODA | C71: 86.05 | D71: 85.67 | E71: 85.03 | F71: 84.02 | G71: 83.38 | H71: 86.68 | I71: 87.32 | J71: 88.33 | K71: 86.3 | L71: 84.65 | M71: 233.04711
A72: 62 | B72: BANKINDIA | C72: 76.15 | D72: 76.32 | E72: 75.68 | F72: 75.22 | G72: 74.58 | H72: 76.78 | I72: 77.42 | J72: 77.88 | K72: 76.95 | L72: 75.85 | M72: 19.96736
A73: 63 | B73: MAHABANK | C73: 25.2 | D73: 25.33 | E73: 25.02 | F73: 24.83 | G73: 24.52 | H73: 25.52 | I73: 25.83 | J73: 26.02 | K73: 25.65 | L73: 25.15 | M73: 41.55684
A74: 64 | B74: BATAINDIA | C74: 1577 | D74: 1581.27 | E74: 1564.73 | F74: 1552.47 | G74: 1535.93 | H74: 1593.53 | I74: 1610.07 | J74: 1622.33 | K74: 1597.8 | L74: 1569 | M74: 2.55961
A75: 65 | B75: BAYERCROP | C75: 5666.4 | D75: 5663.80 | E75: 5627.60 | F75: 5588.80 | G75: 5552.60 | H75: 5702.60 | I75: 5738.80 | J75: 5777.60 | K75: 5700 | L75: 5625 | M75: 0.0911
A76: 66 | B76: BERGEPAINT | C76: 846.15 | D76: 836.75 | E76: 823.50 | F76: 800.85 | G76: 787.60 | H76: 859.40 | I76: 872.65 | J76: 895.30 | K76: 850 | L76: 814.1 | M76: 28.80935
A77: 67 | B77: BDL | C77: 375.05 | D77: 373.92 | E77: 371.03 | F77: 367.02 | G77: 364.13 | H77: 377.93 | I77: 380.82 | J77: 384.83 | K77: 376.8 | L77: 369.9 | M77: 2.13387
A78: 68 | B78: BEL | C78: 182.9 | D78: 181.73 | E78: 180.07 | F78: 177.23 | G78: 175.57 | H78: 184.57 | I78: 186.23 | J78: 189.07 | K78: 183.4 | L78: 178.9 | M78: 59.4498
A79: 69 | B79: BHARATFORG | C79: 806.3 | D79: 794.65 | E79: 779.65 | F79: 753.00 | G79: 738.00 | H79: 821.30 | I79: 836.30 | J79: 862.95 | K79: 809.65 | L79: 768 | M79: 76.74233
A80: 70 | B80: BHEL | C80: 67.8 | D80: 66.63 | E80: 65.07 | F80: 62.33 | G80: 60.77 | H80: 69.37 | I80: 70.93 | J80: 73.67 | K80: 68.2 | L80: 63.9 | M80: 1076.10245
A81: 71 | B81: BPCL | C81: 460.5 | D81: 458.12 | E81: 454.83 | F81: 449.17 | G81: 445.88 | H81: 463.78 | I81: 467.07 | J81: 472.73 | K81: 461.4 | L81: 452.45 | M81: 30.0029
A82: 72 | B82: BHARATRAS | C82: 13419.35 | D82: 13448.82 | E82: 13308.63 | F82: 13197.92 | G82: 13057.73 | H82: 13559.53 | I82: 13699.72 | J82: 13810.43 | K82: 13589 | L82: 13338.1 | M82: 0.01881
A83: 73 | B83: BHARTIARTL | C83: 529.6 | D83: 527.80 | E83: 525.00 | F83: 520.40 | G83: 517.60 | H83: 532.40 | I83: 535.20 | J83: 539.80 | K83: 530.6 | L83: 523.2 | M83: 65.46286
A84: 74 | B84: BIOCON | C84: 392.1 | D84: 390.40 | E84: 386.70 | F84: 381.30 | G84: 377.60 | H84: 395.80 | I84: 399.50 | J84: 404.90 | K84: 394.1 | L84: 385 | M84: 26.86889
A85: 75 | B85: BIRLACORPN | C85: 1244.7 | D85: 1244.70 | E85: 1234.20 | F85: 1223.70 | G85: 1213.20 | H85: 1255.20 | I85: 1265.70 | J85: 1276.20 | K85: 1255.2 | L85: 1234.2 | M85: 0.80667
A86: 76 | B86: BSOFT | C86: 383.6 | D86: 384.87 | E86: 380.03 | F86: 376.47 | G86: 371.63 | H86: 388.43 | I86: 393.27 | J86: 396.83 | K86: 389.7 | L86: 381.3 | M86: 7.41659
A87: 77 | B87: BLISSGVS | C87: 113.15 | D87: 113.95 | E87: 112.00 | F87: 110.85 | G87: 108.90 | H87: 115.10 | I87: 117.05 | J87: 118.20 | K87: 115.9 | L87: 112.8 | M87: 3.24748
A88: 78 | B88: BLUEDART | C88: 5875.75 | D88: 5881.88 | E88: 5803.77 | F88: 5731.78 | G88: 5653.67 | H88: 5953.87 | I88: 6031.98 | J88: 6103.97 | K88: 5960 | L88: 5809.9 | M88: 0.18089
A89: 79 | B89: BLUESTARCO | C89: 857.25 | D89: 855.02 | E89: 845.48 | F89: 833.72 | G89: 824.18 | H89: 866.78 | I89: 876.32 | J89: 888.08 | K89: 864.55 | L89: 843.25 | M89: 0.70684
A90: 80 | B90: BBTC | C90: 1306.25 | D90: 1308.72 | E90: 1300.53 | F90: 1294.82 | G90: 1286.63 | H90: 1314.43 | I90: 1322.62 | J90: 1328.33 | K90: 1316.9 | L90: 1303 | M90: 0.37186
A91: 81 | B91: BOSCHLTD | C91: 15498.35 | D91: 15496.08 | E91: 15382.27 | F91: 15266.18 | G91: 15152.37 | H91: 15612.17 | I91: 15725.98 | J91: 15842.07 | K91: 15609.9 | L91: 15380 | M91: 0.55609
A92: 82 | B92: BRIGADE | C92: 295 | D92: 293.13 | E92: 287.42 | F92: 279.83 | G92: 274.12 | H92: 300.72 | I92: 306.43 | J92: 314.02 | K92: 298.85 | L92: 285.55 | M92: 12.68195
A93: 83 | B93: BRITANNIA | C93: 3521.35 | D93: 3523.12 | E93: 3504.23 | F93: 3487.12 | G93: 3468.23 | H93: 3540.23 | I93: 3559.12 | J93: 3576.23 | K93: 3542 | L93: 3506 | M93: 5.24482
A94: 84 | B94: BURGERKING | C94: 168.35 | D94: 168.32 | E94: 165.13 | F94: 161.92 | G94: 158.73 | H94: 171.53 | I94: 174.72 | J94: 177.93 | K94: 171.5 | L94: 165.1 | M94: 59.35959
A95: 85 | B95: CCL | C95: 404.3 | D95: 400.38 | E95: 392.92 | F95: 381.53 | G95: 374.07 | H95: 411.77 | I95: 419.23 | J95: 430.62 | K95: 407.85 | L95: 389 | M95: 7.34249
A96: 86 | B96: CESC | C96: 753 | D96: 754.55 | E96: 749.45 | F96: 745.90 | G96: 740.80 | H96: 758.10 | I96: 763.20 | J96: 766.75 | K96: 759.65 | L96: 751 | M96: 1.74024
A97: 87 | B97: CRISIL | C97: 2662.45 | D97: 2679.23 | E97: 2608.47 | F97: 2554.48 | G97: 2483.72 | H97: 2733.22 | I97: 2803.98 | J97: 2857.97 | K97: 2750 | L97: 2625.25 | M97: 0.17709
A98: 88 | B98: CSBBANK | C98: 359.1 | D98: 357.27 | E98: 350.98 | F98: 342.87 | G98: 336.58 | H98: 365.38 | I98: 371.67 | J98: 379.78 | K98: 363.55 | L98: 349.15 | M98: 4.62577
A99: 89 | B99: CADILAHC | C99: 638.1 | D99: 636.07 | E99: 632.58 | F99: 627.07 | G99: 623.58 | H99: 641.58 | I99: 645.07 | J99: 650.58 | K99: 639.55 | L99: 630.55 | M99: 19.43209
A100: 90 | B100: CANFINHOME | C100: 514 | D100: 514.67 | E100: 511.43 | F100: 508.87 | G100: 505.63 | H100: 517.23 | I100: 520.47 | J100: 523.03 | K100: 517.9 | L100: 512.1 | M100: 1.93141
A101: 91 | B101: CANBK | C101: 154.55 | D101: 154.05 | E101: 152.95 | F101: 151.35 | G101: 150.25 | H101: 155.65 | I101: 156.75 | J101: 158.35 | K101: 155.15 | L101: 152.45 | M101: 56.19787
A102: 92 | B102: CAPLIPOINT | C102: 671.15 | D102: 674.63 | E102: 662.92 | F102: 654.68 | G102: 642.97 | H102: 682.87 | I102: 694.58 | J102: 702.82 | K102: 686.35 | L102: 666.4 | M102: 1.44865
A103: 93 | B103: CGCL | C103: 526.85 | D103: 527.23 | E103: 521.47 | F103: 516.08 | G103: 510.32 | H103: 532.62 | I103: 538.38 | J103: 543.77 | K103: 533 | L103: 521.85 | M103: 0.38149
A104: 94 | B104: CARBORUNIV | C104: 670.25 | D104: 652.97 | E104: 629.28 | F104: 588.32 | G104: 564.63 | H104: 693.93 | I104: 717.62 | J104: 758.58 | K104: 676.65 | L104: 612 | M104: 7.38033
A105: 95 | B105: CASTROLIND | C105: 146.55 | D105: 146.83 | E105: 145.42 | F105: 144.28 | G105: 142.87 | H105: 147.97 | I105: 149.38 | J105: 150.52 | K105: 148.25 | L105: 145.7 | M105: 8.28778
A106: 96 | B106: CEATLTD | C106: 1325.6 | D106: 1330.50 | E106: 1317.10 | F106: 1308.60 | G106: 1295.20 | H106: 1339.00 | I106: 1352.40 | J106: 1360.90 | K106: 1343.9 | L106: 1322 | M106: 1.18504
A107: 97 | B107: CENTRALBK | C107: 26.8 | D107: 26.82 | E107: 26.18 | F107: 25.57 | G107: 24.93 | H107: 27.43 | I107: 28.07 | J107: 28.68 | K107: 27.45 | L107: 26.2 | M107: 128.52669
A108: 98 | B108: CDSL | C108: 1022.55 | D108: 1020.83 | E108: 1012.72 | F108: 1002.88 | G108: 994.77 | H108: 1030.67 | I108: 1038.78 | J108: 1048.62 | K108: 1028.95 | L108: 1011 | M108: 2.81981
A109: 99 | B109: CENTURYPLY | C109: 410.55 | D109: 410.02 | E109: 405.53 | F109: 400.52 | G109: 396.03 | H109: 415.03 | I109: 419.52 | J109: 424.53 | K109: 414.5 | L109: 405 | M109: 0.89398
A110: 100 | B110: CENTURYTEX | C110: 687.5 | D110: 689.48 | E110: 678.07 | F110: 668.63 | G110: 657.22 | H110: 698.92 | I110: 710.33 | J110: 719.77 | K110: 700.9 | L110: 680.05 | M110: 10.52077
A111: 101 | B111: CERA | C111: 4488.8 | D111: 4469.80 | E111: 4439.60 | F111: 4390.40 | G111: 4360.20 | H111: 4519.00 | I111: 4549.20 | J111: 4598.40 | K111: 4500 | L111: 4420.6 | M111: 0.11765
A112: 102 | B112: CHALET | C112: 190.5 | D112: 190.98 | E112: 187.02 | F112: 183.53 | G112: 179.57 | H112: 194.47 | I112: 198.43 | J112: 201.92 | K112: 194.95 | L112: 187.5 | M112: 5.65191
A113: 103 | B113: CHAMBLFERT | C113: 294.9 | D113: 295.97 | E113: 292.43 | F113: 289.97 | G113: 286.43 | H113: 298.43 | I113: 301.97 | J113: 304.43 | K113: 299.5 | L113: 293.5 | M113: 8.96903
A114: 104 | B114: CHOLAHLDNG | C114: 643.95 | D114: 644.37 | E114: 633.13 | F114: 622.32 | G114: 611.08 | H114: 655.18 | I114: 666.42 | J114: 677.23 | K114: 655.6 | L114: 633.55 | M114: 0.37688
A115: 105 | B115: CHOLAFIN | C115: 518.95 | D115: 521.58 | E115: 512.67 | F115: 506.38 | G115: 497.47 | H115: 527.87 | I115: 536.78 | J115: 543.07 | K115: 530.5 | L115: 515.3 | M115: 26.53267
A116: 106 | B116: CIPLA | C116: 965.2 | D116: 965.05 | E116: 961.15 | F116: 957.10 | G116: 953.20 | H116: 969.10 | I116: 973.00 | J116: 977.05 | K116: 968.95 | L116: 961 | M116: 17.40439
A117: 107 | B117: CUB | C117: 164.95 | D117: 165.37 | E117: 163.98 | F117: 163.02 | G117: 161.63 | H117: 166.33 | I117: 167.72 | J117: 168.68 | K117: 166.75 | L117: 164.4 | M117: 14.74851
A118: 108 | B118: COALINDIA | C118: 147.55 | D118: 147.62 | E118: 146.48 | F118: 145.42 | G118: 144.28 | H118: 148.68 | I118: 149.82 | J118: 150.88 | K118: 148.75 | L118: 146.55 | M118: 60.67804
A119: 109 | B119: COCHINSHIP | C119: 386.85 | D119: 389.43 | E119: 383.27 | F119: 379.68 | G119: 373.52 | H119: 393.02 | I119: 399.18 | J119: 402.77 | K119: 395.6 | L119: 385.85 | M119: 3.17008
A120: 110 | B120: COFORGE | C120: 4245.05 | D120: 4208.03 | E120: 4157.07 | F120: 4069.08 | G120: 4018.12 | H120: 4296.02 | I120: 4346.98 | J120: 4434.97 | K120: 4259 | L120: 4120.05 | M120: 3.64907
A121: 111 | B121: COLPAL | C121: 1725.2 | D121: 1713.63 | E121: 1697.27 | F121: 1669.33 | G121: 1652.97 | H121: 1741.57 | I121: 1757.93 | J121: 1785.87 | K121: 1730 | L121: 1685.7 | M121: 6.62369
A122: 112 | B122: CAMS | C122: 2938.85 | D122: 2960.95 | E122: 2907.90 | F122: 2876.95 | G122: 2823.90 | H122: 2991.90 | I122: 3044.95 | J122: 3075.90 | K122: 3014 | L122: 2930 | M122: 1.69822
A123: 113 | B123: CONCOR | C123: 692.6 | D123: 694.48 | E123: 684.42 | F123: 676.23 | G123: 666.17 | H123: 702.67 | I123: 712.73 | J123: 720.92 | K123: 704.55 | L123: 686.3 | M123: 21.19973
A124: 114 | B124: COROMANDEL | C124: 898.95 | D124: 902.53 | E124: 892.57 | F124: 886.18 | G124: 876.22 | H124: 908.92 | I124: 918.88 | J124: 925.27 | K124: 912.5 | L124: 896.15 | M124: 1.70946
A125: 115 | B125: CREDITACC | C125: 721.3 | D125: 720.67 | E125: 715.38 | F125: 709.47 | G125: 704.18 | H125: 726.58 | I125: 731.87 | J125: 737.78 | K125: 725.95 | L125: 714.75 | M125: 0.93282
A126: 116 | B126: CROMPTON | C126: 449.95 | D126: 445.25 | E126: 433.70 | F126: 417.45 | G126: 405.90 | H126: 461.50 | I126: 473.05 | J126: 489.30 | K126: 456.8 | L126: 429 | M126: 29.63853
A127: 117 | B127: CUMMINSIND | C127: 866.95 | D127: 871.17 | E127: 856.53 | F127: 846.12 | G127: 831.48 | H127: 881.58 | I127: 896.22 | J127: 906.63 | K127: 885.8 | L127: 860.75 | M127: 10.87702
A128: 118 | B128: CYIENT | C128: 849 | D128: 854.00 | E128: 841.00 | F128: 833.00 | G128: 820.00 | H128: 862.00 | I128: 875.00 | J128: 883.00 | K128: 867 | L128: 846 | M128: 1.18035
A129: 119 | B129: DCBBANK | C129: 103.7 | D129: 103.47 | E129: 102.78 | F129: 101.87 | G129: 101.18 | H129: 104.38 | I129: 105.07 | J129: 105.98 | K129: 104.15 | L129: 102.55 | M129: 6.7375
A130: 120 | B130: DCMSHRIRAM | C130: 890.05 | D130: 893.73 | E130: 879.32 | F130: 868.58 | G130: 854.17 | H130: 904.47 | I130: 918.88 | J130: 929.62 | K130: 908.15 | L130: 883 | M130: 1.11358
A131: 121 | B131: DLF | C131: 294.9 | D131: 294.40 | E131: 290.30 | F131: 285.70 | G131: 281.60 | H131: 299.00 | I131: 303.10 | J131: 307.70 | K131: 298.5 | L131: 289.8 | M131: 77.95807
A132: 122 | B132: DABUR | C132: 594.4 | D132: 592.83 | E132: 589.67 | F132: 584.93 | G132: 581.77 | H132: 597.57 | I132: 600.73 | J132: 605.47 | K132: 596 | L132: 588.1 | M132: 12.55033
A133: 123 | B133: DALBHARAT | C133: 2044.85 | D133: 2037.27 | E133: 2009.63 | F133: 1974.42 | G133: 1946.78 | H133: 2072.48 | I133: 2100.12 | J133: 2135.33 | K133: 2064.9 | L133: 2002.05 | M133: 2.51076
A134: 124 | B134: DEEPAKNTR | C134: 1942.35 | D134: 1926.40 | E134: 1902.80 | F134: 1863.25 | G134: 1839.65 | H134: 1965.95 | I134: 1989.55 | J134: 2029.10 | K134: 1950 | L134: 1886.85 | M134: 19.65632
A135: 125 | B135: DELTACORP | C135: 193.95 | D135: 193.55 | E135: 191.40 | F135: 188.85 | G135: 186.70 | H135: 196.10 | I135: 198.25 | J135: 200.80 | K135: 195.7 | L135: 191 | M135: 31.09116
A136: 126 | B136: DHANI | C136: 182.85 | D136: 181.23 | E136: 179.62 | F136: 176.38 | G136: 174.77 | H136: 184.47 | I136: 186.08 | J136: 189.32 | K136: 182.85 | L136: 178 | M136: 85.292
A137: 127 | B137: DHANUKA | C137: 1001.1 | D137: 1000.58 | E137: 988.52 | F137: 975.93 | G137: 963.87 | H137: 1013.17 | I137: 1025.23 | J137: 1037.82 | K137: 1012.65 | L137: 988 | M137: 0.9794
A138: 128 | B138: DBL | C138: 598.9 | D138: 594.58 | E138: 584.87 | F138: 570.83 | G138: 561.12 | H138: 608.62 | I138: 618.33 | J138: 632.37 | K138: 604.3 | L138: 580.55 | M138: 6.9208
A139: 129 | B139: DISHTV | C139: 13.95 | D139: 13.98 | E139: 13.82 | F139: 13.68 | G139: 13.52 | H139: 14.12 | I139: 14.28 | J139: 14.42 | K139: 14.15 | L139: 13.85 | M139: 71.93641
A140: 130 | B140: DCAL | C140: 203 | D140: 204.17 | E140: 200.43 | F140: 197.87 | G140: 194.13 | H140: 206.73 | I140: 210.47 | J140: 213.03 | K140: 207.9 | L140: 201.6 | M140: 3.22772
A141: 131 | B141: DIVISLAB | C141: 4552.55 | D141: 4534.53 | E141: 4503.02 | F141: 4453.48 | G141: 4421.97 | H141: 4584.07 | I141: 4615.58 | J141: 4665.12 | K141: 4566.05 | L141: 4485 | M141: 3.37061
A142: 132 | B142: DIXON | C142: 4524.45 | D142: 4538.55 | E142: 4463.60 | F142: 4402.75 | G142: 4327.80 | H142: 4599.40 | I142: 4674.35 | J142: 4735.20 | K142: 4613.5 | L142: 4477.7 | M142: 2.91088
A143: 133 | B143: LALPATHLAB | C143: 3456.05 | D143: 3454.08 | E143: 3418.17 | F143: 3380.28 | G143: 3344.37 | H143: 3491.97 | I143: 3527.88 | J143: 3565.77 | K143: 3490 | L143: 3416.2 | M143: 2.2847
A144: 134 | B144: DRREDDY | C144: 5562.1 | D144: 5563.92 | E144: 5513.23 | F144: 5464.37 | G144: 5413.68 | H144: 5612.78 | I144: 5663.47 | J144: 5712.33 | K144: 5614.6 | L144: 5515.05 | M144: 5.38508
A145: 135 | B145: EIDPARRY | C145: 416.9 | D145: 417.73 | E145: 414.47 | F145: 412.03 | G145: 408.77 | H145: 420.17 | I145: 423.43 | J145: 425.87 | K145: 421 | L145: 415.3 | M145: 3.32538
A146: 136 | B146: EIHOTEL | C146: 117.45 | D146: 118.62 | E146: 114.43 | F146: 111.42 | G146: 107.23 | H146: 121.63 | I146: 125.82 | J146: 128.83 | K146: 122.8 | L146: 115.6 | M146: 26.92221
A147: 137 | B147: EPL | C147: 275.15 | D147: 276.35 | E147: 273.35 | F147: 271.55 | G147: 268.55 | H147: 278.15 | I147: 281.15 | J147: 282.95 | K147: 279.35 | L147: 274.55 | M147: 1.33461
A148: 138 | B148: EDELWEISS | C148: 81.4 | D148: 78.73 | E148: 76.07 | F148: 70.73 | G148: 68.07 | H148: 84.07 | I148: 86.73 | J148: 92.07 | K148: 81.4 | L148: 73.4 | M148: 162.52523
A149: 139 | B149: EICHERMOT | C149: 2710.85 | D149: 2715.52 | E149: 2692.13 | F149: 2673.42 | G149: 2650.03 | H149: 2734.23 | I149: 2757.62 | J149: 2776.33 | K149: 2738.9 | L149: 2696.8 | M149: 5.17132
A150: 140 | B150: ELGIEQUIP | C150: 214.75 | D150: 214.93 | E150: 211.87 | F150: 208.98 | G150: 205.92 | H150: 217.82 | I150: 220.88 | J150: 223.77 | K150: 218 | L150: 212.05 | M150: 1.19185
A151: 141 | B151: EMAMILTD | C151: 552.35 | D151: 554.82 | E151: 544.63 | F151: 536.92 | G151: 526.73 | H151: 562.53 | I151: 572.72 | J151: 580.43 | K151: 565 | L151: 547.1 | M151: 11.61052
A152: 142 | B152: ENDURANCE | C152: 1637.05 | D152: 1641.63 | E152: 1625.37 | F152: 1613.68 | G152: 1597.42 | H152: 1653.32 | I152: 1669.58 | J152: 1681.27 | K152: 1657.9 | L152: 1629.95 | M152: 0.50617
A153: 143 | B153: ENGINERSIN | C153: 78.85 | D153: 78.93 | E153: 78.42 | F153: 77.98 | G153: 77.47 | H153: 79.37 | I153: 79.88 | J153: 80.32 | K153: 79.45 | L153: 78.5 | M153: 15.1415
A154: 144 | B154: EQUITAS | C154: 111.1 | D154: 105.88 | E154: 98.97 | F154: 86.83 | G154: 79.92 | H154: 118.02 | I154: 124.93 | J154: 137.07 | K154: 112.8 | L154: 93.75 | M154: 265.56362
A155: 145 | B155: ERIS | C155: 748.3 | D155: 747.27 | E155: 738.53 | F155: 728.77 | G155: 720.03 | H155: 757.03 | I155: 765.77 | J155: 775.53 | K155: 756 | L155: 737.5 | M155: 0.97137
A156: 146 | B156: ESCORTS | C156: 1203.95 | D156: 1200.47 | E156: 1193.93 | F156: 1183.92 | G156: 1177.38 | H156: 1210.48 | I156: 1217.02 | J156: 1227.03 | K156: 1207 | L156: 1190.45 | M156: 5.4722
A157: 147 | B157: EXIDEIND | C157: 183.05 | D157: 182.48 | E157: 181.72 | F157: 180.38 | G157: 179.62 | H157: 183.82 | I157: 184.58 | J157: 185.92 | K157: 183.25 | L157: 181.15 | M157: 13.65158
A158: 148 | B158: FDC | C158: 356.95 | D158: 357.87 | E158: 352.03 | F158: 347.12 | G158: 341.28 | H158: 362.78 | I158: 368.62 | J158: 373.53 | K158: 363.7 | L158: 352.95 | M158: 1.299
A159: 149 | B159: FEDERALBNK | C159: 86.3 | D159: 86.18 | E159: 85.47 | F159: 84.63 | G159: 83.92 | H159: 87.02 | I159: 87.73 | J159: 88.57 | K159: 86.9 | L159: 85.35 | M159: 124.72836
A160: 150 | B160: FINEORG | C160: 3094.5 | D160: 3083.33 | E160: 3037.92 | F160: 2981.33 | G160: 2935.92 | H160: 3139.92 | I160: 3185.33 | J160: 3241.92 | K160: 3128.75 | L160: 3026.75 | M160: 0.29471
A161: 151 | B161: FINCABLES | C161: 514.4 | D161: 517.27 | E161: 508.13 | F161: 501.87 | G161: 492.73 | H161: 523.53 | I161: 532.67 | J161: 538.93 | K161: 526.4 | L161: 511 | M161: 3.06039
A162: 152 | B162: FINPIPE | C162: 178.5 | D162: 178.42 | E162: 177.38 | F162: 176.27 | G162: 175.23 | H162: 179.53 | I162: 180.57 | J162: 181.68 | K162: 179.45 | L162: 177.3 | M162: 8.12932
A163: 153 | B163: FSL | C163: 187.5 | D163: 187.47 | E163: 185.33 | F163: 183.17 | G163: 181.03 | H163: 189.63 | I163: 191.77 | J163: 193.93 | K163: 189.6 | L163: 185.3 | M163: 22.61688
A164: 154 | B164: FORTIS | C164: 243 | D164: 244.05 | E164: 240.60 | F164: 238.20 | G164: 234.75 | H164: 246.45 | I164: 249.90 | J164: 252.30 | K164: 247.5 | L164: 241.65 | M164: 12.79504
A165: 155 | B165: FCONSUMER | C165: 9.35 | D165: 9.38 | E165: 9.27 | F165: 9.18 | G165: 9.07 | H165: 9.47 | I165: 9.58 | J165: 9.67 | K165: 9.5 | L165: 9.3 | M165: 41.46523
A166: 156 | B166: FRETAIL | C166: 63.15 | D166: 63.65 | E166: 62.30 | F166: 61.45 | G166: 60.10 | H166: 64.50 | I166: 65.85 | J166: 66.70 | K166: 65 | L166: 62.8 | M166: 13.3458
A167: 157 | B167: GAIL | C167: 149.95 | D167: 150.20 | E167: 148.30 | F167: 146.65 | G167: 144.75 | H167: 151.85 | I167: 153.75 | J167: 155.40 | K167: 152.1 | L167: 148.55 | M167: 82.1202
A168: 158 | B168: GEPIL | C168: 349.75 | D168: 347.40 | E168: 342.40 | F168: 335.05 | G168: 330.05 | H168: 354.75 | I168: 359.75 | J168: 367.10 | K168: 352.4 | L168: 340.05 | M168: 1.56493
A169: 159 | B169: GMMPFAUDLR | C169: 4742.5 | D169: 4716.80 | E169: 4645.60 | F169: 4548.70 | G169: 4477.50 | H169: 4813.70 | I169: 4884.90 | J169: 4981.80 | K169: 4788 | L169: 4619.9 | M169: 0.36013
A170: 160 | B170: GMRINFRA | C170: 31.8 | D170: 31.72 | E170: 31.48 | F170: 31.17 | G170: 30.93 | H170: 32.03 | I170: 32.27 | J170: 32.58 | K170: 31.95 | L170: 31.4 | M170: 101.66106
A171: 161 | B171: GALAXYSURF | C171: 3140.65 | D171: 3132.45 | E171: 3109.90 | F171: 3079.15 | G171: 3056.60 | H171: 3163.20 | I171: 3185.75 | J171: 3216.50 | K171: 3155 | L171: 3101.7 | M171: 0.44501
A172: 162 | B172: GRSE | C172: 202.2 | D172: 202.98 | E172: 200.72 | F172: 199.23 | G172: 196.97 | H172: 204.47 | I172: 206.73 | J172: 208.22 | K172: 205.25 | L172: 201.5 | M172: 2.41175
A173: 163 | B173: GARFIBRES | C173: 3364.55 | D173: 3346.63 | E173: 3298.52 | F173: 3232.48 | G173: 3184.37 | H173: 3412.67 | I173: 3460.78 | J173: 3526.82 | K173: 3394.75 | L173: 3280.6 | M173: 0.11195
A174: 164 | B174: GICRE | C174: 198.55 | D174: 200.68 | E174: 195.42 | F174: 192.28 | G174: 187.02 | H174: 203.82 | I174: 209.08 | J174: 212.22 | K174: 205.95 | L174: 197.55 | M174: 4.74861
A175: 165 | B175: GILLETTE | C175: 5653.9 | D175: 5657.97 | E175: 5630.93 | F175: 5607.97 | G175: 5580.93 | H175: 5680.93 | I175: 5707.97 | J175: 5730.93 | K175: 5685 | L175: 5635 | M175: 0.03558
A176: 166 | B176: GLAND | C176: 3500.2 | D176: 3490.88 | E176: 3421.77 | F176: 3343.33 | G176: 3274.22 | H176: 3569.32 | I176: 3638.43 | J176: 3716.87 | K176: 3560 | L176: 3412.45 | M176: 2.57534
A177: 167 | B177: GLAXO | C177: 1512 | D177: 1518.02 | E177: 1501.08 | F177: 1490.17 | G177: 1473.23 | H177: 1528.93 | I177: 1545.87 | J177: 1556.78 | K177: 1534.95 | L177: 1507.1 | M177: 0.37498
A178: 168 | B178: GLENMARK | C178: 662.5 | D178: 658.82 | E178: 650.78 | F178: 639.07 | G178: 631.03 | H178: 670.53 | I178: 678.57 | J178: 690.28 | K178: 666.85 | L178: 647.1 | M178: 18.41193
A179: 169 | B179: GODFRYPHLP | C179: 1004.75 | D179: 1006.05 | E179: 993.10 | F179: 981.45 | G179: 968.50 | H179: 1017.70 | I179: 1030.65 | J179: 1042.30 | K179: 1019 | L179: 994.4 | M179: 1.38911
A180: 170 | B180: GODREJAGRO | C180: 660.35 | D180: 658.42 | E180: 650.88 | F180: 641.42 | G180: 633.88 | H180: 667.88 | I180: 675.42 | J180: 684.88 | K180: 665.95 | L180: 648.95 | M180: 2.72677
A181: 171 | B181: GODREJCP | C181: 962.9 | D181: 966.53 | E181: 952.37 | F181: 941.83 | G181: 927.67 | H181: 977.07 | I181: 991.23 | J181: 1001.77 | K181: 980.7 | L181: 956 | M181: 31.06332
A182: 172 | B182: GODREJIND | C182: 554.8 | D182: 558.83 | E182: 549.72 | F182: 544.63 | G182: 535.52 | H182: 563.92 | I182: 573.03 | J182: 578.12 | K182: 567.95 | L182: 553.75 | M182: 3.10446
A183: 173 | B183: GODREJPROP | C183: 1482.1 | D183: 1467.52 | E183: 1438.03 | F183: 1393.97 | G183: 1364.48 | H183: 1511.58 | I183: 1541.07 | J183: 1585.13 | K183: 1497 | L183: 1423.45 | M183: 20.99024
A184: 174 | B184: GRANULES | C184: 342.9 | D184: 340.27 | E184: 336.53 | F184: 330.17 | G184: 326.43 | H184: 346.63 | I184: 350.37 | J184: 356.73 | K184: 344 | L184: 333.9 | M184: 33.50068
A185: 175 | B185: GRAPHITE | C185: 629.75 | D185: 633.60 | E185: 622.20 | F185: 614.65 | G185: 603.25 | H185: 641.15 | I185: 652.55 | J185: 660.10 | K185: 645 | L185: 626.05 | M185: 15.49845
A186: 176 | B186: GRASIM | C186: 1493.85 | D186: 1489.95 | E186: 1479.90 | F186: 1465.95 | G186: 1455.90 | H186: 1503.90 | I186: 1513.95 | J186: 1527.90 | K186: 1500 | L186: 1476 | M186: 11.19109
A187: 177 | B187: GESHIP | C187: 377.75 | D187: 379.03 | E187: 375.72 | F187: 373.68 | G187: 370.37 | H187: 381.07 | I187: 384.38 | J187: 386.42 | K187: 382.35 | L187: 377 | M187: 0.90544
A188: 178 | B188: GREAVESCOT | C188: 164.3 | D188: 165.08 | E188: 161.32 | F188: 158.33 | G188: 154.57 | H188: 168.07 | I188: 171.83 | J188: 174.82 | K188: 168.85 | L188: 162.1 | M188: 25.9287
A189: 179 | B189: GRINDWELL | C189: 1316.75 | D189: 1333.17 | E189: 1276.33 | F189: 1235.92 | G189: 1179.08 | H189: 1373.58 | I189: 1430.42 | J189: 1470.83 | K189: 1390 | L189: 1292.75 | M189: 2.31883
A190: 180 | B190: GUJALKALI | C190: 445.2 | D190: 444.28 | E190: 431.12 | F190: 417.03 | G190: 403.87 | H190: 458.37 | I190: 471.53 | J190: 485.62 | K190: 457.45 | L190: 430.2 | M190: 14.35664
A191: 181 | B191: GAEL | C191: 184.8 | D191: 185.93 | E191: 180.37 | F191: 175.93 | G191: 170.37 | H191: 190.37 | I191: 195.93 | J191: 200.37 | K191: 191.5 | L191: 181.5 | M191: 37.00453
A192: 182 | B192: FLUOROCHEM | C192: 1191.25 | D192: 1191.18 | E192: 1148.37 | F192: 1105.48 | G192: 1062.67 | H192: 1234.07 | I192: 1276.88 | J192: 1319.77 | K192: 1234 | L192: 1148.3 | M192: 2.18367
A193: 183 | B193: GUJGASLTD | C193: 672.1 | D193: 671.48 | E193: 666.72 | F193: 661.33 | G193: 656.57 | H193: 676.87 | I193: 681.63 | J193: 687.02 | K193: 676.25 | L193: 666.1 | M193: 7.71926
A194: 184 | B194: GNFC | C194: 368.65 | D194: 367.07 | E194: 362.68 | F194: 356.72 | G194: 352.33 | H194: 373.03 | I194: 377.42 | J194: 383.38 | K194: 371.45 | L194: 361.1 | M194: 3.55198
A195: 185 | B195: GPPL | C195: 108 | D195: 109.02 | E195: 106.78 | F195: 105.57 | G195: 103.33 | H195: 110.23 | I195: 112.47 | J195: 113.68 | K195: 111.25 | L195: 107.8 | M195: 6.73818
A196: 186 | B196: GSFC | C196: 114.1 | D196: 114.60 | E196: 112.85 | F196: 111.60 | G196: 109.85 | H196: 115.85 | I196: 117.60 | J196: 118.85 | K196: 116.35 | L196: 113.35 | M196: 17.73205
A197: 187 | B197: GSPL | C197: 313.55 | D197: 315.75 | E197: 308.10 | F197: 302.65 | G197: 295.00 | H197: 321.20 | I197: 328.85 | J197: 334.30 | K197: 323.4 | L197: 310.3 | M197: 12.88877
A198: 188 | B198: GULFOILLUB | C198: 686.95 | D198: 688.95 | E198: 684.00 | F198: 681.05 | G198: 676.10 | H198: 691.90 | I198: 696.85 | J198: 699.80 | K198: 693.9 | L198: 686 | M198: 0.31286
A199: 189 | B199: HEG | C199: 2210.45 | D199: 2210.15 | E199: 2155.30 | F199: 2100.15 | G199: 2045.30 | H199: 2265.30 | I199: 2320.15 | J199: 2375.30 | K199: 2265 | L199: 2155 | M199: 3.00331
A200: 190 | B200: HCLTECH | C200: 975.35 | D200: 971.08 | E200: 964.57 | F200: 953.78 | G200: 947.27 | H200: 981.87 | I200: 988.38 | J200: 999.17 | K200: 977.6 | L200: 960.3 | M200: 30.14899
A201: 191 | B201: HDFCAMC | C201: 2898.65 | D201: 2901.08 | E201: 2887.57 | F201: 2876.48 | G201: 2862.97 | H201: 2912.17 | I201: 2925.68 | J201: 2936.77 | K201: 2914.6 | L201: 2890 | M201: 1.02033
A202: 192 | B202: HDFCBANK | C202: 1539.5 | D202: 1537.52 | E202: 1529.68 | F202: 1519.87 | G202: 1512.03 | H202: 1547.33 | I202: 1555.17 | J202: 1564.98 | K202: 1545.35 | L202: 1527.7 | M202: 48.14595
A203: 193 | B203: HDFCLIFE | C203: 685.2 | D203: 683.00 | E203: 680.20 | F203: 675.20 | G203: 672.40 | H203: 688.00 | I203: 690.80 | J203: 695.80 | K203: 685.8 | L203: 678 | M203: 30.25732
A204: 194 | B204: HFCL | C204: 83.5 | D204: 83.90 | E204: 81.05 | F204: 78.60 | G204: 75.75 | H204: 86.35 | I204: 89.20 | J204: 91.65 | K204: 86.75 | L204: 81.45 | M204: 395.1436
A205: 195 | B205: HAPPSTMNDS | C205: 1197.55 | D205: 1181.48 | E205: 1151.17 | F205: 1104.78 | G205: 1074.47 | H205: 1227.87 | I205: 1258.18 | J205: 1304.57 | K205: 1211.8 | L205: 1135.1 | M205: 26.94191
A206: 196 | B206: HATSUN | C206: 920.5 | D206: 918.50 | E206: 907.00 | F206: 893.50 | G206: 882.00 | H206: 932.00 | I206: 943.50 | J206: 957.00 | K206: 930 | L206: 905 | M206: 0.18385
... 321 more rows

Sheet Bulk Deals
E6: Back To Main Page
A7: Subject : | B7: BULK DEAL | D7: =Main!B10 -> 2021-07-08
A9: Date | B9: Scrip code | C9: Scrip Name | D9: Client Name | E9: Buy / Sell | F9: Quantity Traded | G9: Trade Price / Wt.Avg.trade price | H9: Exchange
A10: 2021-07-07 | B10: 539570 | C10: ACEWIN | D10: JESUDAS PREMKUMAR SEBASTIAN | E10: SELL | F10: 220,800 | G10: 7.57 | H10: BSE
A11: 2021-07-07 | B11: 539570 | C11: ACEWIN | D11: NAVEEN GUPTA | E11: BUY | F11: 67,200 | G11: 7.58 | H11: BSE
A12: 2021-07-07 | B12: 539570 | C12: ACEWIN | D12: NAVEEN GUPTA | E12: SELL | F12: 28,800 | G12: 7.55 | H12: BSE
A13: 2021-07-07 | B13: 530187 | C13: ATHARVENT | D13: PURSHOTTAM AGARWAL | E13: SELL | F13: 95,460 | G13: 1.98 | H13: BSE
A14: 2021-07-07 | B14: 542285 | C14: AXITA | D14: NITINBHAI GOVINDBHAI PATEL | E14: BUY | F14: 544,000 | G14: 27.3 | H14: BSE
A15: 2021-07-07 | B15: 542285 | C15: AXITA | D15: AMITKUMAR GOVINDBHAI PATEL | E15: SELL | F15: 548,000 | G15: 27.3 | H15: BSE
A16: 2021-07-07 | B16: 531752 | C16: BIOGEN | D16: ALPHA LEON ENTERPRISES LLP | E16: BUY | F16: 6 | G16: 0.56 | H16: BSE
A17: 2021-07-07 | B17: 531752 | C17: BIOGEN | D17: ALPHA LEON ENTERPRISES LLP | E17: SELL | F17: 7,500,006 | G17: 0.56 | H17: BSE
A18: 2021-07-07 | B18: 531752 | C18: BIOGEN | D18: PARESH DHIRAJLAL SHAH | E18: BUY | F18: 4,500,000 | G18: 0.56 | H18: BSE
A19: 2021-07-07 | B19: 531752 | C19: BIOGEN | D19: PARESH DHIRAJLAL SHAH | E19: SELL | F19: 8,506,359 | G19: 0.56 | H19: BSE
A20: 2021-07-07 | B20: 541778 | C20: DEEP | D20: NNM SECURITIES PVT LTD | E20: BUY | F20: 33,269 | G20: 103.89 | H20: BSE
A21: 2021-07-07 | B21: 541778 | C21: DEEP | D21: NNM SECURITIES PVT LTD | E21: SELL | F21: 262,538 | G21: 93.42 | H21: BSE
A22: 2021-07-07 | B22: 541778 | C22: DEEP | D22: DHIREN KISHORE SHAH | E22: BUY | F22: 75,000 | G22: 85 | H22: BSE
A23: 2021-07-07 | B23: 541778 | C23: DEEP | D23: GALON SERVICES PRIVATE LIMITED | E23: BUY | F23: 100,000 | G23: 95 | H23: BSE
A24: 2021-07-07 | B24: 540151 | C24: DIKSAT | D24: PRAFUL RATILAL KOTHARI | E24: SELL | F24: 150,000 | G24: 100 | H24: BSE
A25: 2021-07-07 | B25: 540151 | C25: DIKSAT | D25: BIPIN CHABILDAS SHAH | E25: BUY | F25: 153,000 | G25: 100 | H25: BSE
A26: 2021-07-07 | B26: 524818 | C26: DYNAMIND | D26: AMAN SHAH | E26: BUY | F26: 20,000 | G26: 99.57 | H26: BSE
A27: 2021-07-07 | B27: 524818 | C27: DYNAMIND | D27: OLGA TRADING PRIVATE LIMITED | E27: BUY | F27: 39,663 | G27: 93.05 | H27: BSE
A28: 2021-07-07 | B28: 524818 | C28: DYNAMIND | D28: OLGA TRADING PRIVATE LIMITED | E28: SELL | F28: 39,663 | G28: 99.49 | H28: BSE
A29: 2021-07-07 | B29: 524818 | C29: DYNAMIND | D29: REENA KALPESH SHAH | E29: SELL | F29: 20,000 | G29: 99.6 | H29: BSE
A30: 2021-07-07 | B30: 524818 | C30: DYNAMIND | D30: NILAM SUNILBHAI JHAVERI | E30: BUY | F30: 17,000 | G30: 99.54 | H30: BSE
A31: 2021-07-07 | B31: 531503 | C31: MARIS | D31: VED PRAKASH AGARWAL | E31: BUY | F31: 60,000 | G31: 48.4 | H31: BSE
A32: 2021-07-07 | B32: 531503 | C32: MARIS | D32: ACHINTYA SECURITIES PVT. LTD. | E32: SELL | F32: 90,000 | G32: 48.39 | H32: BSE
A33: 2021-07-07 | B33: 540243 | C33: NEWLIGHT | D33: RAJESHWARI HARMESH PRAJAPATI | E33: BUY | F33: 13,000 | G33: 24.84 | H33: BSE
A34: 2021-07-07 | B34: 540243 | C34: NEWLIGHT | D34: AL HYAAT OVERSEAS TRADING -F.Z.C | E34: BUY | F34: 25,000 | G34: 26.76 | H34: BSE
A35: 2021-07-07 | B35: 540243 | C35: NEWLIGHT | D35: NIDHI DARSHAN SHAH | E35: SELL | F35: 15,000 | G35: 25.86 | H35: BSE
A36: 2021-07-07 | B36: 540243 | C36: NEWLIGHT | D36: MONIKA RAJPUT | E36: SELL | F36: 16,617 | G36: 24.87 | H36: BSE
A37: 2021-07-07 | B37: 540243 | C37: NEWLIGHT | D37: KANDAGATLA SAMBAMURTHY | E37: BUY | F37: 12,884 | G37: 24.98 | H37: BSE
A38: 2021-07-07 | B38: 540243 | C38: NEWLIGHT | D38: KANDAGATLA SAMBAMURTHY | E38: SELL | F38: 8,300 | G38: 26.6 | H38: BSE
A39: 2021-07-07 | B39: 512279 | C39: NNTL | D39: VIPUL JAYENDRAKUMAR SHAH | E39: BUY | F39: 16,795 | G39: 10.61 | H39: BSE
A40: 2021-07-07 | B40: 539291 | C40: OZONEWORLD | D40: ARUN DASHRATHBHAI PRAJAPATI | E40: BUY | F40: 33,644 | G40: 16.23 | H40: BSE
A41: 2021-07-07 | B41: 539291 | C41: OZONEWORLD | D41: ARUN DASHRATHBHAI PRAJAPATI | E41: SELL | F41: 5,914 | G41: 15.84 | H41: BSE
A42: 2021-07-07 | B42: 539291 | C42: OZONEWORLD | D42: PATEL DINESHKUMAR BHIKHABHAI | E42: SELL | F42: 49,700 | G42: 16.24 | H42: BSE
A43: 2021-07-07 | B43: 539291 | C43: OZONEWORLD | D43: HIRENKUMAR NATVARLAL PATEL (HUF) | E43: BUY | F43: 19,000 | G43: 16.25 | H43: BSE
A44: 2021-07-07 | B44: 512217 | C44: PRISMMEDI | D44: ADITYA SOLANKI | E44: SELL | F44: 40,857 | G44: 7.04 | H44: BSE
A45: 2021-07-07 | B45: 543171 | C45: ROJL | D45: VIJAYKUMAR GOVINDBHAI PATEL | E45: BUY | F45: 18,000 | G45: 27.13 | H45: BSE
A46: 2021-07-07 | B46: 539835 | C46: SUPERIOR | D46: RADHA RANI GUPTA | E46: SELL | F46: 20,000 | G46: 150.03 | H46: BSE
A47: 2021-07-07 | B47: 537392 | C47: TAAZAINT | D47: SIRISHA PABBATHI | E47: BUY | F47: 75,000 | G47: 3.02 | H47: BSE
A48: 2021-07-07 | B48: 537392 | C48: TAAZAINT | D48: SATYANARAYANA PABBATHI | E48: SELL | F48: 75,000 | G48: 3.02 | H48: BSE
A49: 2021-07-07 | B49: 513305 | C49: TERRASCOPE | D49: BHUPINDERSINGH | E49: SELL | F49: 108,759 | G49: 1.96 | H49: BSE
A50: 2021-07-07 | B50: 513216 | C50: UTTAMSTL | D50: ALPHA LEON ENTERPRISES LLP | E50: BUY | F50: 802,167 | G50: 3.93 | H50: BSE
A51: 2021-07-07 | B51: 513216 | C51: UTTAMSTL | D51: MANSI SHARE & STOCK ADVISORS PRIVATE LIMITED | E51: SELL | F51: 1,494,551 | G51: 3.93 | H51: BSE
A52: 2021-07-07 | B52: AUSOMENT | C52: Ausom Enterprise Limited | D52: B M TRADERS | E52: BUY | F52: 126,352 | G52: 94.41 | H52: NSE
A53: 2021-07-07 | B53: BIRLAMONEY | C53: Aditya Birla Money Ltd | D53: GRAVITON RESEARCH CAPITAL LLP | E53: BUY | F53: 440,890 | G53: 63.66 | H53: NSE
A54: 2021-07-07 | B54: CORDSCABLE | C54: Cords Cable Industries Li | D54: MAHESH BABULAL KHATRI | E54: BUY | F54: 73,902 | G54: 70.17 | H54: NSE
A55: 2021-07-07 | B55: EMKAY | C55: Emkay Global Fin Serv Ltd | D55: GRAVITON RESEARCH CAPITAL LLP | E55: BUY | F55: 128,270 | G55: 100.21 | H55: NSE
A56: 2021-07-07 | B56: FORCEMOT | C56: Force Motors Limited | D56: GRAVITON RESEARCH CAPITAL LLP | E56: BUY | F56: 73,341 | G56: 1382.05 | H56: NSE
A57: 2021-07-07 | B57: HARRMALAYA | C57: Harrisons Malayalam Ltd | D57: VIJETA STOCK & SHARES SERVICES PRIVATE LIMITED VIJETA STOCK | E57: BUY | F57: 123,259 | G57: 218.2 | H57: NSE
A58: 2021-07-07 | B58: HGINFRA | C58: H.G.Infra Engineering Ltd | D58: EMPLOYEES RETIREMENT SYSTEM OF TEXAS - SELF MANAGED PORTFOLIO | E58: BUY | F58: 426,311 | G58: 472.23 | H58: NSE
A59: 2021-07-07 | B59: HISARMETAL | C59: Hisar Metal Ind. Limited | D59: GRAVITON RESEARCH CAPITAL LLP | E59: BUY | F59: 35,692 | G59: 144.38 | H59: NSE
A60: 2021-07-07 | B60: JAYSREETEA | C60: Jayashree Tea Ltd. | D60: VIJETA STOCK & SHARES SERVICES PRIVATE LIMITED VIJETA STOCK | E60: BUY | F60: 141,080 | G60: 106.94 | H60: NSE
A61: 2021-07-07 | B61: JISLJALEQS | C61: Jain Irrigation Systems L | D61: ALPHA LEON ENTERPRISES LLP | E61: BUY | F61: 3,282,326 | G61: 31.17 | H61: NSE
A62: 2021-07-07 | B62: LSIL | C62: Lloyds Steels Ind. Ltd. | D62: ALPHA LEON ENTERPRISES LLP | E62: BUY | F62: 250,000 | G62: 3.3 | H62: NSE
A63: 2021-07-07 | B63: MALUPAPER | C63: Malu Paper Mills Limited | D63: NK SECURITIES RESEARCH PRIVATE LIMITED | E63: BUY | F63: 110,370 | G63: 37.78 | H63: NSE
A64: 2021-07-07 | B64: MALUPAPER | C64: Malu Paper Mills Limited | D64: STOCK VERTEX VENTURES | E64: BUY | F64: 100,000 | G64: 39.37 | H64: NSE
A65: 2021-07-07 | B65: MALUPAPER | C65: Malu Paper Mills Limited | D65: BYTES AND PIXELS FINSOFT LLP . | E65: BUY | F65: 94,500 | G65: 39.5 | H65: NSE
A66: 2021-07-07 | B66: MALUPAPER | C66: Malu Paper Mills Limited | D66: VIJIT TRADING | E66: BUY | F66: 270,000 | G66: 39.49 | H66: NSE
A67: 2021-07-07 | B67: MITCON | C67: MITCON Con & Eng Ser Ltd | D67: BEESLEY CONSULTANCY PRIVATE LIMITED | E67: BUY | F67: 120,000 | G67: 36.03 | H67: NSE
A68: 2021-07-07 | B68: MOLDTECH | C68: Mold-Tek Technologies Ltd | D68: NUMIV RESEARCH PRIVATE LIMITED | E68: BUY | F68: 141,898 | G68: 102.09 | H68: NSE
A69: 2021-07-07 | B69: MOLDTECH | C69: Mold-Tek Technologies Ltd | D69: GRAVITON RESEARCH CAPITAL LLP | E69: BUY | F69: 413,776 | G69: 102.19 | H69: NSE
A70: 2021-07-07 | B70: ONMOBILE | C70: OnMobile Global Limited | D70: GRAVITON RESEARCH CAPITAL LLP | E70: BUY | F70: 586,202 | G70: 145.17 | H70: NSE
A71: 2021-07-07 | B71: ORIENTPPR | C71: Orient Paper & Ind Ltd | D71: GRAVITON RESEARCH CAPITAL LLP | E71: BUY | F71: 1,142,338 | G71: 32.48 | H71: NSE
A72: 2021-07-07 | B72: PRAKASHSTL | C72: Prakash Steelage Ltd | D72: VIBRANT SECURITIES PVT. LTD | E72: BUY | F72: 10 | G72: 1.65 | H72: NSE
A73: 2021-07-07 | B73: RAIN | C73: Rain Industries Limited | D73: GRAVITON RESEARCH CAPITAL LLP | E73: BUY | F73: 2,858,521 | G73: 217.36 | H73: NSE
A74: 2021-07-07 | B74: RUCHIRA | C74: Ruchira Papers Limited | D74: GRAVITON RESEARCH CAPITAL LLP | E74: BUY | F74: 140,528 | G74: 100.4 | H74: NSE
A75: 2021-07-07 | B75: SATIA | C75: Satia Industries Limited | D75: OLGA TRADING PRIVATE LIMITED | E75: BUY | F75: 1,095,616 | G75: 107.29 | H75: NSE
A76: 2021-07-07 | B76: STARPAPER | C76: Star Paper Mills Ltd | D76: QE SECURITIES | E76: BUY | F76: 139,888 | G76: 175.67 | H76: NSE
A77: 2021-07-07 | B77: STARPAPER | C77: Star Paper Mills Ltd | D77: NK SECURITIES RESEARCH PRIVATE LIMITED | E77: BUY | F77: 175,645 | G77: 174.58 | H77: NSE
A78: 2021-07-07 | B78: STARPAPER | C78: Star Paper Mills Ltd | D78: XTX MARKETS LLP | E78: BUY | F78: 180,353 | G78: 175.76 | H78: NSE
A79: 2021-07-07 | B79: STARPAPER | C79: Star Paper Mills Ltd | D79: MUKUL MAHESHWARI | E79: BUY | F79: 82,439 | G79: 178.14 | H79: NSE
A80: 2021-07-07 | B80: STARPAPER | C80: Star Paper Mills Ltd | D80: NUMIV RESEARCH PRIVATE LIMITED | E80: BUY | F80: 86,405 | G80: 175.17 | H80: NSE
A81: 2021-07-07 | B81: STARPAPER | C81: Star Paper Mills Ltd | D81: GRAVITON RESEARCH CAPITAL LLP | E81: BUY | F81: 343,368 | G81: 175.59 | H81: NSE
A82: 2021-07-07 | B82: SUBEXLTD | C82: Subex Ltd | D82: GRAVITON RESEARCH CAPITAL LLP | E82: BUY | F82: 3,470,518 | G82: 70.07 | H82: NSE
A83: 2021-07-07 | B83: UFO | C83: UFO Moviez India Ltd. | D83: GRAVITON RESEARCH CAPITAL LLP | E83: BUY | F83: 234,018 | G83: 98.46 | H83: NSE
A84: 2021-07-07 | B84: UFO | C84: UFO Moviez India Ltd. | D84: ANKITA VISHAL SHAH | E84: BUY | F84: 419,793 | G84: 99.05 | H84: NSE
A85: 2021-07-07 | B85: UNITEDPOLY | C85: United Polyfab Guj. Ltd. | D85: GAGAN NIRMALKUMAR MITTAL | E85: BUY | F85: 450,000 | G85: 8.6 | H85: NSE
A86: 2021-07-07 | B86: UNITEDPOLY | C86: United Polyfab Guj. Ltd. | D86: NIRMALKUMAR MANGALCHAND MITTAL | E86: BUY | F86: 450,000 | G86: 8.6 | H86: NSE
A87: 2021-07-07 | B87: VERTOZ | C87: Vertoz Advertising Ltd | D87: OLGA TRADING PRIVATE LIMITED | E87: BUY | F87: 90,671 | G87: 166.4 | H87: NSE
A88: 2021-07-07 | B88: VERTOZ | C88: Vertoz Advertising Ltd | D88: SHREE SHIVSHAKTI PROJECT CONSULTANT PRIVATE LIMITE | E88: BUY | F88: 70,564 | G88: 166.58 | H88: NSE
A89: 2021-07-07 | B89: VIKASLIFE | C89: Vikas Lifecare Limited | D89: ADROIT FINANCIAL SERVICES PVT LTD | E89: BUY | F89: 10,827,256 | G89: 2.83 | H89: NSE
A90: 2021-07-07 | B90: ASIANTILES | C90: Asian Granito India Limit | D90: REMCOM SALES SERVICES PVT LTD | E90: SELL | F90: 190,000 | G90: 181.02 | H90: NSE
A91: 2021-07-07 | B91: AUSOMENT | C91: Ausom Enterprise Limited | D91: B M TRADERS | E91: SELL | F91: 126,352 | G91: 96.63 | H91: NSE
A92: 2021-07-07 | B92: BIRLAMONEY | C92: Aditya Birla Money Ltd | D92: GRAVITON RESEARCH CAPITAL LLP | E92: SELL | F92: 440,890 | G92: 63.77 | H92: NSE
A93: 2021-07-07 | B93: BRIGHT | C93: Bright Solar Limited | D93: PURPLESTONE ADVISORS PRIVATE LIMITED | E93: SELL | F93: 261,000 | G93: 6.8 | H93: NSE
A94: 2021-07-07 | B94: CORDSCABLE | C94: Cords Cable Industries Li | D94: MAHESH BABULAL KHATRI | E94: SELL | F94: 107,789 | G94: 69.48 | H94: NSE
A95: 2021-07-07 | B95: DHANI | C95: Dhani Services Limited | D95: TAMARIND CAPITAL PTE LTD | E95: SELL | F95: 6,900,000 | G95: 182.85 | H95: NSE
A96: 2021-07-07 | B96: EMKAY | C96: Emkay Global Fin Serv Ltd | D96: GRAVITON RESEARCH CAPITAL LLP | E96: SELL | F96: 128,270 | G96: 100.22 | H96: NSE
A97: 2021-07-07 | B97: FORCEMOT | C97: Force Motors Limited | D97: GRAVITON RESEARCH CAPITAL LLP | E97: SELL | F97: 73,341 | G97: 1383.57 | H97: NSE
A98: 2021-07-07 | B98: HARRMALAYA | C98: Harrisons Malayalam Ltd | D98: VIJETA STOCK & SHARES SERVICES PRIVATE LIMITED VIJETA STOCK | E98: SELL | F98: 111,559 | G98: 217.36 | H98: NSE
A99: 2021-07-07 | B99: HISARMETAL | C99: Hisar Metal Ind. Limited | D99: GRAVITON RESEARCH CAPITAL LLP | E99: SELL | F99: 35,692 | G99: 144.65 | H99: NSE
A100: 2021-07-07 | B100: INDLMETER | C100: IMP Powers Ltd | D100: NIRAJ RAJNIKANT SHAH | E100: SELL | F100: 50,000 | G100: 17.04 | H100: NSE
A101: 2021-07-07 | B101: JAYSREETEA | C101: Jayashree Tea Ltd. | D101: VIJETA STOCK & SHARES SERVICES PRIVATE LIMITED VIJETA STOCK | E101: SELL | F101: 150,080 | G101: 107.76 | H101: NSE
A102: 2021-07-07 | B102: JISLJALEQS | C102: Jain Irrigation Systems L | D102: ALPHA LEON ENTERPRISES LLP | E102: SELL | F102: 3,389,546 | G102: 31.2 | H102: NSE
A103: 2021-07-07 | B103: LSIL | C103: Lloyds Steels Ind. Ltd. | D103: ALPHA LEON ENTERPRISES LLP | E103: SELL | F103: 6,250,000 | G103: 3.3 | H103: NSE
A104: 2021-07-07 | B104: MALUPAPER | C104: Malu Paper Mills Limited | D104: NK SECURITIES RESEARCH PRIVATE LIMITED | E104: SELL | F104: 110,443 | G104: 37.85 | H104: NSE
A105: 2021-07-07 | B105: MALUPAPER | C105: Malu Paper Mills Limited | D105: BYTES AND PIXELS FINSOFT LLP . | E105: SELL | F105: 94,500 | G105: 39.5 | H105: NSE
A106: 2021-07-07 | B106: MOLDTECH | C106: Mold-Tek Technologies Ltd | D106: NUMIV RESEARCH PRIVATE LIMITED | E106: SELL | F106: 141,898 | G106: 102.14 | H106: NSE
A107: 2021-07-07 | B107: MOLDTECH | C107: Mold-Tek Technologies Ltd | D107: GRAVITON RESEARCH CAPITAL LLP | E107: SELL | F107: 413,776 | G107: 102.43 | H107: NSE
A108: 2021-07-07 | B108: ONMOBILE | C108: OnMobile Global Limited | D108: GRAVITON RESEARCH CAPITAL LLP | E108: SELL | F108: 586,202 | G108: 145.21 | H108: NSE
A109: 2021-07-07 | B109: ORIENTPPR | C109: Orient Paper & Ind Ltd | D109: GRAVITON RESEARCH CAPITAL LLP | E109: SELL | F109: 1,142,338 | G109: 32.55 | H109: NSE
A110: 2021-07-07 | B110: PRAKASHSTL | C110: Prakash Steelage Ltd | D110: VIBRANT SECURITIES PVT. LTD | E110: SELL | F110: 878,171 | G110: 1.58 | H110: NSE
A111: 2021-07-07 | B111: RAIN | C111: Rain Industries Limited | D111: GRAVITON RESEARCH CAPITAL LLP | E111: SELL | F111: 2,858,521 | G111: 217.52 | H111: NSE
A112: 2021-07-07 | B112: RUCHIRA | C112: Ruchira Papers Limited | D112: GRAVITON RESEARCH CAPITAL LLP | E112: SELL | F112: 140,528 | G112: 100.52 | H112: NSE
A113: 2021-07-07 | B113: SATIA | C113: Satia Industries Limited | D113: OLGA TRADING PRIVATE LIMITED | E113: SELL | F113: 495,616 | G113: 104.85 | H113: NSE
A114: 2021-07-07 | B114: STARPAPER | C114: Star Paper Mills Ltd | D114: NUMIV RESEARCH PRIVATE LIMITED | E114: SELL | F114: 86,405 | G114: 175.28 | H114: NSE
A115: 2021-07-07 | B115: STARPAPER | C115: Star Paper Mills Ltd | D115: QE SECURITIES | E115: SELL | F115: 143,434 | G115: 175.89 | H115: NSE
A116: 2021-07-07 | B116: STARPAPER | C116: Star Paper Mills Ltd | D116: XTX MARKETS LLP | E116: SELL | F116: 180,783 | G116: 176.14 | H116: NSE
A117: 2021-07-07 | B117: STARPAPER | C117: Star Paper Mills Ltd | D117: SEETHA KUMARI | E117: SELL | F117: 229,368 | G117: 174.7 | H117: NSE
A118: 2021-07-07 | B118: STARPAPER | C118: Star Paper Mills Ltd | D118: MUKUL MAHESHWARI | E118: SELL | F118: 52,439 | G118: 178.31 | H118: NSE
A119: 2021-07-07 | B119: STARPAPER | C119: Star Paper Mills Ltd | D119: NK SECURITIES RESEARCH PRIVATE LIMITED | E119: SELL | F119: 175,645 | G119: 174.69 | H119: NSE
A120: 2021-07-07 | B120: STARPAPER | C120: Star Paper Mills Ltd | D120: GRAVITON RESEARCH CAPITAL LLP | E120: SELL | F120: 343,368 | G120: 175.78 | H120: NSE
A121: 2021-07-07 | B121: SUBEXLTD | C121: Subex Ltd | D121: GRAVITON RESEARCH CAPITAL LLP | E121: SELL | F121: 3,470,518 | G121: 70.06 | H121: NSE
A122: 2021-07-07 | B122: UFO | C122: UFO Moviez India Ltd. | D122: ANKITA VISHAL SHAH | E122: SELL | F122: 274,793 | G122: 99.25 | H122: NSE
A123: 2021-07-07 | B123: UFO | C123: UFO Moviez India Ltd. | D123: GRAVITON RESEARCH CAPITAL LLP | E123: SELL | F123: 234,018 | G123: 98.57 | H123: NSE
A124: 2021-07-07 | B124: UJJIVAN | C124: Ujjivan Fin. Servc. Ltd. | D124: ABERDEEN GLOBAL ASIAN SMALLER COMPANIES FUND | E124: SELL | F124: 1,005,335 | G124: 203.83 | H124: NSE
A125: 2021-07-07 | B125: UNITEDPOLY | C125: United Polyfab Guj. Ltd. | D125: DHANSHREE BARTER PVT LTD | E125: SELL | F125: 450,000 | G125: 8.6 | H125: NSE
A126: 2021-07-07 | B126: UNITEDPOLY | C126: United Polyfab Guj. Ltd. | D126: AMAYSHA TEXTILES PRIVATE LIMITED | E126: SELL | F126: 450,000 | G126: 8.6 | H126: NSE
A127: 2021-07-07 | B127: UTTAMSTL | C127: Uttam Galva Steels Limite | D127: ALPHA LEON ENTERPRISES LLP | E127: SELL | F127: 802,167 | G127: 4.05 | H127: NSE
A128: 2021-07-07 | B128: VERTOZ | C128: Vertoz Advertising Ltd | D128: SHREE SHIVSHAKTI PROJECT CONSULTANT PRIVATE LIMITE | E128: SELL | F128: 70,564 | G128: 166.63 | H128: NSE
A129: 2021-07-07 | B129: VERTOZ | C129: Vertoz Advertising Ltd | D129: OLGA TRADING PRIVATE LIMITED | E129: SELL | F129: 90,671 | G129: 166.71 | H129: NSE
A130: 2021-07-07 | B130: VIKASLIFE | C130: Vikas Lifecare Limited | D130: ADROIT FINANCIAL SERVICES PVT LTD | E130: SELL | F130: 9,722,024 | G130: 2.84 | H130: NSE
A131: 2021-07-07 | B131: WALCHANNAG | C131: Walchandnagar Ind. Ltd | D131: VISTRA ITCL INDIA LIMITED | E131: SELL | F131: 350,000 | G131: 75.64 | H131: NSE

Sheet Call Tracker (Equity & F&O)
M5: Back To Main Page
A6: Retail Research Technical Calls & Fundamental Performance Report for the month of July-2021
M7: =Main!B10 -> 2021-07-08
B8: Positional Call
A9: Sr.no | B9: Date | D9: Company | E9: Rec | F9: Rec Price | G9: Stop Loss*** | H9: Call Closed At | I9: Target | J9: Remark | K9: Profit / Loss per Share | L9: All charges | M9: Net Gain / Loss % | N9: Status | O9: Closed Date
A10: 1 | B10: 2021-04-05 | D10: HDFCBANK | E10: Buy<> | F10: 1463.5 | G10: 1370 | H10: 1529 | I10: 1600-1700 | J10: Part Profit of Rs.65.5/- | K10: =H10-F10 -> 65.5 | L10: =(F10*-0.8)/100 -> -11.71 | M10: =(K10+L10)/F10 -> 3.68% | N10: Successful | O10: 2021-07-06 | R10: H
A11: 2 | B11: 2021-05-26 | D11: JKCEMENT | E11: Buy | F11: 2840 | G11: 2650 | H11: 2,970.00 | I11: 3100-3200 | J11: Part Profit of Rs.130/- | K11: 130 | L11: =(F11*-0.8)/100 -> -22.72 | M11: 3.78% | N11: Successful | O11: 2021-07-06 | R11: H
A12: 3 | B12: 2021-05-27 | D12: BHARTIARTL | E12: Buy | F12: 522.5 | G12: 488 | H12: 544 | I12: 590-610 | J12: Part Profit of Rs.21.5/- | K12: =H12-F12 -> 21.5 | L12: =(F12*-0.8)/100 -> -4.18 | M12: =(K12+L12)/F12 -> 3.31% | N12: Successful | O12: 2021-06-08 | R12: H
A13: 4 | B13: 2021-06-01 | D13: HEROMOTOCO | E13: Buy | F13: 2965-2985 | G13: 2790 | I13: 3300-3350 | J13: Open | R13: H
A14: 5 | B14: 2021-06-03 | D14: HUHTAMAKI | E14: Buy<> | F14: 292 | G14: 275 | H14: 308.5 | I14: 317-327 | J14: Part Profit of Rs.14.5/- | K14: =H14-F14 -> 16.5 | L14: =(F14*-0.8)/100 -> -2.34 | M14: =(K14+L14)/F14 -> 4.85% | N14: Successful | O14: 2021-06-04 | R14: H
A15: 6 | B15: 2021-06-10 | D15: BRITANNIA | E15: Buy | F15: 3570-3600 | G15: 3345 | I15: 3900-4000 | J15: Open | R15: H
A16: 7 | B16: 2021-06-15 | D16: PRSMJOHNSN | E16: Buy | F16: 131 | G16: 123 | H16: 141 | I16: 150 | J16: Profit of Rs.10/- | K16: =H16-F16 -> 10 | L16: =(F16*-0.8)/100 -> -1.05 | M16: =(K16+L16)/F16 -> 6.83% | N16: Successful | O16: 2021-07-06 | R16: N
A17: 8 | B17: 2021-06-16 | D17: ESCORTS | E17: Buy | F17: 1190-1205 | G17: 1119 | I17: 1300-1350 | J17: Open | R17: H
A18: 9 | B18: 2021-07-05 | D18: CYIENT | E18: Buy | F18: 850-860 | G18: 795 | I18: 950-970 | J18: Open | R18: N
A19: 10 | B19: 2021-07-07 | D19: NMDC | E19: Buy | F19: 165-167 | G19: 157 | I19: 180-185 | J19: Open | R19: H
A20: 11 | B20: 2021-07-07 | D20: AARTIIND | E20: Buy | F20: 847-857 | G20: 814 | I20: 900-930 | J20: Open | R20: H
A24: CLBS = Closing Basis ***
A25: Dividend adjusted <> | F25: Reinitiated $
A26: Part book {} | F26: Revised stoploss #
B28: Momentum Call
A29: Sr.no | B29: Date | D29: Company | E29: Rec | F29: Rec Price | G29: Stop Loss | H29: Call Closed At | I29: Target | J29: Remark | K29: Profit / Loss per Share/Lot | L29: All charges | M29: Net Gain / Loss % | N29: Status | O29: Closed Date
A30: 1 | B30: 2021-06-24 | D30: AMARAJABAT | E30: Buy | F30: 741-745 | G30: 718 | I30: 780-790 | J30: Open | R30: H
A31: 2 | B31: 2021-06-25 | D31: KOTAKBANK | E31: Buy | F31: 1725 | G31: 1665 | H31: 1764 | I31: 1800-1830 | J31: Profit of Rs.39/- | K31: =H31-F31 -> 39 | L31: =(F31*-0.7)/100 -> -12.08 | M31: =(K31+L31)/F31 -> 1.56% | N31: Successful | O31: 2021-07-07 | R31: H
A32: 3 | B32: 2021-06-28 | D32: METROPOLIS | E32: Buy | F32: 2825 | G32: 2735 | H32: 2902.5 | I32: 3000 | J32: Profit of Rs.77.5/- | K32: =H32-F32 -> 77.5 | L32: =(F32*-0.7)/100 -> -19.78 | M32: =(K32+L32)/F32 -> 2.04% | N32: Successful | O32: 2021-07-05 | R32: N
A33: 4 | B33: 2021-06-30 | D33: MIDHANI | E33: Buy | F33: 204.5-205.5 | G33: 199 | I33: 215 | J33: Open | R33: H
A34: 5 | B34: 2021-06-30 | D34: BATAINDIA | E34: Buy | F34: 1595-1601 | G34: 1545 | I34: 1700 | J34: Open | R34: N
A35: 6 | B35: 2021-06-30 | D35: ERIS | E35: Buy | F35: 712.5 | G35: 695 | H35: 733.5 | I35: 760 | J35: Profit of Rs.21/- | K35: =H35-F35 -> 21 | L35: =(F35*-0.7)/100 -> -4.99 | M35: =(K35+L35)/F35 -> 2.25% | N35: Successful | O35: 2021-07-01 | R35: N
A36: 7 | B36: 2021-07-01 | D36: HSCL | E36: Buy | F36: 54.75 | G36: 53 | H36: 56.4 | I36: 58-60 | J36: Profit of Rs.1.65/- | K36: =H36-F36 -> 1.65 | L36: =(F36*-0.7)/100 -> -0.38 | M36: =(K36+L36)/F36 -> 2.31% | N36: Successful | O36: 2021-07-02 | R36: H
A37: 8 | B37: 2021-07-01 | D37: DELTACORP | E37: Buy | F37: 182.5 | G37: 177 | H37: 188 | I37: 193 | J37: Profit of Rs.5.5/- | K37: =H37-F37 -> 5.5 | L37: =(F37*-0.7)/100 -> -1.28 | M37: =(K37+L37)/F37 -> 2.31% | N37: Successful | O37: 2021-07-02 | R37: N
A38: 9 | B38: 2021-07-02 | D38: GREAVESCOT | E38: Buy | F38: 159.5 | G38: 154 | H38: 164.25 | I38: 168-170 | J38: Profit of Rs.4.75/- | K38: =H38-F38 -> 4.75 | L38: =(F38*-0.07)/100 -> -0.11 | M38: =(K38+L38)/F38 -> 2.91% | N38: Successful | O38: 2021-07-02 | R38: H
A39: 10 | B39: 2021-07-02 | D39: JUSTDIAL | E39: Buy | F39: 1003 | G39: 970 | H39: 1032.5 | I39: 1060 | J39: Profit of Rs.29.5/- | K39: 29.5 | L39: =(F39*-0.7)/100 -> -7.02 | M39: 2.24% | N39: Successful | O39: 2021-07-05 | R39: N
A40: 11 | B40: 2021-07-05 | D40: SWSOLAR | E40: Buy | F40: 280.5 | G40: 273 | H40: 287.5 | I40: 290-295 | J40: Profit of Rs.7/- | K40: =H40-F40 -> 7 | L40: =(F40*-0.07)/100 -> -0.20 | M40: =(K40+L40)/F40 -> 2.43% | N40: Successful | O40: 2021-07-05 | R40: H
A41: 12 | B41: 2021-07-06 | D41: GNA | E41: Buy | F41: 473.5 | G41: 458 | H41: 458 | I41: 500 | J41: Loss of Rs.15.5/- | K41: =H41-F41 -> -15.5 | L41: =(F41*-0.07)/100 -> -0.33 | M41: =(K41+L41)/F41 -> -3.34% | N41: Unsuccessful | O41: 2021-07-06 | R41: N
A42: 13 | B42: 2021-07-06 | D42: SWSOLAR | E42: Buy | F42: 281 | G42: 273 | H42: 273 | I42: 290-295 | J42: Loss of Rs.8/- | K42: =H42-F42 -> -8 | L42: =(F42*-0.07)/100 -> -0.20 | M42: =(K42+L42)/F42 -> -2.92% | N42: Unsuccessful | O42: 2021-07-06 | R42: H
A43: 14 | B43: 2021-07-06 | D43: MUTHOOTFIN | E43: Buy | F43: 1545 | G43: 1514 | H43: 1576 | I43: 1620-1640 | J43: Profit of Rs.31/- | K43: 31 | L43: =(F43*-0.07)/100 -> -1.08 | M43: 1.94% | N43: Successful | O43: 2021-07-06 | R43: H
A44: 15 | B44: 2021-07-07 | D44: MUTHOOTFIN | E44: Buy | F44: 1532 | G44: 1490 | H44: 1562 | I44: 1600-1620 | J44: Profit of Rs.30/- | K44: =H44-F44 -> 30 | L44: =(F44*-0.07)/100 -> -1.07 | M44: =(K44+L44)/F44 -> 1.89% | N44: Successful | O44: 2021-07-07 | R44: H
A45: 16 | B45: 2021-07-07 | D45: JUSTDIAL | E45: Buy | F45: 1001-1006 | G45: 970 | I45: 1060 | J45: Open | R45: N
A51: CLBS = Closing Basis *** | H51: *
A52: Dividend adjusted <> | F52: Reinitiated $
F53: Revised stoploss #
A55: Master Trade High Risk
A56: Sr.no | B56: Date | D56: Company | E56: Rec | F56: Rec Price | G56: Stop Loss | H56: Call Closed At | I56: Target | J56: Remark | K56: Profit / Loss per share | L56: All charges | M56: Gain / Loss per Lot | N56: Lot | O56: Status | P56: Closed Date
A57: 1 | B57: 2021-06-29 | D57: SBIN JUL FUT | E57: Buy | F57: 426.5 | G57: 418 | H57: 432 | I57: 445 | J57: Profit of Rs.5.5/- | K57: =H57-F57 -> 5.5 | L57: =(H57*N57)*0.07% -> 453.60 | M57: =(K57*N57)-L57 -> 7796.4 | N57: 1500 | O57: Successful | P57: 2021-07-05 | R57: H
A58: 2 | B58: 2021-06-30 | D58: COLPAL JUL FUT | E58: Buy | F58: 1679 | G58: 1645 | H58: 1702 | I58: 1740 | J58: Profit of Rs.23/- | K58: =H58-F58 -> 23 | L58: =(H58*N58)*0.07% -> 416.99 | M58: =(K58*N58)-L58 -> 7633.0 | N58: 350 | O58: Successful | P58: 2021-07-01 | R58: N
A59: 3 | B59: 2021-06-30 | D59: AXISBANK JUL FUT | E59: Buy | F59: 755 | G59: 745 | H59: 762 | I59: 775 | J59: Profit of Rs.7/- | K59: 7 | L59: 640.08 | M59: 7759.9 | N59: 1200 | O59: Successful | P59: 2021-07-05 | R59: H
A60: 4 | B60: 2021-06-30 | D60: HINDUNILVR JUL FUT | E60: Buy | F60: 2482.5 | G60: 2440 | H60: 2507.5 | I60: 2540-2550 | J60: Profit of Rs.25/- | K60: =H60-F60 -> 25 | L60: =(H60*N60)*0.07% -> 526.58 | M60: =(K60*N60)-L60 -> 6973.4 | N60: 300 | O60: Successful | P60: 2021-07-05 | R60: N
A61: 5 | B61: 2021-07-01 | D61: HDFCLIFE JUL FUT | E61: Buy | F61: 687-688 | G61: 676 | I61: 700-705 | J61: Open | R61: H
A62: 6 | B62: 2021-07-02 | D62: AARTIIND JUL FUT | E62: Buy | F62: 861.5 | G62: 844 | H62: 871.5 | I62: 880-890 | J62: Profit of Rs.10/- | K62: =H62-F62 -> 10 | L62: =(H62*N62)*0.07% -> 518.54 | M62: =(K62*N62)-L62 -> 7981.5 | N62: 850 | O62: Successful | P62: 2021-07-02 | R62: H
A63: 7 | B63: 2021-07-02 | D63: COLPAL JUL FUT | E63: Buy | F63: 1691.5 | G63: 1655 | H63: 1711 | I63: 1750 | J63: Profit of Rs.13/- | K63: 19.5 | L63: 419.20 | M63: 6405.8 | N63: 350 | O63: Successful | P63: 2021-07-07 | R63: N
A64: 8 | B64: 2021-07-02 | D64: BRITANNIA JUL FUT | E64: Buy | F64: 3555 | G64: 3490 | H64: 3597.5 | I64: 3650-3700 | J64: Profit of Rs.42.5/- | K64: =H64-F64 -> 42.5 | L64: =(H64*N64)*0.07% -> 503.65 | M64: =(K64*N64)-L64 -> 7996.4 | N64: 200 | O64: Successful | P64: 2021-07-05 | R64: H
A65: 9 | B65: 2021-07-05 | D65: AARTIIND JUL FUT | E65: Buy | F65: 868 | G65: 850 | H65: 855 | I65: 900-910 | J65: Loss of Rs.13/- | K65: =H65-F65 -> -13 | L65: =(H65*N65)*0.07% -> 508.73 | M65: =(K65*N65)-L65 -> -11558.7 | N65: 850 | O65: Unsuccessful | P65: 2021-07-07 | R65: H
A66: 10 | B66: 2021-07-05 | D66: BRITANNIA JUL FUT | E66: Buy | F66: 3540-3550 | G66: 3480 | I66: 3650-3700 | J66: Open | R66: N
A67: 11 | B67: 2021-07-06 | D67: SBILIFE JUL FUT | E67: Buy | F67: 1030-1033 | G67: 1012 | I67: 1070-1075 | J67: Open | R67: H
A68: 12 | B68: 2021-07-06 | D68: LTI JUL FUT | E68: Buy | F68: 4020 | G68: 3930 | H68: 4072.5 | I68: 4250 | J68: Profit of Rs.52.5/- | K68: =H68-F68 -> 52.5 | L68: =(H68*N68)*0.07% -> 427.61 | M68: =(K68*N68)-L68 -> 7447.4 | N68: 150 | O68: Successful | P68: 2021-07-07 | R68: N
A69: 13 | B69: 2021-07-07 | D69: LUPIN JUL FUT | E69: Buy | F69: 1143-1145 | G69: 1129 | I69: 1175 | J69: Open | R69: N
A70: 14 | B70: 2021-07-07 | D70: GRASIM JUL FUT | E70: Buy | F70: 1486-1490 | G70: 1462 | I70: 1540 | J70: Open | R70: N
A71: 15 | B71: 2021-07-07 | D71: TECHM JUL FUT | E71: Buy | F71: 1020-1022 | G71: 998 | I71: 1060-1070 | J71: Open | R71: H
A79: Master Trade Medium Risk
A80: Sr.no | B80: Date | D80: Company | E80: Rec | F80: Rec Price | G80: Stop Loss | H80: Call Closed At | I80: Target | J80: Remark | K80: Profit/ Loss per lot | L80: All charges | M80: Gain / Loss per Lot | N80: Lot | O80: Status | P80: Closed Date
A81: 1 | B81: 2021-06-29 | C81: HEROMOTOCO APRIL FUT | D81: IRCTC JUL 2140 CE | E81: Buy | F81: 89 | H81: 125 | J81: Profit of Rs. 15/- | K81: 36.00 | L81: 100 | M81: =(15*N81)-200 -> 4675 | N81: 325 | O81: Successful | P81: 2021-07-06 | R81: H
C82: HEROMOTOCO APR 3050 CE | D82: IRCTC JUL 2200 CE | E82: Sell | F82: 69 | H82: 90 | K82: 21.00 | L82: 100 | R82: H
A83: 2 | B83: 2021-06-30 | D83: NIFTY 15750 CE 01-JUL | E83: Buy | F83: 36 | G83: 0 | H83: 0 | I83: 90 | J83: Loss of Rs.36/- | K83: =H83-F83 -> -36.00 | L83: 100.00 | M83: =(K83*N83)-100 -> -2800 | N83: 75 | O83: Unsuccessful | P83: 2021-07-01 | R83: N
A84: 3 | B84: 2021-07-01 | C84: HEROMOTOCO APRIL FUT | D84: BANKNIFTY 8 JUL 34900 CE | E84: Buy | F84: 340 | G84: 90 | H84: 335 | J84: Profit of Rs. 60/- | K84: -5.00 | L84: 100.00 | M84: =(60*N84)-200 -> 1300 | N84: 25 | O84: Successful | P84: 2021-07-05 | R84: H
C85: HEROMOTOCO APR 3050 CE | D85: BANKNIFTY 1 JUL 34900 CE | E85: Sell | F85: 65 | H85: 0 | K85: 65.00 | L85: 100.00 | R85: H
A86: 4 | B86: 2021-07-01 | D86: CONCOR 660 PE JUL | E86: Sell | F86: 10.75 | G86: 14.5 | H86: 8.3 | I86: 5 | J86: Profit of Rs.2.45/- | K86: =F86-H86 -> 2.45 | L86: 100.00 | M86: =(K86*N86)-100 -> 3729.35 | N86: 1563 | O86: Successful | P86: 2021-07-06 | R86: N
A87: 5 | B87: 2021-07-01 | D87: DABUR 590 PE JUL | E87: Sell | F87: 13.5 | G87: 19 | H87: 10.3 | I87: 2 | J87: Profit of Rs.3.20/- | K87: =F87-H87 -> 3.20 | L87: 100.00 | M87: =(K87*N87)-100 -> 3900 | N87: 1250 | O87: Successful | P87: 2021-07-06 | R87: H
A88: 6 | B88: 2021-07-05 | D88: M&MFIN 175 CE JUL | E88: Sell | F88: 1.75-1.85 | G88: 3.05 | I88: 0.1 | J88: Open | R88: N
A89: 7 | B89: 2021-07-06 | D89: NIFTY 15850 PE 08-JUL | E89: Buy | F89: 50 | G89: 14 | H89: 63.5 | I89: 100-120 | J89: Profit of Rs.13.50/- | K89: =H89-F89 -> 13.50 | L89: 100.00 | M89: =(K89*N89)-100 -> 912.5 | N89: 75 | O89: Successful | P89: 2021-07-06 | R89: H
A90: 8 | B90: 2021-07-07 | D90: ITC 210 CE JUL | E90: Buy | F90: 2.10-2.30 | G90: 0.9 | I90: 4 | J90: Open | R90: H
A91: 9 | B91: 2021-07-07 | D91: NIFTY 15850 PE 08-JUL | E91: Buy | F91: 40-44 | G91: 12 | I91: 80-90 | J91: Open | R91: H
A97: Techno -Funda (positional)
A98: Sr.no | B98: Date | D98: Company | E98: Rec | F98: Rec Price | G98: Stop Loss*** | H98: Call Closed At | I98: Target | J98: Remark | K98: Profit / Loss per Share/Lot | L98: All charges | M98: Net Gain / Loss % | N98: Status | O98: Closed Date
A99: 1 | B99: 2021-06-16 | D99: WHIRLPOOL | E99: Buy | F99: 2260-2300 | G99: 2070 | I99: 2600-2700 | J99: Open | R99: H
A102: CLBS = Closing Basis *** | F102: Reinitiated $
A103: Dividend adjusted <> | F103: Revised stoploss #
B105: Intrday Call
A106: Sr.no | B106: Date | D106: Company | E106: Rec | F106: Rec Price | G106: Stop Loss | H106: Call Closed At | I106: Target | J106: Remark | K106: Profit / Loss per Share/Lot | L106: Gain / Loss per Lot | M106: Lot | N106: All charges | O106: Net Gain / Loss % | P106: Status | Q106: Closed Date
B119: Investment Idea
A120: Sr.no | B120: Date | D120: Company | E120: Rec | F120: Rec Price | G120: Point of Review | H120: Close Rate | I120: Target | J120: Remark | K120: Profit / Loss per Share | L120: Gain / Loss % | M120: Status | N120: Closed Date
A121: 1 | B121: 2013-11-01 | D121: L&T Finance Holding | E121: Accu | F121: 82.00 | G121: - | H121: 100 | I121: 100.00 | J121: Target Achieved | K121: =H121-F121 -> 18.00 | L121: =K121/F121 -> 21.95% | M121: Successful | N121: 2016-10-14
A122: 2 | B122: 2014-06-04 | D122: Finolex Inds | E122: Buy | F122: 257.00 | G122: - | H122: 300 | I122: 300.00 | J122: Target Achieved | K122: 43.00 | L122: 16.73% | M122: Successful | N122: 2014-07-02
A123: 3 | B123: 2014-07-08 | D123: JK Cement | E123: Buy | F123: 393.00 | G123: - | H123: 468 | I123: 468.00 | J123: Target Achieved | K123: 75.00 | L123: 19.08% | M123: Successful | N123: 2014-08-12
A124: 4 | B124: 2014-08-06 | D124: Finolex Cables | E124: Buy | F124: 205.00 | G124: - | H124: 275 | I124: 250.00 | J124: Target Achieved | K124: 70.00 | L124: 34.15% | M124: Successful | N124: 2014-11-19
A125: 5 | B125: 2014-09-04 | D125: Exide Inds | E125: Buy | F125: 162.00 | G125: - | H125: 190 | I125: 190.00 | J125: Target Achieved | K125: 28.00 | L125: 17.28% | M125: Successful | N125: 2015-01-02
A126: 6 | B126: 2014-09-04 | D126: Deepak Nitrite | E126: Buy | F126: 75.00 | G126: - | H126: 91.5 | I126: 95-100 | J126: Profit of Rs.16.50/- | K126: 16.50 | L126: 22.00% | M126: Successful | N126: 2014-11-11
A127: 7 | B127: 2014-10-01 | D127: Mercks | E127: Buy | F127: 850.00 | G127: - | H127: 982.5 | I127: 1050.00 | J127: Profit of Rs.132.50/- | K127: 132.50 | L127: 15.59% | M127: Successful | N127: 2015-02-04
A128: 8 | B128: 2014-10-01 | D128: Grindwell Norton | E128: Buy | F128: 475.00 | G128: - | H128: 515 | I128: 600.00 | J128: Profit of Rs.40/- | K128: 40.00 | L128: 8.42% | M128: Successful | N128: 2014-10-27
A129: 9 | B129: 2014-10-01 | D129: Snowman Logistics | E129: Buy | F129: 86.00 | G129: - | H129: 99 | I129: 140.00 | J129: Profit of Rs.13.00/- | K129: 13.00 | L129: 15.12% | M129: Successful | N129: 2014-10-27
A130: 10 | B130: 2014-10-14 | D130: Birla Corp | E130: Buy | F130: 496.60 | G130: - | H130: 621 | I130: 580.00 | J130: Target Achieved | K130: 124.40 | L130: 25.05% | M130: Successful | N130: 2016-08-23
A131: 11 | B131: 2014-10-14 | D131: Ultratech Cem | E131: Buy | F131: 2481.90 | G131: - | H131: 2840 | I131: 2870.00 | J131: Profit of Rs.358.10/- | K131: 358.10 | L131: 14.43% | M131: Successful | N131: 2015-01-13
A132: 12 | B132: 2014-10-16 | D132: Sintex Inds | E132: Buy | F132: 84.50 | G132: - | H132: 93 | I132: 110.00 | J132: Profit of Rs.8.50/- | K132: 8.50 | L132: 10.06% | M132: Successful | N132: 2014-10-27
A133: 13 | B133: 2014-10-16 | D133: HSIL | E133: Buy | F133: 401.00 | G133: - | H133: 428 | I133: 450.00 | J133: Profit of Rs.27.00/- | K133: 27.00 | L133: 6.73% | M133: Successful | N133: 2015-01-16
A134: 14 | B134: 2014-10-16 | D134: Eveready Inds | E134: Buy | F134: 101.00 | G134: - | H134: 112 | I134: 120.00 | J134: Profit of Rs.11.00/- | K134: 11.00 | L134: 10.89% | M134: Successful | N134: 2014-10-27
A135: 15 | B135: 2014-11-11 | D135: Pennar Inds | E135: Buy | F135: 59.00 | G135: - | H135: 76 | I135: 76.00 | J135: Target Achieved | K135: 17.00 | L135: 28.81% | M135: Successful | N135: 2017-10-24
A136: 16 | B136: 2014-11-11 | D136: Snowman Logistics | E136: Buy | F136: 99.00 | G136: - | H136: 120 | I136: 120.00 | J136: Profit of Rs.21/- | K136: 21.00 | L136: 21.21% | M136: Successful | N136: 2014-11-17
A137: 17 | B137: 2014-11-13 | D137: Dharamsi Morarji Chem | E137: Buy | F137: 22.00 | G137: - | H137: 33.55 | I137: 32.00 | J137: Profit of Rs 11.55/- | K137: 11.55 | L137: 52.50% | M137: Successful | N137: 2015-07-03
A138: 18 | B138: 2014-12-03 | D138: Tatachem | E138: Buy | F138: 440.00 | G138: - | H138: 520 | I138: 520.00 | J138: Profit of Rs 80.00/- | K138: 80.00 | L138: 18.18% | M138: Successful | N138: 2015-07-23
A139: 19 | B139: 2014-12-03 | D139: Advanta | E139: Buy | F139: 360.00 | G139: - | H139: 427 | I139: 425.00 | J139: Profit of Rs.67.00/- | K139: 67.00 | L139: 18.61% | M139: Successful | N139: 2015-02-23
A140: 20 | B140: 2015-01-08 | D140: GDL | E140: Buy | F140: 360.00 | G140: - | H140: 455 | I140: 420.00 | J140: Profit of Rs.95.00/- | K140: 95.00 | L140: 26.39% | M140: Successful | N140: 2015-01-20
A141: 21 | B141: 2015-01-08 | D141: NRB Bearing | E141: Buy | F141: 130.00 | H141: 175.5 | I141: 165.00 | J141: Profit of Rs 45.50/- | K141: 45.50 | L141: 35.00% | M141: Successful | N141: 2017-12-19
A142: 22 | B142: 2015-02-05 | D142: GSFC | E142: Accu | F142: 98.00 | H142: 120 | I142: 120.00 | J142: Target Achieved | K142: 22.00 | L142: 22.45% | M142: Successful | N142: 2017-01-18
A143: 23 | B143: 2015-02-05 | D143: Sundrmfast | E143: Accu | F143: 196.00 | H143: 262 | I143: 255.00 | J143: Target Achieved | K143: 66.00 | L143: 33.67% | M143: Successful | N143: 2016-08-17
A144: 24 | B144: 2015-03-04 | D144: GPPL | E144: Accu | F144: 235 | H144: 77.00 | I144: 280-285 | J144: Loss of Rs.158/- | K144: -158.00 | L144: -67.23% | M144: Unsuccessful | N144: 2019-02-26
A145: 25 | B145: 2015-03-04 | D145: ORIENTCEM | E145: Accu | F145: 185.00 | H145: 224 | I145: 220-225 | J145: Target Achieved | K145: 39.00 | L145: 21.08% | M145: Successful | N145: 2016-10-04
A146: 26 | B146: 2015-03-27 | D146: PFS | E146: Accu | F146: 49.5 | H146: 15.85 | I146: 67.00 | J146: Loss of Rs.33.65/- | K146: -33.65 | L146: -68% | M146: Unsuccessful | N146: 2019-06-11
A147: 27 | B147: 2015-03-30 | D147: Walchandnagar Ind Ltd | E147: Accu | F147: 183.50 | H147: 219 | I147: 218.00 | J147: Profit of Rs.35.50/- | K147: 35.50 | L147: 19.35% | M147: Successful | N147: 2015-04-09
A148: 28 | B148: 2015-04-20 | D148: Kalpataru Power Transmission Ltd | E148: Accu | F148: =(227+237)/2 -> 232.00 | H148: 298 | I148: 298.00 | J148: Target Achieved | K148: 66.00 | L148: 28.45% | M148: Successful | N148: 2017-03-29
A149: 29 | B149: 2015-05-04 | D149: Mastek Ltd | E149: Buy | F149: 385.00 | H149: =212.5+331 -> 543.5 | I149: 510.00 | J149: Profit of Rs 158.50/- | K149: 158.50 | L149: 41.17% | M149: Successful | N149: 2015-08-19
A150: 30 | B150: 2015-05-04 | D150: Suprajit Eng | E150: Buy | F150: 115.50 | H150: 146 | I150: 142.00 | J150: Profit of Rs 30.50/- | K150: 30.50 | L150: 26.41% | M150: Successful | N150: 2015-07-17
A151: 31 | B151: 2015-05-27 | D151: TCI | E151: Buy | F151: 237.50 | H151: 279.5 | I151: 278.00 | J151: Target Achieved | K151: 42.00 | L151: 17.68% | M151: Successful | N151: 2015-08-06
A152: 32 | B152: 2015-06-19 | D152: HSIL | E152: Accu | F152: 340.00 | H152: 448 | I152: 448.00 | J152: Target Achieved | K152: 108.00 | L152: 31.76% | M152: Successful | N152: 2017-10-10
A153: 33 | B153: 2015-07-06 | D153: Capital First | E153: Accu | F153: 390.00 | H153: 460 | I153: 460.00 | J153: Target Achieved | K153: =H153-F153 -> 70.00 | L153: =K153/F153 -> 17.95% | M153: Successful | N153: 2016-04-18
A154: 34 | B154: 2015-07-10 | D154: Dolphin OffShore | E154: Accu | F154: 122.5 | H154: 61.00 | I154: 172.00 | J154: Loss of Rs.61.50/- | K154: -61.50 | L154: -50.20% | M154: Unsuccessful | N154: 2018-08-21
A155: 35 | B155: 2015-08-03 | D155: Allcargo logistics | E155: Accu | F155: 297.50 | H155: 350 | I155: 360.00 | J155: Profit of Rs 52.50/- | K155: 52.50 | L155: 17.65% | M155: Successful | N155: 2015-08-16
A156: 36 | B156: 2015-08-03 | D156: Camline Fine | E156: Accu | F156: 115.50 | H156: 149 | I156: 140.00 | J156: Profit of Rs 33.50/- | K156: 33.50 | L156: 29.00% | M156: Successful | N156: 2017-01-05
A157: 37 | B157: 2015-09-04 | D157: TCI | E157: Accu | F157: 226.00 | H157: 292 | I157: 292.00 | J157: Target Achieved | K157: 66.00 | L157: 29.20% | M157: Successful | N157: 2015-10-09
A158: 38 | B158: 2015-09-07 | D158: Kalpataru Power Transmission Ltd | E158: Accu | F158: 232.50 | H158: 312.5 | I158: 310.00 | J158: Target Achieved | K158: 80.00 | L158: 34.41% | M158: Successful | N158: 2017-03-29
A159: 39 | B159: 2015-09-21 | D159: LLOYD ELECTRIC & ENG LTD | E159: Accu | F159: 196.50 | H159: 238 | I159: 238.00 | J159: Target Achieved | K159: 41.50 | L159: 21.12% | M159: Successful | N159: 2015-10-14
A160: 40 | B160: 2015-09-24 | D160: L&T Finance Holding | E160: Accu | F160: 65.00 | H160: 82 | I160: 82.00 | J160: Target Achieved | K160: 17.00 | L160: 26.15% | M160: Successful | N160: 2016-07-27
A161: 41 | B161: 2015-10-14 | D161: KEC International ltd | E161: Accu | F161: 144.00 | H161: 182.5 | I161: 181.00 | J161: Target Achieved | K161: 38.50 | L161: 26.74% | M161: Successful | N161: 2017-03-23
A162: 42 | B162: 2015-10-14 | D162: Gruh Finance | E162: Accu | F162: 264.00 | H162: 311 | I162: 311.00 | J162: Target Achieved | K162: 47.00 | L162: 17.80% | M162: Successful | N162: 2016-08-22
A163: 43 | B163: 2015-11-10 | D163: Pidilitind | E163: Buy | F163: 549.50 | H163: 630 | I163: 630.00 | J163: Target Achieved | K163: 80.50 | L163: 14.65% | M163: Successful | N163: 2016-02-19
A164: 44 | B164: 2015-12-04 | D164: Zensar Technology | E164: Accu | F164: 1027.50 | H164: 1315 | I164: 1250.00 | J164: Target Achieved | K164: 287.50 | L164: 27.98% | M164: Successful | N164: 2018-05-24
A165: 45 | B165: 2015-12-29 | D165: Vinati Organics Ltd | E165: Accu | F165: 465.00 | H165: 540 | I165: 540.00 | J165: Target Achieved | K165: 75.00 | L165: 16.13% | M165: Successful | N165: 2016-06-09
A166: 46 | B166: 2016-01-11 | D166: GSFC | E166: Buy | F166: 81.00 | H166: 110 | I166: 110.00 | J166: Target Achieved | K166: 29.00 | L166: 35.80% | M166: Successful | N166: 2017-01-10
A167: 47 | B167: 2016-01-13 | D167: SSWL | E167: Buy | F167: 417.50 | H167: 547 | I167: 535.00 | J167: Target Achieved | K167: 129.50 | L167: 31.02% | M167: Successful | N167: 2016-07-27
A168: 48 | B168: 2016-02-08 | D168: Persistent System Ltd | E168: Accu | F168: 650.00 | H168: 800 | I168: 800.00 | J168: Target Achieved | K168: 150.00 | L168: 23.08% | M168: Successful | N168: 2018-02-23
A169: 49 | B169: 2016-03-04 | D169: UPL | E169: Accu | F169: 437.50 | H169: 504.5 | I169: 522.00 | J169: Profit of Rs.67/- | K169: 67.00 | L169: 15.31% | M169: Successful | N169: 2016-04-20
A170: 50 | B170: 2016-03-09 | D170: Ashoka Buildcon Ltd | E170: Accu | F170: 189.50 | H170: 218 | I170: 218.00 | J170: Target Achieved | K170: 28.50 | L170: 15.04% | M170: Successful | N170: 2017-10-26
A171: 51 | B171: 2016-04-11 | D171: PTC INDIA FIN SERV LTD | E171: Accu | F171: 36.5 | H171: 15.85 | I171: 60.00 | J171: Loss of Rs.20.65/- | K171: -20.65 | L171: -56.58% | M171: Unsuccessful | N171: 2019-06-11
A172: 52 | B172: 2016-04-12 | D172: CAMLINFINE $ | E172: Accu | F172: 93.00 | H172: 149 | I172: 140.00 | J172: Profit of Rs 56/- | K172: 56.00 | L172: 60.22% | M172: Successful | N172: 2017-01-05
A173: 53 | B173: 2016-04-12 | D173: Greaves Cotton Ltd. | E173: Accu | F173: 130.00 | H173: 150 | I173: 150-155 | J173: Target Achieved | K173: 20.00 | L173: 15.38% | M173: Successful | N173: 2016-07-13
A174: 54 | B174: 2016-04-13 | D174: DHFL | E174: Accu | F174: 196.00 | H174: 299 | I174: 299.00 | J174: Target Achieved | K174: 103.00 | L174: 52.55% | M174: Successful | N174: 2016-09-07
A175: 55 | B175: 2016-04-13 | D175: Magma | E175: Accu | F175: 88.00 | H175: 103 | I175: 103.00 | J175: Target Achieved | K175: 15.00 | L175: 17.05% | M175: Successful | N175: 2016-06-09
A176: 56 | B176: 2016-05-02 | D176: KEC International ltd $ | E176: Accu | F176: 127.50 | H176: 148 | I176: 148-150 | J176: Target Achieved | K176: =H176-F176 -> 20.50 | L176: =K176/F176 -> 16.08% | M176: Successful | N176: 2016-07-13
A177: 57 | B177: 2016-05-03 | D177: Mindtree | E177: Accu | F177: 675.00 | H177: 815 | I177: 790-800 | J177: Target Achieved | K177: =H177-F177 -> 140.00 | L177: =K177/F177 -> 20.74% | M177: Successful | N177: 2018-02-23
A178: 58 | B178: 2016-06-01 | D178: Atulauto | E178: Accu | F178: 500 | H178: 232.50 | I178: 565-570 | J178: Loss of Rs.267.50 /- | K178: =H178-F178 -> -267.50 | L178: =K178/F178 -> -53.50% | M178: Unsuccessful | N178: 2019-09-27
A179: 59 | B179: 2016-06-06 | D179: TRITURBINE | E179: Accu | F179: 110.00 | H179: 126.5 | I179: 125.00 | J179: Profit of Rs.16.50/- | K179: =H179-F179 -> 16.50 | L179: =K179/F179 -> 15.00% | M179: Successful | N179: 2016-07-01
A180: 60 | B180: 2016-06-17 | D180: Pennar Industries Ltd | E180: Accu | F180: 44.00 | H180: 69.5 | I180: 69.50 | J180: Profit of Rs.25.50/- | K180: =H180-F180 -> 25.50 | L180: =K180/F180 -> 57.95% | M180: Successful | N180: 2017-08-30
A181: 61 | B181: 2016-06-28 | D181: EVEREADY | E181: Accu | F181: 262.50 | H181: 340 | I181: 333.00 | J181: Profit of Rs.77.50/- | K181: 77.50 | L181: 29.52% | M181: Successful | N181: 2017-10-09
A182: 62 | B182: 2016-06-28 | D182: FIEMIND | E182: Accu | F182: 840.00 | H182: 1230 | I182: 1230.00 | J182: Target Achieved | K182: 390.00 | L182: 46.43% | M182: Successful | N182: 2016-10-06
A183: 63 | B183: 2016-07-05 | D183: Bajaj Corp Ltd | E183: Accu | F183: 395 | H183: =(468.5+342.5)/2 -> 405.50 | I183: 510.00 | J183: Profit of Rs.10.50/- | K183: =H183-F183 -> 10.50 | L183: =K183/F183 -> 3% | M183: Neutral | N183: 2019-05-21
A184: 64 | B184: 2016-08-02 | D184: GPPL $ | E184: Buy | F184: =169.5-12.8 -> 156.7 | H184: 77.00 | I184: 198-200 | J184: Loss of Rs.79.7/- | K184: -79.70 | L184: -50.86% | M184: Unsuccessful | N184: 2019-02-26
A185: 65 | B185: 2016-08-04 | D185: WONDERLA HOLIDAYS LTD | E185: Accu | F185: 400 | H185: 305.00 | I185: 475.00 | J185: Loss of Rs.95/- | K185: -95.00 | L185: -23.75% | M185: Unsuccessful | N185: 2019-05-21
A186: 66 | B186: 2016-08-11 | D186: CAMLINFINE | E186: Accu | F186: 86.50 | H186: 130 | I186: 130.00 | J186: Profit of Rs.43.50/- | K186: 43.50 | L186: 50.29% | M186: Successful | N186: 2017-12-22
A187: 67 | B187: 2016-08-18 | D187: GRANULES | E187: Accu | F187: 133.5 | H187: 126.50 | I187: 178.00 | J187: Exit | K187: -7.00 | L187: -5.24% | M187: Unsuccessful | N187: 2016-09-02
A188: 68 | B188: 2016-08-31 | D188: VA TECH WABAG | E188: Accu | F188: 560.00 | H188: 725 | I188: 725.00 | J188: Target Achieved | K188: 165.00 | L188: 29.46% | M188: Successful | N188: 2016-03-27
A189: 69 | B189: 2016-09-01 | D189: SKIPPER LIMITED | E189: Accu | F189: 160.50 | H189: 210 | I189: 210.00 | J189: Target Achieved | K189: 49.50 | L189: 30.84% | M189: Successful | N189: 2017-05-16
A190: 70 | B190: 2016-10-03 | D190: IFBIND | E190: Accu | F190: 430.00 | H190: 596 | I190: 575.00 | J190: Profit of Rs.166/- | K190: 166.00 | L190: 38.60% | M190: Successful | N190: 2017-02-03
A191: 71 | B191: 2016-10-14 | D191: ASIANTILES | E191: Accu | F191: 280.00 | H191: 345 | I191: 345.00 | J191: Target Achieved | K191: =H191-F191 -> 65.00 | L191: =K191/F191 -> 23.21% | M191: Successful | N191: 2017-03-20
A192: 72 | B192: 2016-10-14 | D192: DEEPIND | E192: Accu | F192: 245.00 | H192: 325.5 | I192: 330.00 | J192: Profit of Rs.80.5/- | K192: 80.50 | L192: =K192/F192 -> 32.86% | M192: Successful | N192: 2017-02-03
A193: 73 | B193: 2016-10-17 | D193: DCBBANK | E193: Accu | F193: 125.00 | H193: 160 | I193: 160.00 | J193: Target Achieved | K193: 35.00 | L193: 28.00% | M193: Successful | N193: 2017-03-09
A194: 74 | B194: 2016-10-17 | D194: ORIENTREF | E194: Accu | F194: 114.00 | H194: 145 | I194: 145.00 | J194: Target Achieved | K194: 31.00 | L194: =K194/F194 -> 27.19% | M194: Successful | N194: 2017-05-04
A195: 75 | B195: 2016-10-17 | D195: GANECOS | E195: Accu | F195: 212.00 | H195: 280 | I195: 276.00 | J195: Profit of Rs.68/- | K195: 68.00 | L195: =K195/F195 -> 32.08% | M195: Successful | N195: 2017-05-03
A196: 76 | B196: 2016-11-04 | D196: NBCC | E196: Accu | F196: 155.00 | H196: 210 | I196: 210.00 | J196: Profit of Rs.55/- | K196: 55.00 | L196: =K196/F196 -> 35.48% | M196: Successful | N196: 2017-07-28
A197: 77 | B197: 2016-12-06 | D197: PRECAM | E197: Accu | F197: 150.5 | H197: 72.50 | I197: 174.00 | J197: Loss of Rs.78/- | K197: -78.00 | L197: -51.83% | M197: Unsuccessful | N197: 2018-08-21
A198: 78 | B198: 2016-12-08 | D198: INFRATEL | E198: Accu | F198: 380.00 | H198: 478 | I198: 468.00 | J198: Target Achieved | K198: =H198-F198 -> 98.00 | L198: =K198/F198 -> 25.79% | M198: Successful | N198: 2017-10-17
A199: 79 | B199: 2016-12-30 | D199: GODREJPROP | E199: Accu | F199: 305.00 | H199: 375 | I199: 375.00 | J199: Target Achieved | K199: =H199-F199 -> 70.00 | L199: =K199/F199 -> 22.95% | M199: Successful | N199: 2017-02-02
A200: 80 | B200: 2017-01-04 | D200: DEEPAKNTR | E200: Accu | F200: 99.50 | H200: 158 | I200: 158.00 | J200: Target Achieved | K200: =H200-F200 -> 58.50 | L200: =K200/F200 -> 58.79% | M200: Successful | N200: 2017-06-12
A201: 81 | B201: 2017-01-04 | D201: DEEPAKNTR | E201: Accu | F201: 99.50 | H201: 158 | I201: 158.00 | J201: Target Achieved | K201: 58.50 | L201: 58.79% | M201: Successful | N201: 2017-06-12
A202: 82 | B202: 2017-02-20 | D202: RECLTD | E202: Accu | F202: 140.50 | H202: 220 | I202: 220.00 | J202: Target Achieved | K202: =H202-F202 -> 79.50 | L202: =K202/F202 -> 56.58% | M202: Successful | N202: 2017-05-09
A203: 83 | B203: 2017-02-20 | D203: SUBROS | E203: Accu | F203: 202.50 | H203: 234 | I203: 234.00 | J203: Target Achieved | K203: 31.50 | L203: 15.56% | M203: Successful | N203: 2017-04-11
A204: 84 | B204: 2017-03-24 | D204: VRLLOG | E204: Accu | F204: 300.50 | H204: 417.5 | I204: 420.00 | J204: Profit of Rs.117/- | K204: =H204-F204 -> 117.00 | L204: =K204/F204 -> 38.94% | M204: Successful | N204: 2017-12-01
A205: 85 | B205: 2017-03-24 | D205: FIEMIND | E205: Accu | F205: 850.00 | H205: 1042.5 | I205: 1023.00 | J205: Profit of Rs 192.50/- | K205: 192.50 | L205: 22.65% | M205: Successful | N205: 2017-04-05
A206: 86 | B206: 2017-04-05 | D206: RATNAMANI | E206: Accu | F206: 785.00 | H206: 930 | I206: 920.00 | J206: Profit of Rs.145/- | K206: =H206-F206 -> 145.00 | L206: =K206/F206 -> 18.47% | M206: Successful | N206: 2017-08-29
A207: 87 | B207: 2017-04-06 | D207: ZEEMEDIA | E207: Accu | F207: 40 | H207: 13.10 | I207: 60.00 | J207: Loss of Rs.26.9/- | K207: -26.90 | L207: -67.25% | M207: Unsuccessful | N207: 2018-02-07
A208: 88 | B208: 2017-04-12 | D208: DABUR | E208: Accu | F208: 289.50 | H208: 354 | I208: 360.00 | J208: Profit of Rs.64.5/- | K208: =H208-F208 -> 64.50 | L208: =K208/F208 -> 22.28% | M208: Successful | N208: 2017-11-01
A209: 89 | B209: 2017-04-20 | D209: KPRMILL | E209: Accu | F209: 700.00 | H209: 840 | I209: 840.00 | J209: Profit of Rs.140/- | K209: 140.00 | L209: 20.00% | M209: Successful | N209: 2017-06-07
A210: 90 | B210: 2017-06-01 | D210: ESSELPACK | E210: Accu | F210: 130.00 | H210: 144.25 | I210: 170.00 | J210: Profit of Rs.14.25/- | K210: 14.25 | L210: 10.96% | M210: Successful | N210: 2019-07-29
A211: 91 | B211: 2017-06-15 | D211: KEI | E211: Accu | F211: 214.50 | H211: 262 | I211: 262.00 | J211: Profit of Rs.47.5/- | K211: 47.50 | L211: 22.14% | M211: Successful | N211: 2017-08-30
A212: 92 | B212: 2017-07-17 | D212: MAYURUNIQ | E212: Accu | F212: 370.00 | H212: 447.5 | I212: 450.00 | J212: Target Achieved | K212: 77.50 | L212: 20.95% | M212: Successful | N212: 2017-10-27
A213: 93 | B213: 2017-07-27 | D213: RAMCOCEM | E213: Accu | F213: 657.50 | H213: 825 | I213: 820.00 | J213: Target Achieved | K213: 167.50 | L213: 25.48% | M213: Successful | N213: 2017-12-21
A214: 94 | B214: 2017-08-17 | D214: FINPIPE | E214: Accu | F214: 605.00 | H214: 750 | I214: 750.00 | J214: Profit of Rs.145/- | K214: 145.00 | L214: 23.97% | M214: Successful | N214: 2017-10-19
A215: 95 | B215: 2017-09-01 | D215: SHK | E215: Accu | F215: 255 | H215: 217.25 | I215: 320.00 | J215: Loss of Rs.37.75/- | K215: -37.75 | L215: -15% | M215: Unsuccessful | N215: 2019-07-15
A216: 96 | B216: 2017-09-19 | D216: SKIPPER | E216: Accu | F216: 215.00 | H216: 258 | I216: 258.00 | J216: Target Achieved | K216: 43.00 | L216: 20.00% | M216: Successful | N216: 2017-11-01
A217: 97 | B217: 2017-09-19 | D217: SKIPPER | E217: Accu | F217: 215.00 | H217: 258 | I217: 258.00 | J217: Target Achieved | K217: 43.00 | L217: 20.00% | M217: Successful | N217: 2017-11-01
A218: 98 | B218: 2017-09-20 | D218: CAMLINFINE$ | E218: Accu | F218: 75.00 | H218: 90 | I218: 90.00 | J218: Profit of Rs.15.00/- | K218: =H218-F218 -> 15.00 | L218: =K218/F218 -> 20.00% | M218: Successful | N218: 2017-10-11
A219: 99 | B219: 2017-10-03 | D219: GNA | E219: Accu | F219: 315.00 | H219: 392 | I219: 384.00 | J219: Profit of Rs.77/- | K219: 77.00 | L219: 24.44% | M219: Successful | N219: 2017-10-09
A220: 100 | B220: 2017-10-05 | D220: NOCIL | E220: Accu | F220: 145.00 | H220: 179 | I220: 180.00 | J220: Profit of Rs.34/- | K220: 34.00 | L220: 23.45% | M220: Successful | N220: 2017-10-17
A221: 101 | B221: 2017-10-06 | D221: CENTURYPLY | E221: Accu | F221: 256.00 | H221: 323 | I221: 320.00 | J221: Target Achieved | K221: 67.00 | L221: 26.17% | M221: Successful | N221: 2017-11-28
A222: 102 | B222: 2017-10-09 | D222: EIHOTEL | E222: Accu | F222: 137.50 | H222: 184 | I222: 183.00 | J222: Profit of Rs.46.5/- | K222: 46.50 | L222: 33.82% | M222: Successful | N222: 2018-01-08
A223: 103 | B223: 2017-10-10 | D223: NRBBEARING | E223: Accu | F223: 125.50 | H223: 158 | I223: 155.00 | J223: Profit of Rs.32.5/- | K223: 32.50 | L223: 25.90% | M223: Successful | N223: 2017-11-28
A224: 104 | B224: 2017-10-10 | D224: BOROSIL | E224: Accu | F224: 895.00 | H224: 1122.5 | I224: 1078.00 | J224: Profit of Rs.227.5/- | K224: 227.50 | L224: 25.42% | M224: Successful | N224: 2018-01-17
A225: 105 | B225: 2017-10-12 | D225: CYIENT | E225: Accu | F225: 525.00 | H225: 629 | I225: 629.00 | J225: Target Achieved | K225: 104.00 | L225: 19.81% | M225: Successful | N225: 2018-01-19
A226: 106 | B226: 2017-11-07 | D226: HATSUN | E226: Accu | F226: 740.00 | H226: 892.5 | I226: 900.00 | J226: Profit of Rs.152.5/- | K226: =H226-F226 -> 152.50 | L226: =K226/F226 -> 20.61% | M226: Successful | N226: 2017-11-13
A227: 107 | B227: 2017-12-04 | D227: SANGHIIND | E227: Accu | F227: 118.50 | H227: 143.5 | I227: 145.00 | J227: Profit of Rs.25/- | K227: =H227-F227 -> 25.00 | L227: =K227/F227 -> 21.10% | M227: Successful | N227: 2017-12-28
A228: 108 | B228: 2017-12-21 | D228: KAJARIACER | E228: Accu | F228: 715 | H228: 500.00 | I228: 872.00 | J228: Loss of Rs.215/- | K228: =H228-F228 -> -215.00 | L228: =K228/F228 -> -30.07% | M228: Unsuccessful | N228: 2019-07-24
A229: 109 | B229: 2017-12-29 | D229: GNA | E229: Accu | F229: 435.00 | H229: 542.5 | I229: 539.00 | J229: Target Achieved | K229: 107.50 | L229: 24.71% | M229: Successful | N229: 2018-04-16
A230: 110 | B230: 2017-12-29 | D230: ZENSARTECH | E230: Accu | F230: 885.00 | H230: 1090 | I230: 1084.00 | J230: Target Achieved | K230: 205.00 | L230: 23.16% | M230: Successful | N230: 2018-04-23
A231: 111 | B231: 2018-04-02 | D231: EVERESTIND | E231: Accu | F231: 478.50 | H231: 442 | I231: 613.00 | J231: Loss of Rs.36.50 /- | K231: =H231-F231 -> -36.50 | L231: =K231/F231 -> -7.63% | M231: Unsuccessful | N231: 2019-10-24
A232: 112 | B232: 2018-04-04 | D232: GPPL$ | E232: Accu | F232: =141.5-7.3 -> 134.2 | H232: 77.00 | I232: 180.00 | J232: Loss of Rs.57.2/- | K232: =H232-F232 -> -57.20 | L232: =K232/F232 -> -42.62% | M232: Unsuccessful | N232: 2019-02-26
A233: 113 | B233: 2018-04-19 | D233: MANPASAND | E233: Accu | F233: 430 | H233: 220.00 | I233: 537.00 | J233: Loss of Rs.210/- | K233: =H233-F233 -> -210.00 | L233: =K233/F233 -> -48.84% | M233: Unsuccessful | N233: 2018-06-01
A234: 114 | B234: 2018-04-30 | D234: HEIDELBERG | E234: Accu | F234: 153.5 | H234: 196 | I234: 196.00 | J234: Profit of Rs.42.50/- | K234: =H234-F234 -> 42.50 | L234: =K234/F234 -> 27.69% | M234: Successful | N234: 2019-05-20
A235: 115 | B235: 2018-07-25 | D235: ZEEMEDIA | E235: Accu | F235: 27.5 | H235: 13.10 | I235: 60.00 | J235: Loss of Rs.14.40/- | K235: -14.40 | L235: -52.36% | M235: Unsuccessful | N235: 2018-02-07
A236: 116 | B236: 2018-08-06 | D236: GABRIEL | E236: Accu | F236: 148.5 | H236: 102 | I236: 182.00 | J236: Loss of Rs.46.50/- | K236: =H236-F236 -> -46.50 | L236: =K236/F236 -> -31.31% | M236: Unsuccessful | N236: 2019-07-15
A237: 117 | B237: 2018-08-23 | D237: INDIANHUME | E237: Accu | F237: 285 | H237: 355 | I237: 364.00 | J237: Profit of Rs.70/- | K237: 70.00 | L237: 24.56% | M237: Successful | N237: 2018-12-21
A238: 118 | B238: 2018-08-29 | D238: GRINDWELL | E238: Accu | F238: 525 | H238: 585 | I238: 635.00 | J238: Profit of Rs.60- | K238: =H238-F238 -> 60.00 | L238: =K238/F238 -> 11.43% | M238: Successful | N238: 2019-07-16
A239: 119 | B239: 2018-10-22 | D239: FINPIPE | E239: Accu | F239: 475 | H239: 574 | I239: 570.00 | J239: Target Achieved | K239: 99.00 | L239: 20.84% | M239: Successful | N239: 2018-10-30
A240: 120 | B240: 2018-10-24 | D240: GULFOILLUB | E240: Accu | F240: 707.5 | H240: 872 | I240: 872.00 | J240: Target Achieved | K240: 164.50 | L240: 23.25% | M240: Successful | N240: 2019-01-17
A241: 121 | B241: 2018-10-25 | D241: DBCORP | E241: Accu | F241: 162 | H241: 204 | I241: 209.00 | J241: Profit of Rs.42/- | K241: 42.00 | L241: 25.93% | M241: Successful | N241: 2019-03-15
... 47 more rows
